Workbook

Sheet INTRO
B2: PC Joint Reporting Form v.3
B4: The purpose of this template Joint Reporting Form (JRF) - available as an Excel file - is to provide national health authorities and data managers with a standardized tool to address these reporting challenges, facilitate integration and thereby further contribute to improving overall programme management. This template aims to standardize national reporting of programme implementation outcomes, improve availability and coordination of preventive chemotherapy data across the World Health Organization regions. National authorities are requested to complete this form for submission to the World Health Organization any time before 15 August of the current year for reporting data on PC interventions implemented during the previous year.
B6: Structure of the application (worksheets):
B8: INTRO | C8: This worksheet includes guides on how to complete the joint reporting form and information about status of PC for endemic diseases in the country
B9: COUNTRY_INFO | C9: This worksheet includes information about administrative structure of the country, population by age group, status of endemicity for each disease, population requiring PC, planned interventions and interventions implemented
B10: MDA1, MDA2, MDA3, T1, T2 and T3 | C10: These worksheets include information about endemic districts targeted for treatment with specified PC medicines, treatment plan, and number of people who received treatment by age group
B11: DISTRICT | C11: This worksheet includes summary of people treated by disease at the level of implementation. If data by gender is available, it requires to enter.
B12: SUMMARY | C12: This worksheet includes summary of people treated by disease and by PC intervention. Before generating the report (run macros) please select the disease for which you need the report. Follow the same rule to generate various reports. This worksheet should be printed and submitted as a Joint Report (see the instruction for submission in the SUMMARY worksheet).
B14: Instruction for data entry
B16: Most of the cells in the above-mentioned worksheets include formula that are calculated automatically according to the treatment policy recommended by WHO for each disease. See the link http://www.who.int/neglected_diseases/preventive_chemotherapy/pct_manual/en/index.html
B18: Please enter your data into the cells according to their colour code:
C20: White - cell is not protected. Please enter the value of the requested indicator.
C22: Yellow - cell is protected and includes name of indicator. No data entry required.
C24: Orange - cell is not protected and includes a drop-down menu. Please select the value from the drop-down list.
C27: Green - cell is not protected and includes formula. Please change the value only if your data are different from those that are calculated automatically.
C30: Blue - cell is protected and includes formula. No data entry required.
B32: Country data
B34: COUNTRY | E34: Zanzibar
B36: Year of reporting data | E36: 2017
B38: Is country endemic for lymphatic filariasis (LF)? | E38: Endemic
B40: Is country endemic for onchocerciasis (ONCHO)? | E40: Endemic but PC is not required
B42: Is country endemic for soil-transmitted helminthiases (STH)? | E42: Endemic
B44: Is country endemic for schistosomiasis (SCH)? | E44: Endemic
B46: How many administrative units in the country? | E46: 10
B47: If demographical data at the second administrative level are not available by age group, please enter the proportion (%) of population by age group in the country. If data are available, please leave these cells blank.
B48: 1-4 years age | C48: Preschool-age children (PreSAC) | E48: 0.128
B49: 5-14 years age | C49: School-age children (SAC) | E49: 0.323
B50: 15 years + | C50: Adults | E50: 0.549

Sheet COUNTRY_INFO
A1: COUNTRY INFORMATION
A2: Administrative structure, population by age group, endemicity status, planned interventions and interventions implemented
A4: TOTAL | D4: =SUM(D$9:D$1000) -> 1313658.4 | E4: =SUM(E$9:E$1000) -> 168149 | F4: =SUM(F$9:F$1000) -> 424313 | G4: =SUM(G$9:G$1000) -> 721198 | L4: =SUM(L$9:L$1000) -> 1313658.4 | M4: =SUM(M$9:M$1000) -> 0 | N4: =SUM(N$9:N$1000) -> 592462 | O4: =SUM(O$9:O$1000) -> 208864.47
A6: Country administrative structure | D6: Population | H6: Endemicity | L6: Population requiring PC | P6: Number of treatment rounds planned for the year | T6: PC implemented | V6: Click to see the recommended strategy
A7: Country | B7: Province/State | C7: District | D7: Total | E7: PreSAC | F7: SAC | G7: Adults | H7: LF | I7: Oncho | J7: STH | K7: SCH | L7: LF | M7: Oncho | N7: STH | O7: SCH | P7: LF | Q7: Oncho | R7: STH | S7: SCH | T7: ROUND 1 | U7: ROUND2 | X7: IU_ID | Y7: IU_Name
A9: =IF(INTRO!$E$34<>0,INTRO!$E$34,"") -> Zanzibar | B9: Kusini Pemba | C9: Mkoani | D9: 152982.1333 | E9: =IF(INTRO!$E$48="","",ROUND($D9*INTRO!$E$48,0)) -> 19582 | F9: =IF(INTRO!$E$49="","",ROUND($D9*INTRO!$E$49,0)) -> 49413 | G9: =IF(INTRO!$E$50="","",ROUND($D9*INTRO!$E$50,0)) -> 83987 | H9: 1 | J9: 3 | K9: 2 | L9: =IF(INTRO!$E$38="Endemic", IF($H9>0, IF($H9=4,"Unknown", IF($H9=99,"Stopped", $D9)), 0),"Not required") -> 152982.1333 | M9: =IF(INTRO!$E$40="Endemic", IF($I9>0, IF($I9=4,"Unknown",IF($I9=99,"Stopped", $D9)), 0),"Not required") -> Not required | N9: =IF(INTRO!$E$42="Endemic", IF(AND($J9>1,$J9<5), IF($J9=4, "Unknown", E9+F9), 0),"Not required") -> 68995 | O9: =IF(INTRO!$E$44="Endemic", IF(AND($K9>0,$K9<5), IF($K9=4,"Unknown", IF($K9=1, $F9*0.33, IF($K9=2, $F9*0.5+$G9*0.2, SUM(F9:G9)))), 0),"Not required") -> 41503.9 | P9: 1 | R9: 2 | S9: 2 | T9: T1 (PZQ+ALB/MBD) | U9: T1 (PZQ+ALB/MBD) | X9: 51897 | Y9: Mkoani | AB9: Mkoani | AC9: 2 (Moderate prevalence, 10 - 49%) | AG9: 2
A10: =IF(INTRO!$E$34<>0,INTRO!$E$34,"") -> Zanzibar | B10: Kusini Pemba | C10: Chake Chake | D10: 106918.3333 | E10: =IF(INTRO!$E$48="","",ROUND($D10*INTRO!$E$48,0)) -> 13686 | F10: =IF(INTRO!$E$49="","",ROUND($D10*INTRO!$E$49,0)) -> 34535 | G10: =IF(INTRO!$E$50="","",ROUND($D10*INTRO!$E$50,0)) -> 58698 | H10: 1 | J10: 3 | K10: 2 | L10: =IF(INTRO!$E$38="Endemic", IF($H10>0, IF($H10=4,"Unknown", IF($H10=99,"Stopped", $D10)), 0),"Not required") -> 106918.3333 | M10: =IF(INTRO!$E$40="Endemic", IF($I10>0, IF($I10=4,"Unknown",IF($I10=99,"Stopped", $D10)), 0),"Not required") -> Not required | N10: =IF(INTRO!$E$42="Endemic", IF(AND($J10>1,$J10<5), IF($J10=4, "Unknown", E10+F10), 0),"Not required") -> 48221 | O10: =IF(INTRO!$E$44="Endemic", IF(AND($K10>0,$K10<5), IF($K10=4,"Unknown", IF($K10=1, $F10*0.33, IF($K10=2, $F10*0.5+$G10*0.2, SUM(F10:G10)))), 0),"Not required") -> 29007.1 | P10: 1 | R10: 2 | S10: 2 | T10: T1 (PZQ+ALB/MBD) | U10: T1 (PZQ+ALB/MBD) | X10: 51896 | Y10: Chake Chake | AB10: Chake Chake | AC10: 2 (Moderate prevalence, 10 - 49%) | AG10: 2
A11: =IF(INTRO!$E$34<>0,INTRO!$E$34,"") -> Zanzibar | B11: Kaskazini Pemba | C11: Wete | D11: 72184.66667 | E11: =IF(INTRO!$E$48="","",ROUND($D11*INTRO!$E$48,0)) -> 9240 | F11: =IF(INTRO!$E$49="","",ROUND($D11*INTRO!$E$49,0)) -> 23316 | G11: =IF(INTRO!$E$50="","",ROUND($D11*INTRO!$E$50,0)) -> 39629 | H11: 1 | J11: 3 | K11: 2 | L11: =IF(INTRO!$E$38="Endemic", IF($H11>0, IF($H11=4,"Unknown", IF($H11=99,"Stopped", $D11)), 0),"Not required") -> 72184.66667 | M11: =IF(INTRO!$E$40="Endemic", IF($I11>0, IF($I11=4,"Unknown",IF($I11=99,"Stopped", $D11)), 0),"Not required") -> Not required | N11: =IF(INTRO!$E$42="Endemic", IF(AND($J11>1,$J11<5), IF($J11=4, "Unknown", E11+F11), 0),"Not required") -> 32556 | O11: =IF(INTRO!$E$44="Endemic", IF(AND($K11>0,$K11<5), IF($K11=4,"Unknown", IF($K11=1, $F11*0.33, IF($K11=2, $F11*0.5+$G11*0.2, SUM(F11:G11)))), 0),"Not required") -> 19583.8 | P11: 1 | R11: 2 | S11: 2 | T11: T1 (PZQ+ALB/MBD) | U11: T1 (PZQ+ALB/MBD) | X11: 51893 | Y11: Wete | AB11: Wete | AC11: 2 (Moderate prevalence, 10 - 49%) | AG11: 2
A12: =IF(INTRO!$E$34<>0,INTRO!$E$34,"") -> Zanzibar | B12: Kaskazini Pemba | C12: Micheweni | D12: 106147.1333 | E12: =IF(INTRO!$E$48="","",ROUND($D12*INTRO!$E$48,0)) -> 13587 | F12: =IF(INTRO!$E$49="","",ROUND($D12*INTRO!$E$49,0)) -> 34286 | G12: =IF(INTRO!$E$50="","",ROUND($D12*INTRO!$E$50,0)) -> 58275 | H12: 1 | J12: 3 | K12: 1 | L12: =IF(INTRO!$E$38="Endemic", IF($H12>0, IF($H12=4,"Unknown", IF($H12=99,"Stopped", $D12)), 0),"Not required") -> 106147.1333 | M12: =IF(INTRO!$E$40="Endemic", IF($I12>0, IF($I12=4,"Unknown",IF($I12=99,"Stopped", $D12)), 0),"Not required") -> Not required | N12: =IF(INTRO!$E$42="Endemic", IF(AND($J12>1,$J12<5), IF($J12=4, "Unknown", E12+F12), 0),"Not required") -> 47873 | O12: =IF(INTRO!$E$44="Endemic", IF(AND($K12>0,$K12<5), IF($K12=4,"Unknown", IF($K12=1, $F12*0.33, IF($K12=2, $F12*0.5+$G12*0.2, SUM(F12:G12)))), 0),"Not required") -> 11314.38 | P12: 1 | R12: 2 | S12: 2 | T12: T1 (PZQ+ALB/MBD) | U12: T1 (PZQ+ALB/MBD) | X12: 51892 | Y12: Micheweni | AB12: Micheweni | AC12: 1 (Low prevalence, < 10%) | AG12: 1
A13: =IF(INTRO!$E$34<>0,INTRO!$E$34,"") -> Zanzibar | B13: Kaskazini Unguja | C13: Kaskazini A | D13: 110542.3333 | E13: =IF(INTRO!$E$48="","",ROUND($D13*INTRO!$E$48,0)) -> 14149 | F13: =IF(INTRO!$E$49="","",ROUND($D13*INTRO!$E$49,0)) -> 35705 | G13: =IF(INTRO!$E$50="","",ROUND($D13*INTRO!$E$50,0)) -> 60688 | H13: 1 | J13: 3 | K13: 2 | L13: =IF(INTRO!$E$38="Endemic", IF($H13>0, IF($H13=4,"Unknown", IF($H13=99,"Stopped", $D13)), 0),"Not required") -> 110542.3333 | M13: =IF(INTRO!$E$40="Endemic", IF($I13>0, IF($I13=4,"Unknown",IF($I13=99,"Stopped", $D13)), 0),"Not required") -> Not required | N13: =IF(INTRO!$E$42="Endemic", IF(AND($J13>1,$J13<5), IF($J13=4, "Unknown", E13+F13), 0),"Not required") -> 49854 | O13: =IF(INTRO!$E$44="Endemic", IF(AND($K13>0,$K13<5), IF($K13=4,"Unknown", IF($K13=1, $F13*0.33, IF($K13=2, $F13*0.5+$G13*0.2, SUM(F13:G13)))), 0),"Not required") -> 29990.1 | P13: 1 | R13: 2 | S13: 2 | T13: T1 (PZQ+ALB/MBD) | U13: T1 (PZQ+ALB/MBD) | X13: 51894 | Y13: North A | AB13: Kaskazini A | AC13: 2 (Moderate prevalence, 10 - 49%) | AG13: 2
A14: =IF(INTRO!$E$34<>0,INTRO!$E$34,"") -> Zanzibar | B14: Kaskazini Unguja | C14: Kaskazini B | D14: 109599.3333 | E14: =IF(INTRO!$E$48="","",ROUND($D14*INTRO!$E$48,0)) -> 14029 | F14: =IF(INTRO!$E$49="","",ROUND($D14*INTRO!$E$49,0)) -> 35401 | G14: =IF(INTRO!$E$50="","",ROUND($D14*INTRO!$E$50,0)) -> 60170 | H14: 1 | J14: 3 | K14: 1 | L14: =IF(INTRO!$E$38="Endemic", IF($H14>0, IF($H14=4,"Unknown", IF($H14=99,"Stopped", $D14)), 0),"Not required") -> 109599.3333 | M14: =IF(INTRO!$E$40="Endemic", IF($I14>0, IF($I14=4,"Unknown",IF($I14=99,"Stopped", $D14)), 0),"Not required") -> Not required | N14: =IF(INTRO!$E$42="Endemic", IF(AND($J14>1,$J14<5), IF($J14=4, "Unknown", E14+F14), 0),"Not required") -> 49430 | O14: =IF(INTRO!$E$44="Endemic", IF(AND($K14>0,$K14<5), IF($K14=4,"Unknown", IF($K14=1, $F14*0.33, IF($K14=2, $F14*0.5+$G14*0.2, SUM(F14:G14)))), 0),"Not required") -> 11682.33 | P14: 1 | R14: 2 | S14: 2 | T14: T1 (PZQ+ALB/MBD) | U14: T1 (PZQ+ALB/MBD) | X14: 51895 | Y14: North B | AB14: Kaskazini B | AC14: 1 (Low prevalence, < 10%) | AG14: 1
A15: =IF(INTRO!$E$34<>0,INTRO!$E$34,"") -> Zanzibar | B15: Kusini Unguja | C15: Kati | D15: 75060.8 | E15: =IF(INTRO!$E$48="","",ROUND($D15*INTRO!$E$48,0)) -> 9608 | F15: =IF(INTRO!$E$49="","",ROUND($D15*INTRO!$E$49,0)) -> 24245 | G15: =IF(INTRO!$E$50="","",ROUND($D15*INTRO!$E$50,0)) -> 41208 | H15: 1 | J15: 3 | K15: 1 | L15: =IF(INTRO!$E$38="Endemic", IF($H15>0, IF($H15=4,"Unknown", IF($H15=99,"Stopped", $D15)), 0),"Not required") -> 75060.8 | M15: =IF(INTRO!$E$40="Endemic", IF($I15>0, IF($I15=4,"Unknown",IF($I15=99,"Stopped", $D15)), 0),"Not required") -> Not required | N15: =IF(INTRO!$E$42="Endemic", IF(AND($J15>1,$J15<5), IF($J15=4, "Unknown", E15+F15), 0),"Not required") -> 33853 | O15: =IF(INTRO!$E$44="Endemic", IF(AND($K15>0,$K15<5), IF($K15=4,"Unknown", IF($K15=1, $F15*0.33, IF($K15=2, $F15*0.5+$G15*0.2, SUM(F15:G15)))), 0),"Not required") -> 8000.85 | P15: 1 | R15: 2 | S15: 2 | T15: T1 (PZQ+ALB/MBD) | U15: T1 (PZQ+ALB/MBD) | X15: 51898 | Y15: Central | AB15: Kati | AC15: 1 (Low prevalence, < 10%) | AG15: 1
A16: =IF(INTRO!$E$34<>0,INTRO!$E$34,"") -> Zanzibar | B16: Kusini Unguja | C16: Kusini | D16: 38126.66667 | E16: =IF(INTRO!$E$48="","",ROUND($D16*INTRO!$E$48,0)) -> 4880 | F16: =IF(INTRO!$E$49="","",ROUND($D16*INTRO!$E$49,0)) -> 12315 | G16: =IF(INTRO!$E$50="","",ROUND($D16*INTRO!$E$50,0)) -> 20932 | H16: 1 | J16: 2 | K16: 0 | L16: =IF(INTRO!$E$38="Endemic", IF($H16>0, IF($H16=4,"Unknown", IF($H16=99,"Stopped", $D16)), 0),"Not required") -> 38126.66667 | M16: =IF(INTRO!$E$40="Endemic", IF($I16>0, IF($I16=4,"Unknown",IF($I16=99,"Stopped", $D16)), 0),"Not required") -> Not required | N16: =IF(INTRO!$E$42="Endemic", IF(AND($J16>1,$J16<5), IF($J16=4, "Unknown", E16+F16), 0),"Not required") -> 17195 | O16: =IF(INTRO!$E$44="Endemic", IF(AND($K16>0,$K16<5), IF($K16=4,"Unknown", IF($K16=1, $F16*0.33, IF($K16=2, $F16*0.5+$G16*0.2, SUM(F16:G16)))), 0),"Not required") -> 0 | P16: 1 | R16: 2 | S16: 0 | T16: T3 (ALB/MBD) | U16: T3 (ALB/MBD) | X16: 51899 | Y16: South | AB16: Kusini | AC16: 1 (Low prevalence, < 10%) | AG16: 0
A17: =IF(INTRO!$E$34<>0,INTRO!$E$34,"") -> Zanzibar | B17: Mjini Magharibi | C17: Mjini | D17: 172688.6667 | E17: =IF(INTRO!$E$48="","",ROUND($D17*INTRO!$E$48,0)) -> 22104 | F17: =IF(INTRO!$E$49="","",ROUND($D17*INTRO!$E$49,0)) -> 55778 | G17: =IF(INTRO!$E$50="","",ROUND($D17*INTRO!$E$50,0)) -> 94806 | H17: 1 | J17: 2 | K17: 1 | L17: =IF(INTRO!$E$38="Endemic", IF($H17>0, IF($H17=4,"Unknown", IF($H17=99,"Stopped", $D17)), 0),"Not required") -> 172688.6667 | M17: =IF(INTRO!$E$40="Endemic", IF($I17>0, IF($I17=4,"Unknown",IF($I17=99,"Stopped", $D17)), 0),"Not required") -> Not required | N17: =IF(INTRO!$E$42="Endemic", IF(AND($J17>1,$J17<5), IF($J17=4, "Unknown", E17+F17), 0),"Not required") -> 77882 | O17: =IF(INTRO!$E$44="Endemic", IF(AND($K17>0,$K17<5), IF($K17=4,"Unknown", IF($K17=1, $F17*0.33, IF($K17=2, $F17*0.5+$G17*0.2, SUM(F17:G17)))), 0),"Not required") -> 18406.74 | P17: 1 | R17: 2 | S17: 2 | T17: T1 (PZQ+ALB/MBD) | U17: T1 (PZQ+ALB/MBD) | X17: 51901 | Y17: Urban | AB17: Mjini | AC17: 1 (Low prevalence, < 10%) | AG17: 1
A18: =IF(INTRO!$E$34<>0,INTRO!$E$34,"") -> Zanzibar | B18: Mjini Magharibi | C18: Magharibi A | D18: 369408.3333 | E18: =IF(INTRO!$E$48="","",ROUND($D18*INTRO!$E$48,0)) -> 47284 | F18: =IF(INTRO!$E$49="","",ROUND($D18*INTRO!$E$49,0)) -> 119319 | G18: =IF(INTRO!$E$50="","",ROUND($D18*INTRO!$E$50,0)) -> 202805 | H18: 1 | J18: 2 | K18: 1 | L18: =IF(INTRO!$E$38="Endemic", IF($H18>0, IF($H18=4,"Unknown", IF($H18=99,"Stopped", $D18)), 0),"Not required") -> 369408.3333 | M18: =IF(INTRO!$E$40="Endemic", IF($I18>0, IF($I18=4,"Unknown",IF($I18=99,"Stopped", $D18)), 0),"Not required") -> Not required | N18: =IF(INTRO!$E$42="Endemic", IF(AND($J18>1,$J18<5), IF($J18=4, "Unknown", E18+F18), 0),"Not required") -> 166603 | O18: =IF(INTRO!$E$44="Endemic", IF(AND($K18>0,$K18<5), IF($K18=4,"Unknown", IF($K18=1, $F18*0.33, IF($K18=2, $F18*0.5+$G18*0.2, SUM(F18:G18)))), 0),"Not required") -> 39375.27 | P18: 1 | R18: 2 | S18: 2 | T18: T1 (PZQ+ALB/MBD) | U18: T1 (PZQ+ALB/MBD) | X18: 51900 | Y18: West A | AB18: Magharibi A | AC18: 1 (Low prevalence, < 10%) | AG18: 1
AB19: Magharibi B | AC19: 1 (Low prevalence, < 10%)

Sheet MDA1
A1: MDA 1 - Ivermectin (IVM) and Albendazole (ALB)
A2: Administrative structure, population requiring PC by age group, population treated by age group and coverage
A4: TOTAL | F4: =SUM(F$9:F$1000) -> 149203.712 | G4: =SUM(G$9:G$1000) -> 376506.242 | H4: =SUM(H$9:H$1000) -> 639944.046 | I4: =SUM(I$9:I$1000) -> 1165654 | K4: =SUM(K$9:K$1000) -> 321850 | L4: =SUM(L$9:L$1000) -> 606158 | M4: =SUM(M$9:M$1000) -> 928008 | O4: =IF(G4<>0, IF(K4/G4*100=0, "-", K4/G4*100), " ") -> 85.48331053 | P4: =IF(H4<>0, IF(L4/H4*100=0, "-", L4/H4*100), " ") -> 94.72046873 | Q4: =IF(I4<>0, IF(M4/I4*100=0, "-", M4/I4*100), " ") -> 79.61264663
D6: PC implemented | E6: Date | F6: Population targeted for MDA 1 | J6: Population treated | N6: Programme coverage (%)
A7: Country | B7: Province/State | C7: District | F7: PreSAC | G7: SAC | H7: Adults | I7: Total | J7: PreSAC | K7: SAC | L7: Adults | M7: Total | N7: PreSAC | O7: SAC | P7: Adults | Q7: Total
A9: =IF(COUNTRY_INFO!A9=0," ",COUNTRY_INFO!A9) -> Zanzibar | B9: =IF(COUNTRY_INFO!B9=0," ",COUNTRY_INFO!B9) -> Kusini Pemba | C9: =IF(COUNTRY_INFO!C9=0," ",COUNTRY_INFO!C9) -> Mkoani | D9: MDA1 (IVM+ALB) | F9: =I9*[2]INTRO!$E$48 -> 15741.696 | G9: =I9*[2]INTRO!$E$49 -> 39723.186 | H9: =I9*[2]INTRO!$E$50 -> 67517.118 | I9: 122982 | K9: 33075 | L9: 54841 | M9: =L9+K9 -> 87916 | O9: =IF(G9<>0, IF(K9/G9*100=0, "-", K9/G9*100), " ") -> 83.26371404 | P9: =IF(H9<>0, IF(L9/H9*100=0, "-", L9/H9*100), " ") -> 81.22532718 | Q9: 71.48688426
A10: =IF(COUNTRY_INFO!A10=0," ",COUNTRY_INFO!A10) -> Zanzibar | B10: =IF(COUNTRY_INFO!B10=0," ",COUNTRY_INFO!B10) -> Kusini Pemba | C10: =IF(COUNTRY_INFO!C10=0," ",COUNTRY_INFO!C10) -> Chake Chake | D10: MDA1 (IVM+ALB) | F10: =I10*[2]INTRO!$E$48 -> 13685.504 | G10: =I10*[2]INTRO!$E$49 -> 34534.514 | H10: =I10*[2]INTRO!$E$50 -> 58697.982 | I10: 106918 | K10: 28331 | L10: 49960 | M10: =L10+K10 -> 78291 | O10: =IF(G10<>0, IF(K10/G10*100=0, "-", K10/G10*100), " ") -> 82.03677052 | P10: =IF(H10<>0, IF(L10/H10*100=0, "-", L10/H10*100), " ") -> 85.11365859 | Q10: =IF(I10<>0, IF(M10/I10*100=0, "-", M10/I10*100), " ") -> 73.22527544
A11: =IF(COUNTRY_INFO!A11=0," ",COUNTRY_INFO!A11) -> Zanzibar | B11: =IF(COUNTRY_INFO!B11=0," ",COUNTRY_INFO!B11) -> Kaskazini Pemba | C11: =IF(COUNTRY_INFO!C11=0," ",COUNTRY_INFO!C11) -> Wete | D11: MDA1 (IVM+ALB) | F11: =I11*[2]INTRO!$E$48 -> 6679.552 | G11: =I11*[2]INTRO!$E$49 -> 16855.432 | H11: =I11*[2]INTRO!$E$50 -> 28649.016 | I11: 52184 | K11: 10703 | L11: 33750 | M11: 44453 | O11: 63.49881747 | P11: 117.8050932 | Q11: 85.18511421
A12: =IF(COUNTRY_INFO!A12=0," ",COUNTRY_INFO!A12) -> Zanzibar | B12: =IF(COUNTRY_INFO!B12=0," ",COUNTRY_INFO!B12) -> Kaskazini Pemba | C12: =IF(COUNTRY_INFO!C12=0," ",COUNTRY_INFO!C12) -> Micheweni | D12: MDA1 (IVM+ALB) | F12: =I12*[2]INTRO!$E$48 -> 12690.816 | G12: =I12*[2]INTRO!$E$49 -> 32024.481 | H12: =I12*[2]INTRO!$E$50 -> 54431.703 | I12: 99147 | K12: 23206 | L12: 49668 | M12: 72874 | O12: 72.4633133 | P12: 91.2482933 | Q12: 73.50096322
A13: =IF(COUNTRY_INFO!A13=0," ",COUNTRY_INFO!A13) -> Zanzibar | B13: =IF(COUNTRY_INFO!B13=0," ",COUNTRY_INFO!B13) -> Kaskazini Unguja | C13: =IF(COUNTRY_INFO!C13=0," ",COUNTRY_INFO!C13) -> Kaskazini A | D13: MDA1 (IVM+ALB) | F13: =I13*[2]INTRO!$E$48 -> 14149.376 | G13: =I13*[2]INTRO!$E$49 -> 35705.066 | H13: =I13*[2]INTRO!$E$50 -> 60687.558 | I13: 110542 | K13: 29822 | L13: 57587 | M13: 87409 | O13: 83.52316167 | P13: 94.89094948 | Q13: 79.07311248
A14: =IF(COUNTRY_INFO!A14=0," ",COUNTRY_INFO!A14) -> Zanzibar | B14: =IF(COUNTRY_INFO!B14=0," ",COUNTRY_INFO!B14) -> Kaskazini Unguja | C14: =IF(COUNTRY_INFO!C14=0," ",COUNTRY_INFO!C14) -> Kaskazini B | D14: MDA1 (IVM+ALB) | F14: =I14*[2]INTRO!$E$48 -> 14028.672 | G14: =I14*[2]INTRO!$E$49 -> 35400.477 | H14: =I14*[2]INTRO!$E$50 -> 60169.851 | I14: 109599 | K14: 33665 | L14: 56406 | M14: 90071 | O14: 95.09758866 | P14: 93.74462303 | Q14: 82.18231918
A15: =IF(COUNTRY_INFO!A15=0," ",COUNTRY_INFO!A15) -> Zanzibar | B15: =IF(COUNTRY_INFO!B15=0," ",COUNTRY_INFO!B15) -> Kusini Unguja | C15: =IF(COUNTRY_INFO!C15=0," ",COUNTRY_INFO!C15) -> Kati | D15: MDA1 (IVM+ALB) | F15: =I15*[2]INTRO!$E$48 -> 9607.68 | G15: =I15*[2]INTRO!$E$49 -> 24244.38 | H15: =I15*[2]INTRO!$E$50 -> 41207.94 | I15: 75060 | K15: 29357 | L15: 36400 | M15: 65757 | O15: 121.0878562 | P15: 88.33249126 | Q15: 87.60591527
A16: =IF(COUNTRY_INFO!A16=0," ",COUNTRY_INFO!A16) -> Zanzibar | B16: =IF(COUNTRY_INFO!B16=0," ",COUNTRY_INFO!B16) -> Kusini Unguja | C16: =IF(COUNTRY_INFO!C16=0," ",COUNTRY_INFO!C16) -> Kusini | D16: MDA1 (IVM+ALB) | F16: =I16*[2]INTRO!$E$48 -> 4880.128 | G16: =I16*[2]INTRO!$E$49 -> 12314.698 | H16: =I16*[2]INTRO!$E$50 -> 20931.174 | I16: 38126 | K16: 11230 | L16: 20089 | M16: 31319 | O16: 91.19184246 | P16: 95.97646076 | Q16: 82.14604207
A17: =IF(COUNTRY_INFO!A17=0," ",COUNTRY_INFO!A17) -> Zanzibar | B17: =IF(COUNTRY_INFO!B17=0," ",COUNTRY_INFO!B17) -> Mjini Magharibi | C17: =IF(COUNTRY_INFO!C17=0," ",COUNTRY_INFO!C17) -> Mjini | D17: MDA1 (IVM+ALB) | F17: =I17*[2]INTRO!$E$48 -> 19288.064 | G17: =I17*[2]INTRO!$E$49 -> 48672.224 | H17: =I17*[2]INTRO!$E$50 -> 82727.712 | I17: 150688 | K17: 42172 | L17: 94331 | M17: 136503 | O17: 86.64490039 | P17: 114.0258781 | Q17: 90.58650987
A18: =IF(COUNTRY_INFO!A18=0," ",COUNTRY_INFO!A18) -> Zanzibar | B18: =IF(COUNTRY_INFO!B18=0," ",COUNTRY_INFO!B18) -> Mjini Magharibi | C18: =IF(COUNTRY_INFO!C18=0," ",COUNTRY_INFO!C18) -> Magharibi A | D18: MDA1 (IVM+ALB) | F18: =I18*[2]INTRO!$E$48 -> 38452.224 | G18: =I18*[2]INTRO!$E$49 -> 97031.784 | H18: =I18*[2]INTRO!$E$50 -> 164923.992 | I18: 300408 | K18: 80289 | L18: 153126 | M18: 233415 | O18: 82.74505187 | P18: 92.84640648 | Q18: 77.69932891

Sheet MDA2 (hidden)
A1: MDA 2 - Diethylcarbamazine citrate (DEC) + Albendazole (ALB)
A2: Administrative structure, population requiring PC by age group, population treated by age group and coverage
A4: TOTAL | F4: =SUM(F$9:F$1000) -> 0 | G4: =SUM(G$9:G$1000) -> 0 | H4: 0 | I4: 0 | J4: 0 | K4: 0 | L4: 0 | M4: 0 | N4: =IF(F4<>0, IF(J4/F4*100=0, "-", J4/F4*100), " ") ->  | O4: =IF(G4<>0, IF(K4/G4*100=0, "-", K4/G4*100), " ") ->  | P4: =IF(H4<>0, IF(L4/H4*100=0, "-", L4/H4*100), " ") ->  | Q4: =IF(I4<>0, IF(M4/I4*100=0, "-", M4/I4*100), " ") -> 
D6: PC implemented | E6: Date | F6: Population targeted for MDA 2 | J6: Population treated | N6: Programme coverage (%)
A7: Country | B7: Province/State | C7: District | F7: PreSAC | G7: SAC | H7: Adults | I7: Total | J7: PreSAC | K7: SAC | L7: Adults | M7: Total | N7: PreSAC | O7: SAC | P7: Adults | Q7: Total
A9: =IF(COUNTRY_INFO!A9=0," ",COUNTRY_INFO!A9) -> Zanzibar | B9: =IF(COUNTRY_INFO!B9=0," ",COUNTRY_INFO!B9) -> Kusini Pemba | C9: =IF(COUNTRY_INFO!C9=0," ",COUNTRY_INFO!C9) -> Mkoani | D9: =IF(COUNTRY_INFO!$T$9:$T$1000="MDA2 (DEC+ALB)", COUNTRY_INFO!$T$9:$T$1000, " ") ->  | I9: =SUM(F9:H9) -> 0 | M9: =SUM(J9:L9) -> 0 | N9: =IF(F9<>0, IF(J9/F9*100=0, "-", J9/F9*100), " ") -> 
A10: =IF(COUNTRY_INFO!A10=0," ",COUNTRY_INFO!A10) -> Zanzibar | B10: =IF(COUNTRY_INFO!B10=0," ",COUNTRY_INFO!B10) -> Kusini Pemba | C10: =IF(COUNTRY_INFO!C10=0," ",COUNTRY_INFO!C10) -> Chake Chake | D10: =IF(COUNTRY_INFO!$T$9:$T$1000="MDA2 (DEC+ALB)", COUNTRY_INFO!$T$9:$T$1000, " ") ->  | I10: =SUM(F10:H10) -> 0 | M10: =SUM(J10:L10) -> 0 | N10: =IF(F10<>0, IF(J10/F10*100=0, "-", J10/F10*100), " ") ->  | O10: =IF(G10<>0, IF(K10/G10*100=0, "-", K10/G10*100), " ") ->  | P10: =IF(H10<>0, IF(L10/H10*100=0, "-", L10/H10*100), " ") ->  | Q10: =IF(I10<>0, IF(M10/I10*100=0, "-", M10/I10*100), " ") -> 
A11: =IF(COUNTRY_INFO!A11=0," ",COUNTRY_INFO!A11) -> Zanzibar | B11: =IF(COUNTRY_INFO!B11=0," ",COUNTRY_INFO!B11) -> Kaskazini Pemba | C11: =IF(COUNTRY_INFO!C11=0," ",COUNTRY_INFO!C11) -> Wete | D11: =IF(COUNTRY_INFO!$T$9:$T$1000="MDA2 (DEC+ALB)", COUNTRY_INFO!$T$9:$T$1000, " ") ->  | I11: 0 | M11: 0
A12: =IF(COUNTRY_INFO!A12=0," ",COUNTRY_INFO!A12) -> Zanzibar | B12: =IF(COUNTRY_INFO!B12=0," ",COUNTRY_INFO!B12) -> Kaskazini Pemba | C12: =IF(COUNTRY_INFO!C12=0," ",COUNTRY_INFO!C12) -> Micheweni | D12: =IF(COUNTRY_INFO!$T$9:$T$1000="MDA2 (DEC+ALB)", COUNTRY_INFO!$T$9:$T$1000, " ") ->  | I12: 0 | M12: 0
A13: =IF(COUNTRY_INFO!A13=0," ",COUNTRY_INFO!A13) -> Zanzibar | B13: =IF(COUNTRY_INFO!B13=0," ",COUNTRY_INFO!B13) -> Kaskazini Unguja | C13: =IF(COUNTRY_INFO!C13=0," ",COUNTRY_INFO!C13) -> Kaskazini A | D13: =IF(COUNTRY_INFO!$T$9:$T$1000="MDA2 (DEC+ALB)", COUNTRY_INFO!$T$9:$T$1000, " ") ->  | I13: 0 | M13: 0
A14: =IF(COUNTRY_INFO!A14=0," ",COUNTRY_INFO!A14) -> Zanzibar | B14: =IF(COUNTRY_INFO!B14=0," ",COUNTRY_INFO!B14) -> Kaskazini Unguja | C14: =IF(COUNTRY_INFO!C14=0," ",COUNTRY_INFO!C14) -> Kaskazini B | D14: =IF(COUNTRY_INFO!$T$9:$T$1000="MDA2 (DEC+ALB)", COUNTRY_INFO!$T$9:$T$1000, " ") ->  | I14: 0 | M14: 0
A15: =IF(COUNTRY_INFO!A15=0," ",COUNTRY_INFO!A15) -> Zanzibar | B15: =IF(COUNTRY_INFO!B15=0," ",COUNTRY_INFO!B15) -> Kusini Unguja | C15: =IF(COUNTRY_INFO!C15=0," ",COUNTRY_INFO!C15) -> Kati | D15: =IF(COUNTRY_INFO!$T$9:$T$1000="MDA2 (DEC+ALB)", COUNTRY_INFO!$T$9:$T$1000, " ") ->  | I15: 0 | M15: 0
A16: =IF(COUNTRY_INFO!A16=0," ",COUNTRY_INFO!A16) -> Zanzibar | B16: =IF(COUNTRY_INFO!B16=0," ",COUNTRY_INFO!B16) -> Kusini Unguja | C16: =IF(COUNTRY_INFO!C16=0," ",COUNTRY_INFO!C16) -> Kusini | D16: =IF(COUNTRY_INFO!$T$9:$T$1000="MDA2 (DEC+ALB)", COUNTRY_INFO!$T$9:$T$1000, " ") ->  | I16: 0 | M16: 0
A17: =IF(COUNTRY_INFO!A17=0," ",COUNTRY_INFO!A17) -> Zanzibar | B17: =IF(COUNTRY_INFO!B17=0," ",COUNTRY_INFO!B17) -> Mjini Magharibi | C17: =IF(COUNTRY_INFO!C17=0," ",COUNTRY_INFO!C17) -> Mjini | D17: =IF(COUNTRY_INFO!$T$9:$T$1000="MDA2 (DEC+ALB)", COUNTRY_INFO!$T$9:$T$1000, " ") ->  | I17: 0 | M17: 0
A18: =IF(COUNTRY_INFO!A18=0," ",COUNTRY_INFO!A18) -> Zanzibar | B18: =IF(COUNTRY_INFO!B18=0," ",COUNTRY_INFO!B18) -> Mjini Magharibi | C18: =IF(COUNTRY_INFO!C18=0," ",COUNTRY_INFO!C18) -> Magharibi A | D18: =IF(COUNTRY_INFO!$T$9:$T$1000="MDA2 (DEC+ALB)", COUNTRY_INFO!$T$9:$T$1000, " ") ->  | I18: 0 | M18: 0

Sheet MDA3 (hidden)
A1: MDA 3 - Ivermectin (IVM)
A2: Administrative structure, population requiring PC by age group, population treated by age group and coverage
A4: TOTAL | F4: =SUM(F$9:F$1000) -> 0 | G4: 0 | H4: 0 | I4: 0 | J4: 0 | K4: 0 | L4: 0 | M4: 0 | N4: 0 | O4: 0 | P4: 0 | Q4: 0 | R4: =IF(F4<>0, IF(O4/F4*100=0, "-", O4/F4*100), " ") ->  | S4: =IF(G4<>0, IF(P4/G4*100=0, "-", P4/G4*100), " ") ->  | T4: =IF(H4<>0, IF(Q4/H4*100=0, "-", Q4/H4*100), " ") -> 
D6: PC implemented | E6: Date | F6: Population targeted for MDA 3 | I6: Population treated - 1st round | L6: Population treated - 2nd round | O6: Population treated | R6: Programme coverage (%)
A7: Country | B7: Province/State | C7: District | F7: SAC | G7: Adults | H7: Total | I7: SAC | J7: Adults | K7: Total | L7: SAC | M7: Adults | N7: Total | O7: SAC | P7: Adults | Q7: Total | R7: SAC | S7: Adults | T7: Total
A9: =IF(COUNTRY_INFO!A9=0," ",COUNTRY_INFO!A9) -> Zanzibar | B9: =IF(COUNTRY_INFO!B9=0," ",COUNTRY_INFO!B9) -> Kusini Pemba | C9: =IF(COUNTRY_INFO!C9=0," ",COUNTRY_INFO!C9) -> Mkoani | D9: =IF(COUNTRY_INFO!$T$9:$T$1000="MDA3 (IVM)", COUNTRY_INFO!$T$9:$T$1000, " ") ->  | H9: =SUM(F9:G9) -> 0 | K9: =SUM(I9:J9) -> 0 | N9: =SUM(L9:M9) -> 0 | O9: =MAX(I9,L9) -> 0 | P9: 0 | Q9: =SUM(O9:P9) -> 0 | R9: =IF(F9<>0, IF(MAX(I9,L9)/F9*100=0, "-", MAX(I9,L9)/F9*100), " ") ->  | T9: =IF(H9<>0, IF((MAX(I9,L9)+MAX(J9,M9))/H9*100=0, "-",(MAX(I9,L9)+MAX(J9,M9))/H9*100), " ") -> 
A10: =IF(COUNTRY_INFO!A10=0," ",COUNTRY_INFO!A10) -> Zanzibar | B10: =IF(COUNTRY_INFO!B10=0," ",COUNTRY_INFO!B10) -> Kusini Pemba | C10: =IF(COUNTRY_INFO!C10=0," ",COUNTRY_INFO!C10) -> Chake Chake | D10: =IF(COUNTRY_INFO!$T$9:$T$1000="MDA3 (IVM)", COUNTRY_INFO!$T$9:$T$1000, " ") ->  | H10: =SUM(F10:G10) -> 0 | K10: =SUM(I10:J10) -> 0 | N10: =SUM(L10:M10) -> 0 | O10: =MAX(I10,L10) -> 0 | P10: =MAX(J10,M10) -> 0 | Q10: =SUM(O10:P10) -> 0 | R10: =IF(F10<>0, IF(MAX(I10,L10)/F10*100=0, "-", MAX(I10,L10)/F10*100), " ") ->  | S10: =IF(G10<>0, IF(MAX(J10,M10)/G10*100=0, "-", MAX(J10,M10)/G10*100), " ") ->  | T10: =IF(H10<>0, IF((MAX(I10,L10)+MAX(J10,M10))/H10*100=0, "-",(MAX(I10,L10)+MAX(J10,M10))/H10*100), " ") -> 
A11: =IF(COUNTRY_INFO!A11=0," ",COUNTRY_INFO!A11) -> Zanzibar | B11: =IF(COUNTRY_INFO!B11=0," ",COUNTRY_INFO!B11) -> Kaskazini Pemba | C11: =IF(COUNTRY_INFO!C11=0," ",COUNTRY_INFO!C11) -> Wete | D11: =IF(COUNTRY_INFO!$T$9:$T$1000="MDA3 (IVM)", COUNTRY_INFO!$T$9:$T$1000, " ") ->  | H11: 0 | K11: 0 | N11: 0 | O11: 0 | P11: 0 | Q11: 0
A12: =IF(COUNTRY_INFO!A12=0," ",COUNTRY_INFO!A12) -> Zanzibar | B12: =IF(COUNTRY_INFO!B12=0," ",COUNTRY_INFO!B12) -> Kaskazini Pemba | C12: =IF(COUNTRY_INFO!C12=0," ",COUNTRY_INFO!C12) -> Micheweni | D12: =IF(COUNTRY_INFO!$T$9:$T$1000="MDA3 (IVM)", COUNTRY_INFO!$T$9:$T$1000, " ") ->  | H12: 0 | K12: 0 | N12: 0 | O12: 0 | P12: 0 | Q12: 0
A13: =IF(COUNTRY_INFO!A13=0," ",COUNTRY_INFO!A13) -> Zanzibar | B13: =IF(COUNTRY_INFO!B13=0," ",COUNTRY_INFO!B13) -> Kaskazini Unguja | C13: =IF(COUNTRY_INFO!C13=0," ",COUNTRY_INFO!C13) -> Kaskazini A | D13: =IF(COUNTRY_INFO!$T$9:$T$1000="MDA3 (IVM)", COUNTRY_INFO!$T$9:$T$1000, " ") ->  | H13: 0 | K13: 0 | N13: 0 | O13: 0 | P13: 0 | Q13: 0
A14: =IF(COUNTRY_INFO!A14=0," ",COUNTRY_INFO!A14) -> Zanzibar | B14: =IF(COUNTRY_INFO!B14=0," ",COUNTRY_INFO!B14) -> Kaskazini Unguja | C14: =IF(COUNTRY_INFO!C14=0," ",COUNTRY_INFO!C14) -> Kaskazini B | D14: =IF(COUNTRY_INFO!$T$9:$T$1000="MDA3 (IVM)", COUNTRY_INFO!$T$9:$T$1000, " ") ->  | H14: 0 | K14: 0 | N14: 0 | O14: 0 | P14: 0 | Q14: 0
A15: =IF(COUNTRY_INFO!A15=0," ",COUNTRY_INFO!A15) -> Zanzibar | B15: =IF(COUNTRY_INFO!B15=0," ",COUNTRY_INFO!B15) -> Kusini Unguja | C15: =IF(COUNTRY_INFO!C15=0," ",COUNTRY_INFO!C15) -> Kati | D15: =IF(COUNTRY_INFO!$T$9:$T$1000="MDA3 (IVM)", COUNTRY_INFO!$T$9:$T$1000, " ") ->  | H15: 0 | K15: 0 | N15: 0 | O15: 0 | P15: 0 | Q15: 0
A16: =IF(COUNTRY_INFO!A16=0," ",COUNTRY_INFO!A16) -> Zanzibar | B16: =IF(COUNTRY_INFO!B16=0," ",COUNTRY_INFO!B16) -> Kusini Unguja | C16: =IF(COUNTRY_INFO!C16=0," ",COUNTRY_INFO!C16) -> Kusini | D16: =IF(COUNTRY_INFO!$T$9:$T$1000="MDA3 (IVM)", COUNTRY_INFO!$T$9:$T$1000, " ") ->  | H16: 0 | K16: 0 | N16: 0 | O16: 0 | P16: 0 | Q16: 0
A17: =IF(COUNTRY_INFO!A17=0," ",COUNTRY_INFO!A17) -> Zanzibar | B17: =IF(COUNTRY_INFO!B17=0," ",COUNTRY_INFO!B17) -> Mjini Magharibi | C17: =IF(COUNTRY_INFO!C17=0," ",COUNTRY_INFO!C17) -> Mjini | D17: =IF(COUNTRY_INFO!$T$9:$T$1000="MDA3 (IVM)", COUNTRY_INFO!$T$9:$T$1000, " ") ->  | H17: 0 | K17: 0 | N17: 0 | O17: 0 | P17: 0 | Q17: 0
A18: =IF(COUNTRY_INFO!A18=0," ",COUNTRY_INFO!A18) -> Zanzibar | B18: =IF(COUNTRY_INFO!B18=0," ",COUNTRY_INFO!B18) -> Mjini Magharibi | C18: =IF(COUNTRY_INFO!C18=0," ",COUNTRY_INFO!C18) -> Magharibi A | D18: =IF(COUNTRY_INFO!$T$9:$T$1000="MDA3 (IVM)", COUNTRY_INFO!$T$9:$T$1000, " ") ->  | H18: 0 | K18: 0 | N18: 0 | O18: 0 | P18: 0 | Q18: 0

Sheet T1_R1
A1: T 1 - Praziquantel (PZQ) and Albendazole (ALB) or Mebendazole (MBD)
A2: Administrative structure, population requiring PC by age group, population treated by age group and coverage
A4: TOTAL | G4: =SUM(G$9:G$1000) -> 0 | H4: 411998 | I4: 206002 | J4: 700266 | K4: =SUM(K$9:K$1000) -> 1112264 | L4: 0 | M4: 256620 | N4: 508069 | O4: 764689 | P4: =IF(G4<>0, IF(L4/G4*100=0, "-", L4/G4*100), " ") ->  | Q4: =IF(OR(I4<>0,H4<>0), IF(M4/MAX(H4,I4)*100=0, "-", M4/MAX(H4,I4)*100), " ") -> 62.28671013 | R4: =IF(J4<>0, IF(N4/J4*100=0, "-", N4/J4*100), " ") -> 72.5537153 | S4: =IF(K4<>0, IF(O4/K4*100=0, "-", O4/K4*100), " ") -> 68.7506743
D6: PC implemented | E6: Medicine | F6: Date | G6: Population targeted for T1 | L6: Population treated | P6: Programme coverage (%)
A7: Country | B7: Province/State | C7: District | G7: PreSAC (ALB) | H7: SAC (ALB) | I7: SAC (PZQ) | J7: Adults (PZQ) | K7: Total | L7: PreSAC | M7: SAC | N7: Adults | O7: Total | P7: PreSAC | Q7: SAC | R7: Adults | S7: Total
A9: =IF(COUNTRY_INFO!A9=0," ",COUNTRY_INFO!A9) -> Zanzibar | B9: =IF(COUNTRY_INFO!B9=0," ",COUNTRY_INFO!B9) -> Kusini Pemba | C9: =IF(COUNTRY_INFO!C9=0," ",COUNTRY_INFO!C9) -> Mkoani | D9: =IF(OR(COUNTRY_INFO!$T$9:$T$1000="T1 (PZQ+ALB/MBD)",COUNTRY_INFO!$U$9:$U$1000="T1 (PZQ+ALB/MBD)"), "T1 (PZQ+ALB/MBD)", " ") -> T1 (PZQ+ALB/MBD) | E9: PZQ+ALB | F9: March | H9: 49413 | I9: 24707 | J9: 83987 | K9: =MAX(H9:I9)+G9+J9 -> 133400 | M9: 6075 | N9: 54841 | O9: =SUM(L9:N9) -> 60916 | P9: =IF(G9<>0, IF(L9/G9*100=0, "-", L9/G9*100), " ") ->  | Q9: =IF(OR(I9<>0,H9<>0), IF(M9/MAX(H9,I9)*100=0, "-", M9/MAX(H9,I9)*100), " ") -> 12.2943355 | R9: =IF(J9<>0, IF(N9/J9*100=0, "-", N9/J9*100), " ") -> 65.29701025 | S9: 45.66416792
A10: =IF(COUNTRY_INFO!A10=0," ",COUNTRY_INFO!A10) -> Zanzibar | B10: =IF(COUNTRY_INFO!B10=0," ",COUNTRY_INFO!B10) -> Kusini Pemba | C10: =IF(COUNTRY_INFO!C10=0," ",COUNTRY_INFO!C10) -> Chake Chake | D10: =IF(OR(COUNTRY_INFO!$T$9:$T$1000="T1 (PZQ+ALB/MBD)",COUNTRY_INFO!$U$9:$U$1000="T1 (PZQ+ALB/MBD)"), "T1 (PZQ+ALB/MBD)", " ") -> T1 (PZQ+ALB/MBD) | E10: PZQ+ALB | F10: March | H10: 34535 | I10: 17268 | J10: 58698 | K10: =MAX(H10:I10)+G10+J10 -> 93233 | M10: 18331 | N10: 34960 | O10: =SUM(L10:N10) -> 53291 | P10: =IF(G10<>0, IF(L10/G10*100=0, "-", L10/G10*100), " ") ->  | Q10: =IF(OR(I10<>0,H10<>0), IF(M10/MAX(H10,I10)*100=0, "-", M10/MAX(H10,I10)*100), " ") -> 53.07948458 | R10: =IF(J10<>0, IF(N10/J10*100=0, "-", N10/J10*100), " ") -> 59.55909912 | S10: =IF(K10<>0, IF(O10/K10*100=0, "-", O10/K10*100), " ") -> 57.15894587
A11: =IF(COUNTRY_INFO!A11=0," ",COUNTRY_INFO!A11) -> Zanzibar | B11: =IF(COUNTRY_INFO!B11=0," ",COUNTRY_INFO!B11) -> Kaskazini Pemba | C11: =IF(COUNTRY_INFO!C11=0," ",COUNTRY_INFO!C11) -> Wete | D11: =IF(OR(COUNTRY_INFO!$T$9:$T$1000="T1 (PZQ+ALB/MBD)",COUNTRY_INFO!$U$9:$U$1000="T1 (PZQ+ALB/MBD)"), "T1 (PZQ+ALB/MBD)", " ") -> T1 (PZQ+ALB/MBD) | E11: PZQ+ALB | F11: March | H11: 23316 | I11: 11658 | J11: 39629 | K11: 62945 | M11: 26703 | N11: 61750 | O11: 88453 | Q11: 114.5265054 | R11: 155.8202327 | S11: 140.5242672
A12: =IF(COUNTRY_INFO!A12=0," ",COUNTRY_INFO!A12) -> Zanzibar | B12: =IF(COUNTRY_INFO!B12=0," ",COUNTRY_INFO!B12) -> Kaskazini Pemba | C12: =IF(COUNTRY_INFO!C12=0," ",COUNTRY_INFO!C12) -> Micheweni | D12: =IF(OR(COUNTRY_INFO!$T$9:$T$1000="T1 (PZQ+ALB/MBD)",COUNTRY_INFO!$U$9:$U$1000="T1 (PZQ+ALB/MBD)"), "T1 (PZQ+ALB/MBD)", " ") -> T1 (PZQ+ALB/MBD) | E12: PZQ+ALB | F12: March | H12: 34286 | I12: 17143 | J12: 58275 | K12: 92561 | M12: 13206 | N12: 29668 | O12: 42874 | Q12: 38.51717902 | R12: 50.91033891 | S12: 46.31972429
A13: =IF(COUNTRY_INFO!A13=0," ",COUNTRY_INFO!A13) -> Zanzibar | B13: =IF(COUNTRY_INFO!B13=0," ",COUNTRY_INFO!B13) -> Kaskazini Unguja | C13: =IF(COUNTRY_INFO!C13=0," ",COUNTRY_INFO!C13) -> Kaskazini A | D13: =IF(OR(COUNTRY_INFO!$T$9:$T$1000="T1 (PZQ+ALB/MBD)",COUNTRY_INFO!$U$9:$U$1000="T1 (PZQ+ALB/MBD)"), "T1 (PZQ+ALB/MBD)", " ") -> T1 (PZQ+ALB/MBD) | E13: PZQ+ALB | F13: March | H13: 35705 | I13: 17853 | J13: 60688 | K13: 96393 | M13: 26822 | N13: 42587 | O13: 69409 | Q13: 75.12113149 | R13: 70.17367519 | S13: 72.00626602
A14: =IF(COUNTRY_INFO!A14=0," ",COUNTRY_INFO!A14) -> Zanzibar | B14: =IF(COUNTRY_INFO!B14=0," ",COUNTRY_INFO!B14) -> Kaskazini Unguja | C14: =IF(COUNTRY_INFO!C14=0," ",COUNTRY_INFO!C14) -> Kaskazini B | D14: =IF(OR(COUNTRY_INFO!$T$9:$T$1000="T1 (PZQ+ALB/MBD)",COUNTRY_INFO!$U$9:$U$1000="T1 (PZQ+ALB/MBD)"), "T1 (PZQ+ALB/MBD)", " ") -> T1 (PZQ+ALB/MBD) | E14: PZQ+ALB | F14: March | H14: 35401 | I14: 17701 | J14: 60170 | K14: 95571 | M14: 13665 | N14: 30406 | O14: 44071 | Q14: 38.6006045 | R14: 50.53348845 | S14: 46.11336075
A15: =IF(COUNTRY_INFO!A15=0," ",COUNTRY_INFO!A15) -> Zanzibar | B15: =IF(COUNTRY_INFO!B15=0," ",COUNTRY_INFO!B15) -> Kusini Unguja | C15: =IF(COUNTRY_INFO!C15=0," ",COUNTRY_INFO!C15) -> Kati | D15: =IF(OR(COUNTRY_INFO!$T$9:$T$1000="T1 (PZQ+ALB/MBD)",COUNTRY_INFO!$U$9:$U$1000="T1 (PZQ+ALB/MBD)"), "T1 (PZQ+ALB/MBD)", " ") -> T1 (PZQ+ALB/MBD) | E15: PZQ+ALB | F15: March | H15: 24245 | I15: 12123 | J15: 41208 | K15: 65453 | M15: 29357 | N15: 36400 | O15: 65757 | Q15: 121.0847597 | R15: 88.33236265 | S15: 100.4644554
A16: =IF(COUNTRY_INFO!A16=0," ",COUNTRY_INFO!A16) -> Zanzibar | B16: =IF(COUNTRY_INFO!B16=0," ",COUNTRY_INFO!B16) -> Kusini Unguja | C16: =IF(COUNTRY_INFO!C16=0," ",COUNTRY_INFO!C16) -> Kusini | D16: =IF(OR(COUNTRY_INFO!$T$9:$T$1000="T1 (PZQ+ALB/MBD)",COUNTRY_INFO!$U$9:$U$1000="T1 (PZQ+ALB/MBD)"), "T1 (PZQ+ALB/MBD)", " ") ->  | K16: 0 | O16: 0
A17: =IF(COUNTRY_INFO!A17=0," ",COUNTRY_INFO!A17) -> Zanzibar | B17: =IF(COUNTRY_INFO!B17=0," ",COUNTRY_INFO!B17) -> Mjini Magharibi | C17: =IF(COUNTRY_INFO!C17=0," ",COUNTRY_INFO!C17) -> Mjini | D17: =IF(OR(COUNTRY_INFO!$T$9:$T$1000="T1 (PZQ+ALB/MBD)",COUNTRY_INFO!$U$9:$U$1000="T1 (PZQ+ALB/MBD)"), "T1 (PZQ+ALB/MBD)", " ") -> T1 (PZQ+ALB/MBD) | E17: PZQ+ALB | F17: March | H17: 55778 | I17: 27889 | J17: 94806 | K17: 150584 | M17: 42172 | N17: 94331 | O17: 136503 | Q17: 75.60687009 | R17: 99.49897686 | S17: 90.64907294
A18: =IF(COUNTRY_INFO!A18=0," ",COUNTRY_INFO!A18) -> Zanzibar | B18: =IF(COUNTRY_INFO!B18=0," ",COUNTRY_INFO!B18) -> Mjini Magharibi | C18: =IF(COUNTRY_INFO!C18=0," ",COUNTRY_INFO!C18) -> Magharibi A | D18: =IF(OR(COUNTRY_INFO!$T$9:$T$1000="T1 (PZQ+ALB/MBD)",COUNTRY_INFO!$U$9:$U$1000="T1 (PZQ+ALB/MBD)"), "T1 (PZQ+ALB/MBD)", " ") -> T1 (PZQ+ALB/MBD) | E18: PZQ+ALB | F18: March | H18: 119319 | I18: 59660 | J18: 202805 | K18: 322124 | M18: 80289 | N18: 123126 | O18: 203415 | Q18: 67.28936716 | R18: 60.71152092 | S18: 63.14804237

Sheet T1_R2
A1: T 1 - Praziquantel (PZQ) and Albendazole (ALB) or Mebendazole (MBD)
A2: Administrative structure, population requiring PC by age group, population treated by age group and coverage
A4: TOTAL | G4: =SUM(G$9:G$1000) -> 0 | H4: 411998 | I4: 205999 | J4: 700266 | K4: =SUM(K$9:K$1000) -> 1112264 | L4: 0 | M4: 243761 | N4: 526953 | O4: 770714 | P4: =IF(G4<>0, IF(L4/G4*100=0, "-", L4/G4*100), " ") ->  | Q4: =IF(OR(I4<>0,H4<>0), IF(M4/MAX(H4,I4)*100=0, "-", M4/MAX(H4,I4)*100), " ") -> 59.16557847 | R4: =IF(J4<>0, IF(N4/J4*100=0, "-", N4/J4*100), " ") -> 75.25040485 | S4: =IF(K4<>0, IF(O4/K4*100=0, "-", O4/K4*100), " ") -> 69.29236224
D6: PC implemented | E6: Medicine | F6: Date | G6: Population targeted for T1 | L6: Population treated | P6: Programme coverage (%)
A7: Country | B7: Province/State | C7: District | G7: PreSAC (ALB) | H7: SAC (ALB) | I7: SAC (PZQ) | J7: Adults (PZQ) | K7: Total | L7: PreSAC | M7: SAC | N7: Adults | O7: Total | P7: PreSAC | Q7: SAC | R7: Adults | S7: Total
A9: =IF(COUNTRY_INFO!A9=0," ",COUNTRY_INFO!A9) -> Zanzibar | B9: =IF(COUNTRY_INFO!B9=0," ",COUNTRY_INFO!B9) -> Kusini Pemba | C9: =IF(COUNTRY_INFO!C9=0," ",COUNTRY_INFO!C9) -> Mkoani | D9: =IF(OR(COUNTRY_INFO!$T$9:$T$1000="T1 (PZQ+ALB/MBD)",COUNTRY_INFO!$U$9:$U$1000="T1 (PZQ+ALB/MBD)"), "T1 (PZQ+ALB/MBD)", " ") -> T1 (PZQ+ALB/MBD) | E9: PZQ+ALB | F9: November | H9: 49413 | I9: 24706.5 | J9: 83987 | K9: =MAX(H9:I9)+G9+J9 -> 133400 | M9: 7590 | N9: 35021 | O9: =SUM(L9:N9) -> 42611 | P9: =IF(G9<>0, IF(L9/G9*100=0, "-", L9/G9*100), " ") ->  | Q9: =IF(OR(I9<>0,H9<>0), IF(M9/MAX(H9,I9)*100=0, "-", M9/MAX(H9,I9)*100), " ") -> 15.36033028 | R9: =IF(J9<>0, IF(N9/J9*100=0, "-", N9/J9*100), " ") -> 41.69811995 | S9: 31.94227886
A10: =IF(COUNTRY_INFO!A10=0," ",COUNTRY_INFO!A10) -> Zanzibar | B10: =IF(COUNTRY_INFO!B10=0," ",COUNTRY_INFO!B10) -> Kusini Pemba | C10: =IF(COUNTRY_INFO!C10=0," ",COUNTRY_INFO!C10) -> Chake Chake | D10: =IF(OR(COUNTRY_INFO!$T$9:$T$1000="T1 (PZQ+ALB/MBD)",COUNTRY_INFO!$U$9:$U$1000="T1 (PZQ+ALB/MBD)"), "T1 (PZQ+ALB/MBD)", " ") -> T1 (PZQ+ALB/MBD) | E10: PZQ+ALB | F10: November | H10: 34535 | I10: 17267.5 | J10: 58698 | K10: 93233 | M10: 21064 | N10: 36488 | O10: 57552 | Q10: 60.99319531 | R10: 62.16225425 | S10: 61.72921605
A11: =IF(COUNTRY_INFO!A11=0," ",COUNTRY_INFO!A11) -> Zanzibar | B11: =IF(COUNTRY_INFO!B11=0," ",COUNTRY_INFO!B11) -> Kaskazini Pemba | C11: =IF(COUNTRY_INFO!C11=0," ",COUNTRY_INFO!C11) -> Wete | D11: =IF(OR(COUNTRY_INFO!$T$9:$T$1000="T1 (PZQ+ALB/MBD)",COUNTRY_INFO!$U$9:$U$1000="T1 (PZQ+ALB/MBD)"), "T1 (PZQ+ALB/MBD)", " ") -> T1 (PZQ+ALB/MBD) | E11: PZQ+ALB | F11: November | H11: 23316 | I11: 11658 | J11: 39629 | K11: 62945 | M11: 13371 | N11: 42343 | O11: 55714 | Q11: 57.34688626 | R11: 106.84852 | S11: 88.51219318
A12: =IF(COUNTRY_INFO!A12=0," ",COUNTRY_INFO!A12) -> Zanzibar | B12: =IF(COUNTRY_INFO!B12=0," ",COUNTRY_INFO!B12) -> Kaskazini Pemba | C12: =IF(COUNTRY_INFO!C12=0," ",COUNTRY_INFO!C12) -> Micheweni | D12: =IF(OR(COUNTRY_INFO!$T$9:$T$1000="T1 (PZQ+ALB/MBD)",COUNTRY_INFO!$U$9:$U$1000="T1 (PZQ+ALB/MBD)"), "T1 (PZQ+ALB/MBD)", " ") -> T1 (PZQ+ALB/MBD) | E12: PZQ+ALB | F12: November | H12: 34286 | I12: 17143 | J12: 58275 | K12: 92561 | M12: 18360 | N12: 29112 | O12: 47472 | Q12: 53.54955375 | R12: 49.95624196 | S12: 51.28725921
A13: =IF(COUNTRY_INFO!A13=0," ",COUNTRY_INFO!A13) -> Zanzibar | B13: =IF(COUNTRY_INFO!B13=0," ",COUNTRY_INFO!B13) -> Kaskazini Unguja | C13: =IF(COUNTRY_INFO!C13=0," ",COUNTRY_INFO!C13) -> Kaskazini A | D13: =IF(OR(COUNTRY_INFO!$T$9:$T$1000="T1 (PZQ+ALB/MBD)",COUNTRY_INFO!$U$9:$U$1000="T1 (PZQ+ALB/MBD)"), "T1 (PZQ+ALB/MBD)", " ") -> T1 (PZQ+ALB/MBD) | E13: PZQ+ALB | F13: November | H13: 35705 | I13: 17852.5 | J13: 60688 | K13: 96393 | M13: 25843 | N13: 58396 | O13: 84239 | Q13: 72.3792186 | R13: 96.22330609 | S13: 87.39120061
A14: =IF(COUNTRY_INFO!A14=0," ",COUNTRY_INFO!A14) -> Zanzibar | B14: =IF(COUNTRY_INFO!B14=0," ",COUNTRY_INFO!B14) -> Kaskazini Unguja | C14: =IF(COUNTRY_INFO!C14=0," ",COUNTRY_INFO!C14) -> Kaskazini B | D14: =IF(OR(COUNTRY_INFO!$T$9:$T$1000="T1 (PZQ+ALB/MBD)",COUNTRY_INFO!$U$9:$U$1000="T1 (PZQ+ALB/MBD)"), "T1 (PZQ+ALB/MBD)", " ") -> T1 (PZQ+ALB/MBD) | E14: PZQ+ALB | F14: November | H14: 35401 | I14: 17700.5 | J14: 60170 | K14: 95571 | M14: 18638 | N14: 41920 | O14: 60558 | Q14: 52.64823028 | R14: 69.6692704 | S14: 63.36440971
A15: =IF(COUNTRY_INFO!A15=0," ",COUNTRY_INFO!A15) -> Zanzibar | B15: =IF(COUNTRY_INFO!B15=0," ",COUNTRY_INFO!B15) -> Kusini Unguja | C15: =IF(COUNTRY_INFO!C15=0," ",COUNTRY_INFO!C15) -> Kati | D15: =IF(OR(COUNTRY_INFO!$T$9:$T$1000="T1 (PZQ+ALB/MBD)",COUNTRY_INFO!$U$9:$U$1000="T1 (PZQ+ALB/MBD)"), "T1 (PZQ+ALB/MBD)", " ") -> T1 (PZQ+ALB/MBD) | E15: PZQ+ALB | F15: November | H15: 24245 | I15: 12122.5 | J15: 41208 | K15: 65453 | M15: 24321 | N15: 48624 | O15: 72945 | Q15: 100.3134667 | R15: 117.9965055 | S15: 111.4463814
A16: =IF(COUNTRY_INFO!A16=0," ",COUNTRY_INFO!A16) -> Zanzibar | B16: =IF(COUNTRY_INFO!B16=0," ",COUNTRY_INFO!B16) -> Kusini Unguja | C16: =IF(COUNTRY_INFO!C16=0," ",COUNTRY_INFO!C16) -> Kusini | D16: =IF(OR(COUNTRY_INFO!$T$9:$T$1000="T1 (PZQ+ALB/MBD)",COUNTRY_INFO!$U$9:$U$1000="T1 (PZQ+ALB/MBD)"), "T1 (PZQ+ALB/MBD)", " ") ->  | K16: 0 | O16: 0
A17: =IF(COUNTRY_INFO!A17=0," ",COUNTRY_INFO!A17) -> Zanzibar | B17: =IF(COUNTRY_INFO!B17=0," ",COUNTRY_INFO!B17) -> Mjini Magharibi | C17: =IF(COUNTRY_INFO!C17=0," ",COUNTRY_INFO!C17) -> Mjini | D17: =IF(OR(COUNTRY_INFO!$T$9:$T$1000="T1 (PZQ+ALB/MBD)",COUNTRY_INFO!$U$9:$U$1000="T1 (PZQ+ALB/MBD)"), "T1 (PZQ+ALB/MBD)", " ") -> T1 (PZQ+ALB/MBD) | E17: PZQ+ALB | F17: November | H17: 55778 | I17: 27889 | J17: 94806 | K17: 150584 | M17: 52285 | N17: 116925 | O17: 169210 | Q17: 93.73767435 | R17: 123.3308018 | S17: 112.369176
A18: =IF(COUNTRY_INFO!A18=0," ",COUNTRY_INFO!A18) -> Zanzibar | B18: =IF(COUNTRY_INFO!B18=0," ",COUNTRY_INFO!B18) -> Mjini Magharibi | C18: =IF(COUNTRY_INFO!C18=0," ",COUNTRY_INFO!C18) -> Magharibi A | D18: =IF(OR(COUNTRY_INFO!$T$9:$T$1000="T1 (PZQ+ALB/MBD)",COUNTRY_INFO!$U$9:$U$1000="T1 (PZQ+ALB/MBD)"), "T1 (PZQ+ALB/MBD)", " ") -> T1 (PZQ+ALB/MBD) | E18: PZQ+ALB | F18: November | H18: 119319 | I18: 59659.5 | J18: 202805 | K18: 322124 | M18: 62289 | N18: 118124 | O18: 180413 | Q18: 52.20375632 | R18: 58.2451123 | S18: 56.00731395

Sheet T2 (hidden)
A1: T 2 - Praziquantel (PZQ)
A2: Administrative structure, population requiring PC by age group, population treated by age group and coverage
A4: TOTAL | F4: =SUM(F$9:F$1000) -> 0 | G4: 0 | H4: 0 | I4: 0 | J4: 0 | K4: 0 | L4: 0 | M4: 0 | N4: =IF(F4<>0, IF(J4/F4*100=0, "-", J4/F4*100), " ") ->  | O4: =IF(G4<>0, IF(K4/G4*100=0, "-", K4/G4*100), " ") ->  | P4: =IF(H4<>0, IF(L4/H4*100=0, "-", L4/H4*100), " ") ->  | Q4: =IF(I4<>0, IF(M4/I4*100=0, "-", M4/I4*100), " ") -> 
D6: PC implemented | E6: Date | F6: Population targeted for T2 | J6: Population treated | N6: Programme coverage (%)
A7: Country | B7: Province/State | C7: District | F7: PreSAC | G7: SAC | H7: Adults | I7: Total | J7: PreSAC | K7: SAC | L7: Adults | M7: Total | N7: PreSAC | O7: SAC | P7: Adults | Q7: Total
A9: =IF(COUNTRY_INFO!A9=0," ",COUNTRY_INFO!A9) -> Zanzibar | B9: =IF(COUNTRY_INFO!B9=0," ",COUNTRY_INFO!B9) -> Kusini Pemba | C9: =IF(COUNTRY_INFO!C9=0," ",COUNTRY_INFO!C9) -> Mkoani | D9: =IF(COUNTRY_INFO!$U$9:$U$1000="T2 (PZQ)", COUNTRY_INFO!$U$9:$U$1000, " ") ->  | I9: =SUM(F9:H9) -> 0 | M9: =SUM(J9:L9) -> 0 | N9: =IF(F9<>0, IF(J9/F9*100=0, "-", J9/F9*100), " ") -> 
A10: =IF(COUNTRY_INFO!A10=0," ",COUNTRY_INFO!A10) -> Zanzibar | B10: =IF(COUNTRY_INFO!B10=0," ",COUNTRY_INFO!B10) -> Kusini Pemba | C10: =IF(COUNTRY_INFO!C10=0," ",COUNTRY_INFO!C10) -> Chake Chake | D10: =IF(COUNTRY_INFO!$U$9:$U$1000="T2 (PZQ)", COUNTRY_INFO!$U$9:$U$1000, " ") ->  | I10: =SUM(F10:H10) -> 0 | M10: =SUM(J10:L10) -> 0 | N10: =IF(F10<>0, IF(J10/F10*100=0, "-", J10/F10*100), " ") ->  | O10: =IF(G10<>0, IF(K10/G10*100=0, "-", K10/G10*100), " ") ->  | P10: =IF(H10<>0, IF(L10/H10*100=0, "-", L10/H10*100), " ") ->  | Q10: =IF(I10<>0, IF(M10/I10*100=0, "-", M10/I10*100), " ") -> 
A11: =IF(COUNTRY_INFO!A11=0," ",COUNTRY_INFO!A11) -> Zanzibar | B11: =IF(COUNTRY_INFO!B11=0," ",COUNTRY_INFO!B11) -> Kaskazini Pemba | C11: =IF(COUNTRY_INFO!C11=0," ",COUNTRY_INFO!C11) -> Wete | D11: =IF(COUNTRY_INFO!$U$9:$U$1000="T2 (PZQ)", COUNTRY_INFO!$U$9:$U$1000, " ") ->  | I11: 0 | M11: 0
A12: =IF(COUNTRY_INFO!A12=0," ",COUNTRY_INFO!A12) -> Zanzibar | B12: =IF(COUNTRY_INFO!B12=0," ",COUNTRY_INFO!B12) -> Kaskazini Pemba | C12: =IF(COUNTRY_INFO!C12=0," ",COUNTRY_INFO!C12) -> Micheweni | D12: =IF(COUNTRY_INFO!$U$9:$U$1000="T2 (PZQ)", COUNTRY_INFO!$U$9:$U$1000, " ") ->  | I12: 0 | M12: 0
A13: =IF(COUNTRY_INFO!A13=0," ",COUNTRY_INFO!A13) -> Zanzibar | B13: =IF(COUNTRY_INFO!B13=0," ",COUNTRY_INFO!B13) -> Kaskazini Unguja | C13: =IF(COUNTRY_INFO!C13=0," ",COUNTRY_INFO!C13) -> Kaskazini A | D13: =IF(COUNTRY_INFO!$U$9:$U$1000="T2 (PZQ)", COUNTRY_INFO!$U$9:$U$1000, " ") ->  | I13: 0 | M13: 0
A14: =IF(COUNTRY_INFO!A14=0," ",COUNTRY_INFO!A14) -> Zanzibar | B14: =IF(COUNTRY_INFO!B14=0," ",COUNTRY_INFO!B14) -> Kaskazini Unguja | C14: =IF(COUNTRY_INFO!C14=0," ",COUNTRY_INFO!C14) -> Kaskazini B | D14: =IF(COUNTRY_INFO!$U$9:$U$1000="T2 (PZQ)", COUNTRY_INFO!$U$9:$U$1000, " ") ->  | I14: 0 | M14: 0
A15: =IF(COUNTRY_INFO!A15=0," ",COUNTRY_INFO!A15) -> Zanzibar | B15: =IF(COUNTRY_INFO!B15=0," ",COUNTRY_INFO!B15) -> Kusini Unguja | C15: =IF(COUNTRY_INFO!C15=0," ",COUNTRY_INFO!C15) -> Kati | D15: =IF(COUNTRY_INFO!$U$9:$U$1000="T2 (PZQ)", COUNTRY_INFO!$U$9:$U$1000, " ") ->  | I15: 0 | M15: 0
A16: =IF(COUNTRY_INFO!A16=0," ",COUNTRY_INFO!A16) -> Zanzibar | B16: =IF(COUNTRY_INFO!B16=0," ",COUNTRY_INFO!B16) -> Kusini Unguja | C16: =IF(COUNTRY_INFO!C16=0," ",COUNTRY_INFO!C16) -> Kusini | D16: =IF(COUNTRY_INFO!$U$9:$U$1000="T2 (PZQ)", COUNTRY_INFO!$U$9:$U$1000, " ") ->  | I16: 0 | M16: 0
A17: =IF(COUNTRY_INFO!A17=0," ",COUNTRY_INFO!A17) -> Zanzibar | B17: =IF(COUNTRY_INFO!B17=0," ",COUNTRY_INFO!B17) -> Mjini Magharibi | C17: =IF(COUNTRY_INFO!C17=0," ",COUNTRY_INFO!C17) -> Mjini | D17: =IF(COUNTRY_INFO!$U$9:$U$1000="T2 (PZQ)", COUNTRY_INFO!$U$9:$U$1000, " ") ->  | I17: 0 | M17: 0
A18: =IF(COUNTRY_INFO!A18=0," ",COUNTRY_INFO!A18) -> Zanzibar | B18: =IF(COUNTRY_INFO!B18=0," ",COUNTRY_INFO!B18) -> Mjini Magharibi | C18: =IF(COUNTRY_INFO!C18=0," ",COUNTRY_INFO!C18) -> Magharibi A | D18: =IF(COUNTRY_INFO!$U$9:$U$1000="T2 (PZQ)", COUNTRY_INFO!$U$9:$U$1000, " ") ->  | I18: 0 | M18: 0

Sheet T3_R1
A1: T 3 - Albendazole (ALB) or Mebendazole (MBD) - Round 1
A2: Administrative structure, population requiring PC by age group, population treated by age group and coverage
A4: TOTAL | G4: =SUM(G$9:G$1000) -> 0 | H4: 12315 | I4: 20932 | J4: 33247 | K4: 0 | L4: 9306 | M4: 19208 | N4: 28514 | O4: =IF(G4<>0, IF(K4/G4*100=0, "-", K4/G4*100), " ") ->  | P4: =IF(H4<>0, IF(L4/H4*100=0, "-", L4/H4*100), " ") -> 75.56638246 | Q4: =IF(I4<>0, IF(M4/I4*100=0, "-", M4/I4*100), " ") -> 91.76380661 | R4: =IF(J4<>0, IF(N4/J4*100=0, "-", N4/J4*100), " ") -> 85.76412909
D6: PC implemented | E6: Medicine | F6: Date | G6: Population targeted for T3 | K6: Population treated | O6: Programme coverage (%)
A7: Country | B7: Province/State | C7: District | G7: PreSAC | H7: SAC | I7: Adults | J7: Total | K7: PreSAC | L7: SAC | M7: Adults | N7: Total | O7: PreSAC | P7: SAC | Q7: Adults | R7: Total
A9: =IF(COUNTRY_INFO!A9=0," ",COUNTRY_INFO!A9) -> Zanzibar | B9: =IF(COUNTRY_INFO!B9=0," ",COUNTRY_INFO!B9) -> Kusini Pemba | C9: =IF(COUNTRY_INFO!C9=0," ",COUNTRY_INFO!C9) -> Mkoani | D9: =IF(OR(COUNTRY_INFO!$T$9:$T$1000="T3 (ALB/MBD)",COUNTRY_INFO!$U$9:$U$1000="T3 (ALB/MBD)"), "T3 (ALB/MBD)", " ") ->  | J9: =SUM(G9:I9) -> 0 | N9: =SUM(K9:M9) -> 0 | O9: =IF(G9<>0, IF(K9/G9*100=0, "-", K9/G9*100), " ") -> 
A10: =IF(COUNTRY_INFO!A10=0," ",COUNTRY_INFO!A10) -> Zanzibar | B10: =IF(COUNTRY_INFO!B10=0," ",COUNTRY_INFO!B10) -> Kusini Pemba | C10: =IF(COUNTRY_INFO!C10=0," ",COUNTRY_INFO!C10) -> Chake Chake | D10: =IF(OR(COUNTRY_INFO!$T$9:$T$1000="T3 (ALB/MBD)",COUNTRY_INFO!$U$9:$U$1000="T3 (ALB/MBD)"), "T3 (ALB/MBD)", " ") ->  | J10: =SUM(G10:I10) -> 0 | N10: =SUM(K10:M10) -> 0 | O10: =IF(G10<>0, IF(K10/G10*100=0, "-", K10/G10*100), " ") ->  | P10: =IF(H10<>0, IF(L10/H10*100=0, "-", L10/H10*100), " ") ->  | Q10: =IF(I10<>0, IF(M10/I10*100=0, "-", M10/I10*100), " ") ->  | R10: =IF(J10<>0, IF(N10/J10*100=0, "-", N10/J10*100), " ") -> 
A11: =IF(COUNTRY_INFO!A11=0," ",COUNTRY_INFO!A11) -> Zanzibar | B11: =IF(COUNTRY_INFO!B11=0," ",COUNTRY_INFO!B11) -> Kaskazini Pemba | C11: =IF(COUNTRY_INFO!C11=0," ",COUNTRY_INFO!C11) -> Wete | D11: =IF(OR(COUNTRY_INFO!$T$9:$T$1000="T3 (ALB/MBD)",COUNTRY_INFO!$U$9:$U$1000="T3 (ALB/MBD)"), "T3 (ALB/MBD)", " ") ->  | J11: 0 | N11: 0
A12: =IF(COUNTRY_INFO!A12=0," ",COUNTRY_INFO!A12) -> Zanzibar | B12: =IF(COUNTRY_INFO!B12=0," ",COUNTRY_INFO!B12) -> Kaskazini Pemba | C12: =IF(COUNTRY_INFO!C12=0," ",COUNTRY_INFO!C12) -> Micheweni | D12: =IF(OR(COUNTRY_INFO!$T$9:$T$1000="T3 (ALB/MBD)",COUNTRY_INFO!$U$9:$U$1000="T3 (ALB/MBD)"), "T3 (ALB/MBD)", " ") ->  | J12: 0 | N12: 0
A13: =IF(COUNTRY_INFO!A13=0," ",COUNTRY_INFO!A13) -> Zanzibar | B13: =IF(COUNTRY_INFO!B13=0," ",COUNTRY_INFO!B13) -> Kaskazini Unguja | C13: =IF(COUNTRY_INFO!C13=0," ",COUNTRY_INFO!C13) -> Kaskazini A | D13: =IF(OR(COUNTRY_INFO!$T$9:$T$1000="T3 (ALB/MBD)",COUNTRY_INFO!$U$9:$U$1000="T3 (ALB/MBD)"), "T3 (ALB/MBD)", " ") ->  | J13: 0 | N13: 0
A14: =IF(COUNTRY_INFO!A14=0," ",COUNTRY_INFO!A14) -> Zanzibar | B14: =IF(COUNTRY_INFO!B14=0," ",COUNTRY_INFO!B14) -> Kaskazini Unguja | C14: =IF(COUNTRY_INFO!C14=0," ",COUNTRY_INFO!C14) -> Kaskazini B | D14: =IF(OR(COUNTRY_INFO!$T$9:$T$1000="T3 (ALB/MBD)",COUNTRY_INFO!$U$9:$U$1000="T3 (ALB/MBD)"), "T3 (ALB/MBD)", " ") ->  | J14: 0 | N14: 0
A15: =IF(COUNTRY_INFO!A15=0," ",COUNTRY_INFO!A15) -> Zanzibar | B15: =IF(COUNTRY_INFO!B15=0," ",COUNTRY_INFO!B15) -> Kusini Unguja | C15: =IF(COUNTRY_INFO!C15=0," ",COUNTRY_INFO!C15) -> Kati | D15: =IF(OR(COUNTRY_INFO!$T$9:$T$1000="T3 (ALB/MBD)",COUNTRY_INFO!$U$9:$U$1000="T3 (ALB/MBD)"), "T3 (ALB/MBD)", " ") ->  | J15: 0 | N15: 0
A16: =IF(COUNTRY_INFO!A16=0," ",COUNTRY_INFO!A16) -> Zanzibar | B16: =IF(COUNTRY_INFO!B16=0," ",COUNTRY_INFO!B16) -> Kusini Unguja | C16: =IF(COUNTRY_INFO!C16=0," ",COUNTRY_INFO!C16) -> Kusini | D16: =IF(OR(COUNTRY_INFO!$T$9:$T$1000="T3 (ALB/MBD)",COUNTRY_INFO!$U$9:$U$1000="T3 (ALB/MBD)"), "T3 (ALB/MBD)", " ") -> T3 (ALB/MBD) | E16: ALB | F16: March | H16: 12315 | I16: 20932 | J16: 33247 | L16: 9306 | M16: 19208 | N16: 28514 | P16: 75.56638246 | Q16: 91.76380661 | R16: 85.76412909
A17: =IF(COUNTRY_INFO!A17=0," ",COUNTRY_INFO!A17) -> Zanzibar | B17: =IF(COUNTRY_INFO!B17=0," ",COUNTRY_INFO!B17) -> Mjini Magharibi | C17: =IF(COUNTRY_INFO!C17=0," ",COUNTRY_INFO!C17) -> Mjini | D17: =IF(OR(COUNTRY_INFO!$T$9:$T$1000="T3 (ALB/MBD)",COUNTRY_INFO!$U$9:$U$1000="T3 (ALB/MBD)"), "T3 (ALB/MBD)", " ") ->  | J17: 0 | N17: 0
A18: =IF(COUNTRY_INFO!A18=0," ",COUNTRY_INFO!A18) -> Zanzibar | B18: =IF(COUNTRY_INFO!B18=0," ",COUNTRY_INFO!B18) -> Mjini Magharibi | C18: =IF(COUNTRY_INFO!C18=0," ",COUNTRY_INFO!C18) -> Magharibi A | D18: =IF(OR(COUNTRY_INFO!$T$9:$T$1000="T3 (ALB/MBD)",COUNTRY_INFO!$U$9:$U$1000="T3 (ALB/MBD)"), "T3 (ALB/MBD)", " ") ->  | J18: 0 | N18: 0

Sheet T3_R2
A1: T 3 - Albendazole (ALB) or Mebendazole (MBD) - Round 2
A2: Administrative structure, population requiring PC by age group, population treated by age group and coverage
A4: TOTAL | G4: =SUM(G$9:G$1000) -> 0 | H4: 12315 | I4: 20932 | J4: 33247 | K4: 0 | L4: 9325 | M4: 22783 | N4: 32108 | O4: =IF(G4<>0, IF(K4/G4*100=0, "-", K4/G4*100), " ") ->  | P4: =IF(H4<>0, IF(L4/H4*100=0, "-", L4/H4*100), " ") -> 75.72066585 | Q4: =IF(I4<>0, IF(M4/I4*100=0, "-", M4/I4*100), " ") -> 108.8429199 | R4: =IF(J4<>0, IF(N4/J4*100=0, "-", N4/J4*100), " ") -> 96.57412699
D6: PC implemented | E6: Medicine | F6: Date | G6: Population targeted for T3 | K6: Population treated | O6: Programme coverage (%)
A7: Country | B7: Province/State | C7: District | G7: PreSAC | H7: SAC | I7: Adults | J7: Total | K7: PreSAC | L7: SAC | M7: Adults | N7: Total | O7: PreSAC | P7: SAC | Q7: Adults | R7: Total
A9: =IF(COUNTRY_INFO!A9=0," ",COUNTRY_INFO!A9) -> Zanzibar | B9: =IF(COUNTRY_INFO!B9=0," ",COUNTRY_INFO!B9) -> Kusini Pemba | C9: =IF(COUNTRY_INFO!C9=0," ",COUNTRY_INFO!C9) -> Mkoani | D9: =IF(AND(COUNTRY_INFO!$T$9:$T$1000="T3 (ALB/MBD)",COUNTRY_INFO!$U$9:$U$1000="T3 (ALB/MBD)"), "T3 (ALB/MBD)", " ") ->  | J9: =SUM(G9:I9) -> 0 | N9: =SUM(K9:M9) -> 0 | O9: =IF(G9<>0, IF(K9/G9*100=0, "-", K9/G9*100), " ") -> 
A10: =IF(COUNTRY_INFO!A10=0," ",COUNTRY_INFO!A10) -> Zanzibar | B10: =IF(COUNTRY_INFO!B10=0," ",COUNTRY_INFO!B10) -> Kusini Pemba | C10: =IF(COUNTRY_INFO!C10=0," ",COUNTRY_INFO!C10) -> Chake Chake | D10: =IF(AND(COUNTRY_INFO!$T$9:$T$1000="T3 (ALB/MBD)",COUNTRY_INFO!$U$9:$U$1000="T3 (ALB/MBD)"), "T3 (ALB/MBD)", " ") ->  | J10: =SUM(G10:I10) -> 0 | N10: =SUM(K10:M10) -> 0 | O10: =IF(G10<>0, IF(K10/G10*100=0, "-", K10/G10*100), " ") ->  | P10: =IF(H10<>0, IF(L10/H10*100=0, "-", L10/H10*100), " ") ->  | Q10: =IF(I10<>0, IF(M10/I10*100=0, "-", M10/I10*100), " ") ->  | R10: =IF(J10<>0, IF(N10/J10*100=0, "-", N10/J10*100), " ") -> 
A11: =IF(COUNTRY_INFO!A11=0," ",COUNTRY_INFO!A11) -> Zanzibar | B11: =IF(COUNTRY_INFO!B11=0," ",COUNTRY_INFO!B11) -> Kaskazini Pemba | C11: =IF(COUNTRY_INFO!C11=0," ",COUNTRY_INFO!C11) -> Wete | D11: =IF(AND(COUNTRY_INFO!$T$9:$T$1000="T3 (ALB/MBD)",COUNTRY_INFO!$U$9:$U$1000="T3 (ALB/MBD)"), "T3 (ALB/MBD)", " ") ->  | J11: 0 | N11: 0
A12: =IF(COUNTRY_INFO!A12=0," ",COUNTRY_INFO!A12) -> Zanzibar | B12: =IF(COUNTRY_INFO!B12=0," ",COUNTRY_INFO!B12) -> Kaskazini Pemba | C12: =IF(COUNTRY_INFO!C12=0," ",COUNTRY_INFO!C12) -> Micheweni | D12: =IF(AND(COUNTRY_INFO!$T$9:$T$1000="T3 (ALB/MBD)",COUNTRY_INFO!$U$9:$U$1000="T3 (ALB/MBD)"), "T3 (ALB/MBD)", " ") ->  | J12: 0 | N12: 0
A13: =IF(COUNTRY_INFO!A13=0," ",COUNTRY_INFO!A13) -> Zanzibar | B13: =IF(COUNTRY_INFO!B13=0," ",COUNTRY_INFO!B13) -> Kaskazini Unguja | C13: =IF(COUNTRY_INFO!C13=0," ",COUNTRY_INFO!C13) -> Kaskazini A | D13: =IF(AND(COUNTRY_INFO!$T$9:$T$1000="T3 (ALB/MBD)",COUNTRY_INFO!$U$9:$U$1000="T3 (ALB/MBD)"), "T3 (ALB/MBD)", " ") ->  | J13: 0 | N13: 0
A14: =IF(COUNTRY_INFO!A14=0," ",COUNTRY_INFO!A14) -> Zanzibar | B14: =IF(COUNTRY_INFO!B14=0," ",COUNTRY_INFO!B14) -> Kaskazini Unguja | C14: =IF(COUNTRY_INFO!C14=0," ",COUNTRY_INFO!C14) -> Kaskazini B | D14: =IF(AND(COUNTRY_INFO!$T$9:$T$1000="T3 (ALB/MBD)",COUNTRY_INFO!$U$9:$U$1000="T3 (ALB/MBD)"), "T3 (ALB/MBD)", " ") ->  | J14: 0 | N14: 0
A15: =IF(COUNTRY_INFO!A15=0," ",COUNTRY_INFO!A15) -> Zanzibar | B15: =IF(COUNTRY_INFO!B15=0," ",COUNTRY_INFO!B15) -> Kusini Unguja | C15: =IF(COUNTRY_INFO!C15=0," ",COUNTRY_INFO!C15) -> Kati | D15: =IF(AND(COUNTRY_INFO!$T$9:$T$1000="T3 (ALB/MBD)",COUNTRY_INFO!$U$9:$U$1000="T3 (ALB/MBD)"), "T3 (ALB/MBD)", " ") ->  | J15: 0 | N15: 0
A16: =IF(COUNTRY_INFO!A16=0," ",COUNTRY_INFO!A16) -> Zanzibar | B16: =IF(COUNTRY_INFO!B16=0," ",COUNTRY_INFO!B16) -> Kusini Unguja | C16: =IF(COUNTRY_INFO!C16=0," ",COUNTRY_INFO!C16) -> Kusini | D16: =IF(AND(COUNTRY_INFO!$T$9:$T$1000="T3 (ALB/MBD)",COUNTRY_INFO!$U$9:$U$1000="T3 (ALB/MBD)"), "T3 (ALB/MBD)", " ") -> T3 (ALB/MBD) | E16: ALB | F16: November | H16: 12315 | I16: 20932 | J16: 33247 | L16: 9325 | M16: 22783 | N16: 32108 | P16: 75.72066585 | Q16: 108.8429199 | R16: 96.57412699
A17: =IF(COUNTRY_INFO!A17=0," ",COUNTRY_INFO!A17) -> Zanzibar | B17: =IF(COUNTRY_INFO!B17=0," ",COUNTRY_INFO!B17) -> Mjini Magharibi | C17: =IF(COUNTRY_INFO!C17=0," ",COUNTRY_INFO!C17) -> Mjini | D17: =IF(AND(COUNTRY_INFO!$T$9:$T$1000="T3 (ALB/MBD)",COUNTRY_INFO!$U$9:$U$1000="T3 (ALB/MBD)"), "T3 (ALB/MBD)", " ") ->  | J17: 0 | N17: 0
A18: =IF(COUNTRY_INFO!A18=0," ",COUNTRY_INFO!A18) -> Zanzibar | B18: =IF(COUNTRY_INFO!B18=0," ",COUNTRY_INFO!B18) -> Mjini Magharibi | C18: =IF(COUNTRY_INFO!C18=0," ",COUNTRY_INFO!C18) -> Magharibi A | D18: =IF(AND(COUNTRY_INFO!$T$9:$T$1000="T3 (ALB/MBD)",COUNTRY_INFO!$U$9:$U$1000="T3 (ALB/MBD)"), "T3 (ALB/MBD)", " ") ->  | J18: 0 | N18: 0

Sheet DISTRICT
A1: Number of individuals treated
A2: Administrative structure, population treated by age group and gender
A4: TOTAL | D4: =SUM(D$9:D$1000) -> 1313658.4 | E4: =SUM(E$9:E$1000) -> 0 | F4: =SUM(F$9:F$1000) -> 0 | G4: =SUM(G$9:G$1000) -> 928008 | H4: =SUM(H$9:H$1000) -> 928008 | I4: =IF(D4>0, IF(H4/D4*100<>0, H4/D4*100, "-"),0) -> 70.64302257 | J4: =SUM(J$9:J$1000) -> 0 | K4: =SUM(K$9:K$1000) -> 0 | L4: =SUM(L$9:L$1000) -> 0 | M4: =SUM(M$9:M$1000) -> 928008 | N4: =SUM(N$9:N$1000) -> 0 | O4: =IF(J4>0, IF(N4/J4*100<>0, N4/J4*100, "-"),0) -> 0 | P4: =SUM(P$9:P$1000) -> 592462 | Q4: =SUM(Q$9:Q$1000) -> 0 | R4: =SUM(R$9:R$1000) -> 0 | S4: =SUM(S$9:S$1000) -> 974702 | T4: =SUM(T$9:T$1000) -> 0 | V4: 329351 | X4: =SUM(X$9:X$1000) -> 329351 | Y4: =IF(P4>0, IF(X4/P4*100<>0, X4/P4*100, "-"),0) -> 55.59023195 | Z4: =SUM(Z$9:Z$1000) -> 208864.47 | AA4: 0 | AB4: 0 | AC4: 844760 | AD4: 143147.57 | AF4: 48600.4 | AH4: 191747.97 | AI4: =IF(Z4>0, IF(AH4/Z4*100<>0, AH4/Z4*100, "-"),0) -> 91.80497286
D6: Population requiring PC for LF | E6: Population treated for lymphatic filariasis | J6: Population requiring PC for ONCHO | K6: Population treated for onchocerciasis | P6: Population requiring PC for STH | Q6: Population treated for STH | Z6: Population requiring PC for SCH | AA6: Population treated for schistosomiasis | AP6: =SUM(AP9:AP1000) -> 0 | AQ6: 168149 | AR6: 424313 | AS6: 721198 | AT6: =SUM(AT9:AT1000) -> 1313660 | AU6: =COUNTIF(AU9:AU1000,"Y") -> 10 | AV6: =SUM(AV9:AV1000) -> 0 | AW6: 337850 | AX6: 636852 | AY6: =SUM(AY9:AY1000) -> 974702 | AZ6: 0 | BA6: 334463 | BB6: 606158 | BC6: 940621 | BD6: =IF(AT6<>0,BC6/AT6,0) -> 0.7160307842
A7: Country | B7: Province/State | C7: District | E7: Male | F7: Female | G7: Total treated | H7: Total in need treated | I7: (%) | K7: Male | L7: Female | M7: Total treated | N7: Total in need treated | O7: (%) | Q7: Male | R7: Female | S7: Total treated | T7: PreSAC in need treated | U7: PreSAC (%) | V7: SAC in need treated | W7: SAC (%) | X7: Total in need treated | Y7: (%) | AA7: Male | AB7: Female | AC7: Total treated | AD7: SAC in need treated | AE7: SAC (%) | AF7: Adults in need treated | AG7: Adults (%) | AH7: Total in need treated | AI7: (%) | AK7: LF | AL7: ONCHO | AM7: STH | AN7: SCH-SAC | AO7: SCH_Adults | AP7: <1 | AQ7: PreSAC | AR7: SAC | AS7: Adults | AT7: Total | AU7: Dis | AV7: PreSAC | AW7: SAC | AX7: Adults | AY7: Total | AZ7: PreSAC | BA7: SAC | BB7: Adults | BC7: Total | BD7: Coverage
A9: =IF(COUNTRY_INFO!A9=0," ",COUNTRY_INFO!A9) -> Zanzibar | B9: =IF(COUNTRY_INFO!B9=0," ",COUNTRY_INFO!B9) -> Kusini Pemba | C9: =IF(COUNTRY_INFO!C9=0," ",COUNTRY_INFO!C9) -> Mkoani | D9: =COUNTRY_INFO!L9 -> 152982.1333 | G9: =MAX('MDA1'!M9,'MDA2'!M9) -> 87916 | H9: =IF(AND(COUNTRY_INFO!H9>0,COUNTRY_INFO!H9<4),IF(D9>MAX('MDA1'!M9,'MDA2'!M9),MAX('MDA1'!M9,'MDA2'!M9),D9),0) -> 87916 | I9: =IF(AND(COUNTRY_INFO!H9>0,COUNTRY_INFO!H9<4), IF(G9/D9*100<>0, IF(G9/D9*100>100,100,G9/D9*100), "-"),0) -> 57.46814879 | J9: =COUNTRY_INFO!M9 -> Not required | M9: =MAX('MDA1'!M9,MAX('MDA3'!I9,'MDA3'!L9)+MAX('MDA3'!J9,'MDA3'!M9)) -> 87916 | N9: =IF(AND(COUNTRY_INFO!I9>0,COUNTRY_INFO!I9<4),IF(J9>MAX('MDA1'!M9,MAX('MDA3'!I9,'MDA3'!L9)+MAX('MDA3'!J9,'MDA3'!M9)),MAX('MDA1'!M9,MAX('MDA3'!I9,'MDA3'!L9)+MAX('MDA3'!J9,'MDA3'!M9)),J9),0) -> 0 | O9: =IF(AND(COUNTRY_INFO!I9>0,COUNTRY_INFO!I9<4), IF(M9/J9*100<>0, IF(M9/J9*100>100,100,M9/J9*100), "-"),0) -> 0 | P9: =COUNTRY_INFO!N9 -> 68995 | S9: =SUM(MAX('MDA2'!J9, T1_R1!L9, MAX(T3_R1!K9, T3_R2!K9)), MAX('MDA1'!K9, 'MDA2'!K9, T1_R1!M9, MAX(T3_R1!L9, T3_R2!L9)), MAX('MDA1'!L9, 'MDA2'!L9, T1_R1!N9, MAX(T3_R1!M9, T3_R2!M9))) -> 87916 | T9: =IF(AND(COUNTRY_INFO!J9>1,COUNTRY_INFO!J9<4),IF(COUNTRY_INFO!E9>MAX('MDA2'!J9,T1_R1!L9,MAX(T3_R1!K9,T3_R2!K9)),MAX('MDA2'!J9,T1_R1!L9,MAX(T3_R1!K9,T3_R2!K9)),COUNTRY_INFO!E9),0) -> 0 | U9: =IF(AND(COUNTRY_INFO!J9>1,COUNTRY_INFO!J9<4), IF(T9/COUNTRY_INFO!E9*100<>0, IF(T9/COUNTRY_INFO!E9*100>100,100,T9/COUNTRY_INFO!E9*100), "-"),0) -> - | V9: =IF(AND(COUNTRY_INFO!J9>1,COUNTRY_INFO!J9<4),IF(COUNTRY_INFO!F9>MAX('MDA1'!K9,'MDA2'!K9,T1_R1!M9,MAX(T3_R1!L9,T3_R2!L9)),MAX('MDA1'!K9,'MDA2'!K9,T1_R1!M9,MAX(T3_R1!L9,T3_R2!L9)),COUNTRY_INFO!F9),0) -> 33075 | W9: =IF(AND(COUNTRY_INFO!J9>1,COUNTRY_INFO!J9<4), IF(V9/COUNTRY_INFO!F9*100<>0, IF(V9/COUNTRY_INFO!F9*100>100,100,V9/COUNTRY_INFO!F9*100), "-"),0) -> 66.9358266 | X9: =SUM(T9,V9) -> 33075 | Y9: =IF(AND(COUNTRY_INFO!J9>1,COUNTRY_INFO!J9<4), IF(S9/P9*100<>0, IF(X9/P9*100>100,100,X9/P9*100), "-"),0) -> 47.9382564 | Z9: =COUNTRY_INFO!O9 -> 41503.9 | AC9: =MAX(SUM(T1_R1!L9:'T1_R1'!N9),SUM(T1_R2!L9:'T1_R2'!N9)) -> 60916 | AD9: =IF(COUNTRY_INFO!K9=1,IF(COUNTRY_INFO!F9*0.33>MAX(T1_R1!M9,T1_R2!M9),MAX(T1_R1!M9,T1_R2!M9),COUNTRY_INFO!F9*0.33),IF(COUNTRY_INFO!K9=2,IF(COUNTRY_INFO!F9*0.5>MAX(T1_R1!M9,T1_R2!M9),MAX(T1_R1!M9,T1_R2!M9),COUNTRY_INFO!F9*0.5),IF(COUNTRY_INFO!K9=3,IF(COUNTRY_INFO!F9>MAX(T1_R1!M9,T1_R2!M9),MAX(T1_R1!M9,T1_R2!M9),COUNTRY_INFO!F9),0))) -> 7590 | AE9: =IF(AND(COUNTRY_INFO!K9>0,COUNTRY_INFO!K9<4),IF(Z9>0,IF(COUNTRY_INFO!K9=1, AD9/(COUNTRY_INFO!F9*0.33)*100, IF(COUNTRY_INFO!K9=2, AD9/(COUNTRY_INFO!F9*0.5)*100, IF(COUNTRY_INFO!K9=3, AD9/COUNTRY_INFO!F9*100))),"-"),0) -> 30.72066055 | AF9: =IF(COUNTRY_INFO!K9=2,IF(COUNTRY_INFO!G9*0.2>MAX(T1_R1!N9,T1_R2!N9),MAX(T1_R1!N9,T1_R2!N9),COUNTRY_INFO!G9*0.2),IF(COUNTRY_INFO!K9=3,IF(COUNTRY_INFO!G9>MAX(T1_R1!N9,T1_R2!N9),MAX(T1_R1!N9,T1_R2!N9),COUNTRY_INFO!G9),0)) -> 16797.4 | AG9: =IF(AND(COUNTRY_INFO!K9>0,COUNTRY_INFO!K9<4),IF(Z9>0,IF(COUNTRY_INFO!K9=1, 0, IF(COUNTRY_INFO!K9=2, AF9/(COUNTRY_INFO!G9*0.2)*100, IF(COUNTRY_INFO!K9=3, AF9/COUNTRY_INFO!G9*100))),"-"),0) -> 100 | AH9: =SUM(AD9,AF9) -> 24387.4 | AI9: =IF(AND(COUNTRY_INFO!K9>0,COUNTRY_INFO!K9<4), IF(AC9/Z9*100<>0, IF(AH9/Z9*100>100,100,AH9/Z9*100), "-"),0) -> 58.75929732 | AK9: =IF(AND(D9<>0, D9<>"Unknown",D9<>"Stopped",D9<>"Not required"),D9/COUNTRY_INFO!D9, 0) -> 1 | AL9: =IF(AND(J9<>0,J9<>"Unknown",J9<>"Stopped",J9<>"Not required"),J9/COUNTRY_INFO!D9, 0) -> 0 | AM9: =IF(AND(P9<>0,P9<>"Unknown",P9<>"Not required"),P9/(COUNTRY_INFO!E9+COUNTRY_INFO!F9), 0) -> 1 | AN9: =IF(AND(Z9<>0,Z9<>"Unknown",Z9<>"Not required"),IF(COUNTRY_INFO!K9=1,1,IF(COUNTRY_INFO!K9=2,0.5*COUNTRY_INFO!F9/(0.5*COUNTRY_INFO!F9+0.2*COUNTRY_INFO!G9),IF(COUNTRY_INFO!K9=3,COUNTRY_INFO!F9/(COUNTRY_INFO!F9+COUNTRY_INFO!G9)))),0) -> 0.5952814073 | AO9: =IF(AND(Z9<>0,Z9<>"Unknown",Z9<>"Not required"),IF(COUNTRY_INFO!K9=1,0,IF(COUNTRY_INFO!K9=2,0.2*COUNTRY_INFO!G9/(0.5*COUNTRY_INFO!F9+0.2*COUNTRY_INFO!G9),IF(COUNTRY_INFO!K9=3,COUNTRY_INFO!G9/(COUNTRY_INFO!F9+COUNTRY_INFO!G9)))),0) -> 0.4047185927 | AP9: =MAX(COUNTRY_INFO!D9*AK9*PROFILE!$G$7,COUNTRY_INFO!D9*AL9*PROFILE!$G$7) -> 0 | AQ9: =MAX(COUNTRY_INFO!D9*AK9*PROFILE!$G$8,COUNTRY_INFO!D9*AL9*PROFILE!$G$8,COUNTRY_INFO!D9*AM9*PROFILE!$G$8) -> 19581.79747 | AR9: =MAX(COUNTRY_INFO!D9*AK9*PROFILE!$G$9,COUNTRY_INFO!D9*AL9*PROFILE!$G$9,COUNTRY_INFO!D9*AM9*PROFILE!$G$9,IF(AND(DISTRICT!Z9<>"Unknown",Z9<>"Not required"),COUNTRY_INFO!O9*DISTRICT!AN9,0)) -> 49413.38474 | AS9: =MAX(COUNTRY_INFO!D9*AK9*PROFILE!$G$10,COUNTRY_INFO!D9*AL9*PROFILE!$G$10,IF(AND(DISTRICT!Z9<>"Unknown",Z9<>"Not required"),COUNTRY_INFO!O9*DISTRICT!AO9,0)) -> 83987.13744 | AT9: =SUM(AP9:AS9) -> 152982.3197 | AU9: =IF(COUNTIFS(AK9:AN9,">0")=0,0, IF(COUNTIFS(AK9:AN9,">0")<=IF(AND(OR(D9>=0,D9="Not required",D9="Unknown",D9="Stopped"),D9>0,H9>0),1,0)+IF(AND(OR(J9>=0,J9="Not required",J9="Unknown",J9="Stopped"),J9>0,N9>0),1,0)+IF(AND(OR(P9>=0,P9="Not required",P9="Unknown"),P9>0,X9>0),1,0)+IF(AND(OR(Z9>=0,Z9="Not required",Z9="Unknown"),Z9>0,AH9>0),1,0),"Y",0)) -> Y | AV9: =MAX('MDA2'!J9,T1_R1!L9,'T2'!J9,T3_R1!K9,T3_R2!K9) -> 0 | AW9: =MAX('MDA1'!K9,'MDA2'!K9,'MDA3'!I9,'MDA3'!L9,T1_R1!M9,'T2'!K9,T3_R1!L9,T3_R2!L9) -> 33075 | AX9: =MAX('MDA1'!L9,'MDA2'!L9,'MDA3'!J9,'MDA3'!M9,T1_R1!N9,'T2'!L9,T3_R1!M9,T3_R2!M9) -> 54841 | AY9: =SUM(AV9:AX9) -> 87916 | AZ9: =MAX('MDA2'!J9,T9) -> 0 | BA9: =MAX('MDA1'!K9,'MDA2'!K9,'MDA3'!I9,'MDA3'!L9,V9,AD9) -> 33075 | BB9: =MAX('MDA1'!L9,'MDA2'!L9,'MDA3'!J9,'MDA3'!M9,AF9) -> 54841 | BC9: =IF(AT9<SUM(AZ9:BB9), AT9,SUM(AZ9:BB9)) -> 87916 | BD9: =IF(AT9<>0,BC9/AT9*100,0) -> 57.46807879
A10: =IF(COUNTRY_INFO!A10=0," ",COUNTRY_INFO!A10) -> Zanzibar | B10: =IF(COUNTRY_INFO!B10=0," ",COUNTRY_INFO!B10) -> Kusini Pemba | C10: =IF(COUNTRY_INFO!C10=0," ",COUNTRY_INFO!C10) -> Chake Chake | D10: =COUNTRY_INFO!L10 -> 106918.3333 | G10: =MAX('MDA1'!M10,'MDA2'!M10) -> 78291 | H10: =IF(AND(COUNTRY_INFO!H10>0,COUNTRY_INFO!H10<4),IF(D10>MAX('MDA1'!M10,'MDA2'!M10),MAX('MDA1'!M10,'MDA2'!M10),D10),0) -> 78291 | I10: =IF(AND(COUNTRY_INFO!H10>0,COUNTRY_INFO!H10<4), IF(G10/D10*100<>0, IF(G10/D10*100>100,100,G10/D10*100), "-"),0) -> 73.22504715 | J10: =COUNTRY_INFO!M10 -> Not required | M10: =MAX('MDA1'!M10,MAX('MDA3'!I10,'MDA3'!L10)+MAX('MDA3'!J10,'MDA3'!M10)) -> 78291 | N10: =IF(AND(COUNTRY_INFO!I10>0,COUNTRY_INFO!I10<4),IF(J10>MAX('MDA1'!M10,MAX('MDA3'!I10,'MDA3'!L10)+MAX('MDA3'!J10,'MDA3'!M10)),MAX('MDA1'!M10,MAX('MDA3'!I10,'MDA3'!L10)+MAX('MDA3'!J10,'MDA3'!M10)),J10),0) -> 0 | O10: =IF(AND(COUNTRY_INFO!I10>0,COUNTRY_INFO!I10<4), IF(M10/J10*100<>0, IF(M10/J10*100>100,100,M10/J10*100), "-"),0) -> 0 | P10: =COUNTRY_INFO!N10 -> 48221 | S10: =SUM(MAX('MDA2'!J10, T1_R1!L10, MAX(T3_R1!K10, T3_R2!K10)), MAX('MDA1'!K10, 'MDA2'!K10, T1_R1!M10, MAX(T3_R1!L10, T3_R2!L10)), MAX('MDA1'!L10, 'MDA2'!L10, T1_R1!N10, MAX(T3_R1!M10, T3_R2!M10))) -> 78291 | T10: =IF(AND(COUNTRY_INFO!J10>1,COUNTRY_INFO!J10<4),IF(COUNTRY_INFO!E10>MAX('MDA2'!J10,T1_R1!L10,MAX(T3_R1!K10,T3_R2!K10)),MAX('MDA2'!J10,T1_R1!L10,MAX(T3_R1!K10,T3_R2!K10)),COUNTRY_INFO!E10),0) -> 0 | U10: =IF(AND(COUNTRY_INFO!J10>1,COUNTRY_INFO!J10<4), IF(T10/COUNTRY_INFO!E10*100<>0, IF(T10/COUNTRY_INFO!E10*100>100,100,T10/COUNTRY_INFO!E10*100), "-"),0) -> - | V10: =IF(AND(COUNTRY_INFO!J10>1,COUNTRY_INFO!J10<4),IF(COUNTRY_INFO!F10>MAX('MDA1'!K10,'MDA2'!K10,T1_R1!M10,MAX(T3_R1!L10,T3_R2!L10)),MAX('MDA1'!K10,'MDA2'!K10,T1_R1!M10,MAX(T3_R1!L10,T3_R2!L10)),COUNTRY_INFO!F10),0) -> 28331 | W10: =IF(AND(COUNTRY_INFO!J10>1,COUNTRY_INFO!J10<4), IF(V10/COUNTRY_INFO!F10*100<>0, IF(V10/COUNTRY_INFO!F10*100>100,100,V10/COUNTRY_INFO!F10*100), "-"),0) -> 82.03561604 | X10: =SUM(T10,V10) -> 28331 | Y10: =IF(AND(COUNTRY_INFO!J10>1,COUNTRY_INFO!J10<4), IF(S10/P10*100<>0, IF(X10/P10*100>100,100,X10/P10*100), "-"),0) -> 58.75241078 | Z10: =COUNTRY_INFO!O10 -> 29007.1 | AC10: =MAX(SUM(T1_R1!L10:'T1_R1'!N10),SUM(T1_R2!L10:'T1_R2'!N10)) -> 57552 | AD10: =IF(COUNTRY_INFO!K10=1,IF(COUNTRY_INFO!F10*0.33>MAX(T1_R1!M10,T1_R2!M10),MAX(T1_R1!M10,T1_R2!M10),COUNTRY_INFO!F10*0.33),IF(COUNTRY_INFO!K10=2,IF(COUNTRY_INFO!F10*0.5>MAX(T1_R1!M10,T1_R2!M10),MAX(T1_R1!M10,T1_R2!M10),COUNTRY_INFO!F10*0.5),IF(COUNTRY_INFO!K10=3,IF(COUNTRY_INFO!F10>MAX(T1_R1!M10,T1_R2!M10),MAX(T1_R1!M10,T1_R2!M10),COUNTRY_INFO!F10),0))) -> 17267.5 | AE10: =IF(AND(COUNTRY_INFO!K10>0,COUNTRY_INFO!K10<4),IF(Z10>0,IF(COUNTRY_INFO!K10=1, AD10/(COUNTRY_INFO!F10*0.33)*100, IF(COUNTRY_INFO!K10=2, AD10/(COUNTRY_INFO!F10*0.5)*100, IF(COUNTRY_INFO!K10=3, AD10/COUNTRY_INFO!F10*100))),"-"),0) -> 100 | AF10: =IF(COUNTRY_INFO!K10=2,IF(COUNTRY_INFO!G10*0.2>MAX(T1_R1!N10,T1_R2!N10),MAX(T1_R1!N10,T1_R2!N10),COUNTRY_INFO!G10*0.2),IF(COUNTRY_INFO!K10=3,IF(COUNTRY_INFO!G10>MAX(T1_R1!N10,T1_R2!N10),MAX(T1_R1!N10,T1_R2!N10),COUNTRY_INFO!G10),0)) -> 11739.6 | AG10: =IF(AND(COUNTRY_INFO!K10>0,COUNTRY_INFO!K10<4),IF(Z10>0,IF(COUNTRY_INFO!K10=1, 0, IF(COUNTRY_INFO!K10=2, AF10/(COUNTRY_INFO!G10*0.2)*100, IF(COUNTRY_INFO!K10=3, AF10/COUNTRY_INFO!G10*100))),"-"),0) -> 100 | AH10: =SUM(AD10,AF10) -> 29007.1 | AI10: =IF(AND(COUNTRY_INFO!K10>0,COUNTRY_INFO!K10<4), IF(AC10/Z10*100<>0, IF(AH10/Z10*100>100,100,AH10/Z10*100), "-"),0) -> 100 | AK10: =IF(AND(D10<>0, D10<>"Unknown",D10<>"Stopped",D10<>"Not required"),D10/COUNTRY_INFO!D10, 0) -> 1 | AL10: =IF(AND(J10<>0,J10<>"Unknown",J10<>"Stopped",J10<>"Not required"),J10/COUNTRY_INFO!D10, 0) -> 0 | AM10: =IF(AND(P10<>0,P10<>"Unknown",P10<>"Not required"),P10/(COUNTRY_INFO!E10+COUNTRY_INFO!F10), 0) -> 1 | AN10: =IF(AND(Z10<>0,Z10<>"Unknown",Z10<>"Not required"),IF(COUNTRY_INFO!K10=1,1,IF(COUNTRY_INFO!K10=2,0.5*COUNTRY_INFO!F10/(0.5*COUNTRY_INFO!F10+0.2*COUNTRY_INFO!G10),IF(COUNTRY_INFO!K10=3,COUNTRY_INFO!F10/(COUNTRY_INFO!F10+COUNTRY_INFO!G10)))),0) -> 0.5952852922 | AO10: =IF(AND(Z10<>0,Z10<>"Unknown",Z10<>"Not required"),IF(COUNTRY_INFO!K10=1,0,IF(COUNTRY_INFO!K10=2,0.2*COUNTRY_INFO!G10/(0.5*COUNTRY_INFO!F10+0.2*COUNTRY_INFO!G10),IF(COUNTRY_INFO!K10=3,COUNTRY_INFO!G10/(COUNTRY_INFO!F10+COUNTRY_INFO!G10)))),0) -> 0.4047147078 | AP10: =MAX(COUNTRY_INFO!D10*AK10*PROFILE!$G$7,COUNTRY_INFO!D10*AL10*PROFILE!$G$7) -> 0 | AQ10: =MAX(COUNTRY_INFO!D10*AK10*PROFILE!$G$8,COUNTRY_INFO!D10*AL10*PROFILE!$G$8,COUNTRY_INFO!D10*AM10*PROFILE!$G$8) -> 13685.60566 | AR10: =MAX(COUNTRY_INFO!D10*AK10*PROFILE!$G$9,COUNTRY_INFO!D10*AL10*PROFILE!$G$9,COUNTRY_INFO!D10*AM10*PROFILE!$G$9,IF(AND(DISTRICT!Z10<>"Unknown",Z10<>"Not required"),COUNTRY_INFO!O10*DISTRICT!AN10,0)) -> 34534.73047 | AS10: =MAX(COUNTRY_INFO!D10*AK10*PROFILE!$G$10,COUNTRY_INFO!D10*AL10*PROFILE!$G$10,IF(AND(DISTRICT!Z10<>"Unknown",Z10<>"Not required"),COUNTRY_INFO!O10*DISTRICT!AO10,0)) -> 58698.12743 | AT10: =SUM(AP10:AS10) -> 106918.4636 | AU10: Y | AV10: =MAX('MDA2'!J10,T1_R1!L10,'T2'!J10,T3_R1!K10,T3_R2!K10) -> 0 | AW10: =MAX('MDA1'!K10,'MDA2'!K10,'MDA3'!I10,'MDA3'!L10,T1_R1!M10,'T2'!K10,T3_R1!L10,T3_R2!L10) -> 28331 | AX10: =MAX('MDA1'!L10,'MDA2'!L10,'MDA3'!J10,'MDA3'!M10,T1_R1!N10,'T2'!L10,T3_R1!M10,T3_R2!M10) -> 49960 | AY10: =SUM(AV10:AX10) -> 78291 | AZ10: =MAX('MDA2'!J10,T10) -> 0 | BA10: =MAX('MDA1'!K10,'MDA2'!K10,'MDA3'!I10,'MDA3'!L10,V10,AD10) -> 28331 | BB10: =MAX('MDA1'!L10,'MDA2'!L10,'MDA3'!J10,'MDA3'!M10,AF10) -> 49960 | BC10: 78291 | BD10: 73.22495797
A11: =IF(COUNTRY_INFO!A11=0," ",COUNTRY_INFO!A11) -> Zanzibar | B11: =IF(COUNTRY_INFO!B11=0," ",COUNTRY_INFO!B11) -> Kaskazini Pemba | C11: =IF(COUNTRY_INFO!C11=0," ",COUNTRY_INFO!C11) -> Wete | D11: =COUNTRY_INFO!L11 -> 72184.66667 | G11: =MAX('MDA1'!M11,'MDA2'!M11) -> 44453 | H11: =IF(AND(COUNTRY_INFO!H11>0,COUNTRY_INFO!H11<4),IF(D11>MAX('MDA1'!M11,'MDA2'!M11),MAX('MDA1'!M11,'MDA2'!M11),D11),0) -> 44453 | I11: =IF(AND(COUNTRY_INFO!H11>0,COUNTRY_INFO!H11<4), IF(G11/D11*100<>0, IF(G11/D11*100>100,100,G11/D11*100), "-"),0) -> 61.5823305 | J11: =COUNTRY_INFO!M11 -> Not required | M11: =MAX('MDA1'!M11,MAX('MDA3'!I11,'MDA3'!L11)+MAX('MDA3'!J11,'MDA3'!M11)) -> 44453 | N11: =IF(AND(COUNTRY_INFO!I11>0,COUNTRY_INFO!I11<4),IF(J11>MAX('MDA1'!M11,MAX('MDA3'!I11,'MDA3'!L11)+MAX('MDA3'!J11,'MDA3'!M11)),MAX('MDA1'!M11,MAX('MDA3'!I11,'MDA3'!L11)+MAX('MDA3'!J11,'MDA3'!M11)),J11),0) -> 0 | O11: =IF(AND(COUNTRY_INFO!I11>0,COUNTRY_INFO!I11<4), IF(M11/J11*100<>0, IF(M11/J11*100>100,100,M11/J11*100), "-"),0) -> 0 | P11: =COUNTRY_INFO!N11 -> 32556 | S11: =SUM(MAX('MDA2'!J11, T1_R1!L11, MAX(T3_R1!K11, T3_R2!K11)), MAX('MDA1'!K11, 'MDA2'!K11, T1_R1!M11, MAX(T3_R1!L11, T3_R2!L11)), MAX('MDA1'!L11, 'MDA2'!L11, T1_R1!N11, MAX(T3_R1!M11, T3_R2!M11))) -> 88453 | T11: =IF(AND(COUNTRY_INFO!J11>1,COUNTRY_INFO!J11<4),IF(COUNTRY_INFO!E11>MAX('MDA2'!J11,T1_R1!L11,MAX(T3_R1!K11,T3_R2!K11)),MAX('MDA2'!J11,T1_R1!L11,MAX(T3_R1!K11,T3_R2!K11)),COUNTRY_INFO!E11),0) -> 0 | U11: =IF(AND(COUNTRY_INFO!J11>1,COUNTRY_INFO!J11<4), IF(T11/COUNTRY_INFO!E11*100<>0, IF(T11/COUNTRY_INFO!E11*100>100,100,T11/COUNTRY_INFO!E11*100), "-"),0) -> - | V11: =IF(AND(COUNTRY_INFO!J11>1,COUNTRY_INFO!J11<4),IF(COUNTRY_INFO!F11>MAX('MDA1'!K11,'MDA2'!K11,T1_R1!M11,MAX(T3_R1!L11,T3_R2!L11)),MAX('MDA1'!K11,'MDA2'!K11,T1_R1!M11,MAX(T3_R1!L11,T3_R2!L11)),COUNTRY_INFO!F11),0) -> 23316 | W11: =IF(AND(COUNTRY_INFO!J11>1,COUNTRY_INFO!J11<4), IF(V11/COUNTRY_INFO!F11*100<>0, IF(V11/COUNTRY_INFO!F11*100>100,100,V11/COUNTRY_INFO!F11*100), "-"),0) -> 100 | X11: 23316 | Y11: =IF(AND(COUNTRY_INFO!J11>1,COUNTRY_INFO!J11<4), IF(S11/P11*100<>0, IF(X11/P11*100>100,100,X11/P11*100), "-"),0) -> 71.61813491 | Z11: =COUNTRY_INFO!O11 -> 19583.8 | AC11: =MAX(SUM(T1_R1!L11:'T1_R1'!N11),SUM(T1_R2!L11:'T1_R2'!N11)) -> 88453 | AD11: =IF(COUNTRY_INFO!K11=1,IF(COUNTRY_INFO!F11*0.33>MAX(T1_R1!M11,T1_R2!M11),MAX(T1_R1!M11,T1_R2!M11),COUNTRY_INFO!F11*0.33),IF(COUNTRY_INFO!K11=2,IF(COUNTRY_INFO!F11*0.5>MAX(T1_R1!M11,T1_R2!M11),MAX(T1_R1!M11,T1_R2!M11),COUNTRY_INFO!F11*0.5),IF(COUNTRY_INFO!K11=3,IF(COUNTRY_INFO!F11>MAX(T1_R1!M11,T1_R2!M11),MAX(T1_R1!M11,T1_R2!M11),COUNTRY_INFO!F11),0))) -> 11658 | AE11: =IF(AND(COUNTRY_INFO!K11>0,COUNTRY_INFO!K11<4),IF(Z11>0,IF(COUNTRY_INFO!K11=1, AD11/(COUNTRY_INFO!F11*0.33)*100, IF(COUNTRY_INFO!K11=2, AD11/(COUNTRY_INFO!F11*0.5)*100, IF(COUNTRY_INFO!K11=3, AD11/COUNTRY_INFO!F11*100))),"-"),0) -> 100 | AF11: =IF(COUNTRY_INFO!K11=2,IF(COUNTRY_INFO!G11*0.2>MAX(T1_R1!N11,T1_R2!N11),MAX(T1_R1!N11,T1_R2!N11),COUNTRY_INFO!G11*0.2),IF(COUNTRY_INFO!K11=3,IF(COUNTRY_INFO!G11>MAX(T1_R1!N11,T1_R2!N11),MAX(T1_R1!N11,T1_R2!N11),COUNTRY_INFO!G11),0)) -> 7925.8 | AG11: =IF(AND(COUNTRY_INFO!K11>0,COUNTRY_INFO!K11<4),IF(Z11>0,IF(COUNTRY_INFO!K11=1, 0, IF(COUNTRY_INFO!K11=2, AF11/(COUNTRY_INFO!G11*0.2)*100, IF(COUNTRY_INFO!K11=3, AF11/COUNTRY_INFO!G11*100))),"-"),0) -> 100 | AH11: 19583.8 | AI11: =IF(AND(COUNTRY_INFO!K11>0,COUNTRY_INFO!K11<4), IF(AC11/Z11*100<>0, IF(AH11/Z11*100>100,100,AH11/Z11*100), "-"),0) -> 100 | AK11: =IF(AND(D11<>0, D11<>"Unknown",D11<>"Stopped",D11<>"Not required"),D11/COUNTRY_INFO!D11, 0) -> 1 | AL11: =IF(AND(J11<>0,J11<>"Unknown",J11<>"Stopped",J11<>"Not required"),J11/COUNTRY_INFO!D11, 0) -> 0 | AM11: =IF(AND(P11<>0,P11<>"Unknown",P11<>"Not required"),P11/(COUNTRY_INFO!E11+COUNTRY_INFO!F11), 0) -> 1 | AN11: =IF(AND(Z11<>0,Z11<>"Unknown",Z11<>"Not required"),IF(COUNTRY_INFO!K11=1,1,IF(COUNTRY_INFO!K11=2,0.5*COUNTRY_INFO!F11/(0.5*COUNTRY_INFO!F11+0.2*COUNTRY_INFO!G11),IF(COUNTRY_INFO!K11=3,COUNTRY_INFO!F11/(COUNTRY_INFO!F11+COUNTRY_INFO!G11)))),0) -> 0.5952879421 | AO11: =IF(AND(Z11<>0,Z11<>"Unknown",Z11<>"Not required"),IF(COUNTRY_INFO!K11=1,0,IF(COUNTRY_INFO!K11=2,0.2*COUNTRY_INFO!G11/(0.5*COUNTRY_INFO!F11+0.2*COUNTRY_INFO!G11),IF(COUNTRY_INFO!K11=3,COUNTRY_INFO!G11/(COUNTRY_INFO!F11+COUNTRY_INFO!G11)))),0) -> 0.4047120579 | AP11: =MAX(COUNTRY_INFO!D11*AK11*PROFILE!$G$7,COUNTRY_INFO!D11*AL11*PROFILE!$G$7) -> 0 | AQ11: =MAX(COUNTRY_INFO!D11*AK11*PROFILE!$G$8,COUNTRY_INFO!D11*AL11*PROFILE!$G$8,COUNTRY_INFO!D11*AM11*PROFILE!$G$8) -> 9239.677161 | AR11: =MAX(COUNTRY_INFO!D11*AK11*PROFILE!$G$9,COUNTRY_INFO!D11*AL11*PROFILE!$G$9,COUNTRY_INFO!D11*AM11*PROFILE!$G$9,IF(AND(DISTRICT!Z11<>"Unknown",Z11<>"Not required"),COUNTRY_INFO!O11*DISTRICT!AN11,0)) -> 23315.72079 | AS11: =MAX(COUNTRY_INFO!D11*AK11*PROFILE!$G$10,COUNTRY_INFO!D11*AL11*PROFILE!$G$10,IF(AND(DISTRICT!Z11<>"Unknown",Z11<>"Not required"),COUNTRY_INFO!O11*DISTRICT!AO11,0)) -> 39629.35664 | AT11: 72184.75459 | AU11: Y | AV11: =MAX('MDA2'!J11,T1_R1!L11,'T2'!J11,T3_R1!K11,T3_R2!K11) -> 0 | AW11: =MAX('MDA1'!K11,'MDA2'!K11,'MDA3'!I11,'MDA3'!L11,T1_R1!M11,'T2'!K11,T3_R1!L11,T3_R2!L11) -> 26703 | AX11: =MAX('MDA1'!L11,'MDA2'!L11,'MDA3'!J11,'MDA3'!M11,T1_R1!N11,'T2'!L11,T3_R1!M11,T3_R2!M11) -> 61750 | AY11: 88453 | AZ11: =MAX('MDA2'!J11,T11) -> 0 | BA11: =MAX('MDA1'!K11,'MDA2'!K11,'MDA3'!I11,'MDA3'!L11,V11,AD11) -> 23316 | BB11: =MAX('MDA1'!L11,'MDA2'!L11,'MDA3'!J11,'MDA3'!M11,AF11) -> 33750 | BC11: 57066 | BD11: 79.05547415
A12: =IF(COUNTRY_INFO!A12=0," ",COUNTRY_INFO!A12) -> Zanzibar | B12: =IF(COUNTRY_INFO!B12=0," ",COUNTRY_INFO!B12) -> Kaskazini Pemba | C12: =IF(COUNTRY_INFO!C12=0," ",COUNTRY_INFO!C12) -> Micheweni | D12: =COUNTRY_INFO!L12 -> 106147.1333 | G12: =MAX('MDA1'!M12,'MDA2'!M12) -> 72874 | H12: =IF(AND(COUNTRY_INFO!H12>0,COUNTRY_INFO!H12<4),IF(D12>MAX('MDA1'!M12,'MDA2'!M12),MAX('MDA1'!M12,'MDA2'!M12),D12),0) -> 72874 | I12: =IF(AND(COUNTRY_INFO!H12>0,COUNTRY_INFO!H12<4), IF(G12/D12*100<>0, IF(G12/D12*100>100,100,G12/D12*100), "-"),0) -> 68.65376173 | J12: =COUNTRY_INFO!M12 -> Not required | M12: =MAX('MDA1'!M12,MAX('MDA3'!I12,'MDA3'!L12)+MAX('MDA3'!J12,'MDA3'!M12)) -> 72874 | N12: =IF(AND(COUNTRY_INFO!I12>0,COUNTRY_INFO!I12<4),IF(J12>MAX('MDA1'!M12,MAX('MDA3'!I12,'MDA3'!L12)+MAX('MDA3'!J12,'MDA3'!M12)),MAX('MDA1'!M12,MAX('MDA3'!I12,'MDA3'!L12)+MAX('MDA3'!J12,'MDA3'!M12)),J12),0) -> 0 | O12: =IF(AND(COUNTRY_INFO!I12>0,COUNTRY_INFO!I12<4), IF(M12/J12*100<>0, IF(M12/J12*100>100,100,M12/J12*100), "-"),0) -> 0 | P12: =COUNTRY_INFO!N12 -> 47873 | S12: =SUM(MAX('MDA2'!J12, T1_R1!L12, MAX(T3_R1!K12, T3_R2!K12)), MAX('MDA1'!K12, 'MDA2'!K12, T1_R1!M12, MAX(T3_R1!L12, T3_R2!L12)), MAX('MDA1'!L12, 'MDA2'!L12, T1_R1!N12, MAX(T3_R1!M12, T3_R2!M12))) -> 72874 | T12: =IF(AND(COUNTRY_INFO!J12>1,COUNTRY_INFO!J12<4),IF(COUNTRY_INFO!E12>MAX('MDA2'!J12,T1_R1!L12,MAX(T3_R1!K12,T3_R2!K12)),MAX('MDA2'!J12,T1_R1!L12,MAX(T3_R1!K12,T3_R2!K12)),COUNTRY_INFO!E12),0) -> 0 | U12: =IF(AND(COUNTRY_INFO!J12>1,COUNTRY_INFO!J12<4), IF(T12/COUNTRY_INFO!E12*100<>0, IF(T12/COUNTRY_INFO!E12*100>100,100,T12/COUNTRY_INFO!E12*100), "-"),0) -> - | V12: =IF(AND(COUNTRY_INFO!J12>1,COUNTRY_INFO!J12<4),IF(COUNTRY_INFO!F12>MAX('MDA1'!K12,'MDA2'!K12,T1_R1!M12,MAX(T3_R1!L12,T3_R2!L12)),MAX('MDA1'!K12,'MDA2'!K12,T1_R1!M12,MAX(T3_R1!L12,T3_R2!L12)),COUNTRY_INFO!F12),0) -> 23206 | W12: =IF(AND(COUNTRY_INFO!J12>1,COUNTRY_INFO!J12<4), IF(V12/COUNTRY_INFO!F12*100<>0, IF(V12/COUNTRY_INFO!F12*100>100,100,V12/COUNTRY_INFO!F12*100), "-"),0) -> 67.68360264 | X12: 23206 | Y12: =IF(AND(COUNTRY_INFO!J12>1,COUNTRY_INFO!J12<4), IF(S12/P12*100<>0, IF(X12/P12*100>100,100,X12/P12*100), "-"),0) -> 48.47408769 | Z12: =COUNTRY_INFO!O12 -> 11314.38 | AC12: =MAX(SUM(T1_R1!L12:'T1_R1'!N12),SUM(T1_R2!L12:'T1_R2'!N12)) -> 47472 | AD12: =IF(COUNTRY_INFO!K12=1,IF(COUNTRY_INFO!F12*0.33>MAX(T1_R1!M12,T1_R2!M12),MAX(T1_R1!M12,T1_R2!M12),COUNTRY_INFO!F12*0.33),IF(COUNTRY_INFO!K12=2,IF(COUNTRY_INFO!F12*0.5>MAX(T1_R1!M12,T1_R2!M12),MAX(T1_R1!M12,T1_R2!M12),COUNTRY_INFO!F12*0.5),IF(COUNTRY_INFO!K12=3,IF(COUNTRY_INFO!F12>MAX(T1_R1!M12,T1_R2!M12),MAX(T1_R1!M12,T1_R2!M12),COUNTRY_INFO!F12),0))) -> 11314.38 | AE12: =IF(AND(COUNTRY_INFO!K12>0,COUNTRY_INFO!K12<4),IF(Z12>0,IF(COUNTRY_INFO!K12=1, AD12/(COUNTRY_INFO!F12*0.33)*100, IF(COUNTRY_INFO!K12=2, AD12/(COUNTRY_INFO!F12*0.5)*100, IF(COUNTRY_INFO!K12=3, AD12/COUNTRY_INFO!F12*100))),"-"),0) -> 100 | AF12: =IF(COUNTRY_INFO!K12=2,IF(COUNTRY_INFO!G12*0.2>MAX(T1_R1!N12,T1_R2!N12),MAX(T1_R1!N12,T1_R2!N12),COUNTRY_INFO!G12*0.2),IF(COUNTRY_INFO!K12=3,IF(COUNTRY_INFO!G12>MAX(T1_R1!N12,T1_R2!N12),MAX(T1_R1!N12,T1_R2!N12),COUNTRY_INFO!G12),0)) -> 0 | AG12: =IF(AND(COUNTRY_INFO!K12>0,COUNTRY_INFO!K12<4),IF(Z12>0,IF(COUNTRY_INFO!K12=1, 0, IF(COUNTRY_INFO!K12=2, AF12/(COUNTRY_INFO!G12*0.2)*100, IF(COUNTRY_INFO!K12=3, AF12/COUNTRY_INFO!G12*100))),"-"),0) -> 0 | AH12: 11314.38 | AI12: =IF(AND(COUNTRY_INFO!K12>0,COUNTRY_INFO!K12<4), IF(AC12/Z12*100<>0, IF(AH12/Z12*100>100,100,AH12/Z12*100), "-"),0) -> 100 | AK12: =IF(AND(D12<>0, D12<>"Unknown",D12<>"Stopped",D12<>"Not required"),D12/COUNTRY_INFO!D12, 0) -> 1 | AL12: =IF(AND(J12<>0,J12<>"Unknown",J12<>"Stopped",J12<>"Not required"),J12/COUNTRY_INFO!D12, 0) -> 0 | AM12: =IF(AND(P12<>0,P12<>"Unknown",P12<>"Not required"),P12/(COUNTRY_INFO!E12+COUNTRY_INFO!F12), 0) -> 1 | AN12: =IF(AND(Z12<>0,Z12<>"Unknown",Z12<>"Not required"),IF(COUNTRY_INFO!K12=1,1,IF(COUNTRY_INFO!K12=2,0.5*COUNTRY_INFO!F12/(0.5*COUNTRY_INFO!F12+0.2*COUNTRY_INFO!G12),IF(COUNTRY_INFO!K12=3,COUNTRY_INFO!F12/(COUNTRY_INFO!F12+COUNTRY_INFO!G12)))),0) -> 1 | AO12: =IF(AND(Z12<>0,Z12<>"Unknown",Z12<>"Not required"),IF(COUNTRY_INFO!K12=1,0,IF(COUNTRY_INFO!K12=2,0.2*COUNTRY_INFO!G12/(0.5*COUNTRY_INFO!F12+0.2*COUNTRY_INFO!G12),IF(COUNTRY_INFO!K12=3,COUNTRY_INFO!G12/(COUNTRY_INFO!F12+COUNTRY_INFO!G12)))),0) -> 0 | AP12: =MAX(COUNTRY_INFO!D12*AK12*PROFILE!$G$7,COUNTRY_INFO!D12*AL12*PROFILE!$G$7) -> 0 | AQ12: =MAX(COUNTRY_INFO!D12*AK12*PROFILE!$G$8,COUNTRY_INFO!D12*AL12*PROFILE!$G$8,COUNTRY_INFO!D12*AM12*PROFILE!$G$8) -> 13586.89163 | AR12: =MAX(COUNTRY_INFO!D12*AK12*PROFILE!$G$9,COUNTRY_INFO!D12*AL12*PROFILE!$G$9,COUNTRY_INFO!D12*AM12*PROFILE!$G$9,IF(AND(DISTRICT!Z12<>"Unknown",Z12<>"Not required"),COUNTRY_INFO!O12*DISTRICT!AN12,0)) -> 34285.63208 | AS12: =MAX(COUNTRY_INFO!D12*AK12*PROFILE!$G$10,COUNTRY_INFO!D12*AL12*PROFILE!$G$10,IF(AND(DISTRICT!Z12<>"Unknown",Z12<>"Not required"),COUNTRY_INFO!O12*DISTRICT!AO12,0)) -> 58274.7389 | AT12: 106147.2626 | AU12: Y | AV12: =MAX('MDA2'!J12,T1_R1!L12,'T2'!J12,T3_R1!K12,T3_R2!K12) -> 0 | AW12: =MAX('MDA1'!K12,'MDA2'!K12,'MDA3'!I12,'MDA3'!L12,T1_R1!M12,'T2'!K12,T3_R1!L12,T3_R2!L12) -> 23206 | AX12: =MAX('MDA1'!L12,'MDA2'!L12,'MDA3'!J12,'MDA3'!M12,T1_R1!N12,'T2'!L12,T3_R1!M12,T3_R2!M12) -> 49668 | AY12: 72874 | AZ12: =MAX('MDA2'!J12,T12) -> 0 | BA12: =MAX('MDA1'!K12,'MDA2'!K12,'MDA3'!I12,'MDA3'!L12,V12,AD12) -> 23206 | BB12: =MAX('MDA1'!L12,'MDA2'!L12,'MDA3'!J12,'MDA3'!M12,AF12) -> 49668 | BC12: 72874 | BD12: 68.65367811
A13: =IF(COUNTRY_INFO!A13=0," ",COUNTRY_INFO!A13) -> Zanzibar | B13: =IF(COUNTRY_INFO!B13=0," ",COUNTRY_INFO!B13) -> Kaskazini Unguja | C13: =IF(COUNTRY_INFO!C13=0," ",COUNTRY_INFO!C13) -> Kaskazini A | D13: =COUNTRY_INFO!L13 -> 110542.3333 | G13: =MAX('MDA1'!M13,'MDA2'!M13) -> 87409 | H13: =IF(AND(COUNTRY_INFO!H13>0,COUNTRY_INFO!H13<4),IF(D13>MAX('MDA1'!M13,'MDA2'!M13),MAX('MDA1'!M13,'MDA2'!M13),D13),0) -> 87409 | I13: =IF(AND(COUNTRY_INFO!H13>0,COUNTRY_INFO!H13<4), IF(G13/D13*100<>0, IF(G13/D13*100>100,100,G13/D13*100), "-"),0) -> 79.07287404 | J13: =COUNTRY_INFO!M13 -> Not required | M13: =MAX('MDA1'!M13,MAX('MDA3'!I13,'MDA3'!L13)+MAX('MDA3'!J13,'MDA3'!M13)) -> 87409 | N13: =IF(AND(COUNTRY_INFO!I13>0,COUNTRY_INFO!I13<4),IF(J13>MAX('MDA1'!M13,MAX('MDA3'!I13,'MDA3'!L13)+MAX('MDA3'!J13,'MDA3'!M13)),MAX('MDA1'!M13,MAX('MDA3'!I13,'MDA3'!L13)+MAX('MDA3'!J13,'MDA3'!M13)),J13),0) -> 0 | O13: =IF(AND(COUNTRY_INFO!I13>0,COUNTRY_INFO!I13<4), IF(M13/J13*100<>0, IF(M13/J13*100>100,100,M13/J13*100), "-"),0) -> 0 | P13: =COUNTRY_INFO!N13 -> 49854 | S13: =SUM(MAX('MDA2'!J13, T1_R1!L13, MAX(T3_R1!K13, T3_R2!K13)), MAX('MDA1'!K13, 'MDA2'!K13, T1_R1!M13, MAX(T3_R1!L13, T3_R2!L13)), MAX('MDA1'!L13, 'MDA2'!L13, T1_R1!N13, MAX(T3_R1!M13, T3_R2!M13))) -> 87409 | T13: =IF(AND(COUNTRY_INFO!J13>1,COUNTRY_INFO!J13<4),IF(COUNTRY_INFO!E13>MAX('MDA2'!J13,T1_R1!L13,MAX(T3_R1!K13,T3_R2!K13)),MAX('MDA2'!J13,T1_R1!L13,MAX(T3_R1!K13,T3_R2!K13)),COUNTRY_INFO!E13),0) -> 0 | U13: =IF(AND(COUNTRY_INFO!J13>1,COUNTRY_INFO!J13<4), IF(T13/COUNTRY_INFO!E13*100<>0, IF(T13/COUNTRY_INFO!E13*100>100,100,T13/COUNTRY_INFO!E13*100), "-"),0) -> - | V13: =IF(AND(COUNTRY_INFO!J13>1,COUNTRY_INFO!J13<4),IF(COUNTRY_INFO!F13>MAX('MDA1'!K13,'MDA2'!K13,T1_R1!M13,MAX(T3_R1!L13,T3_R2!L13)),MAX('MDA1'!K13,'MDA2'!K13,T1_R1!M13,MAX(T3_R1!L13,T3_R2!L13)),COUNTRY_INFO!F13),0) -> 29822 | W13: =IF(AND(COUNTRY_INFO!J13>1,COUNTRY_INFO!J13<4), IF(V13/COUNTRY_INFO!F13*100<>0, IF(V13/COUNTRY_INFO!F13*100>100,100,V13/COUNTRY_INFO!F13*100), "-"),0) -> 83.52331606 | X13: 29822 | Y13: =IF(AND(COUNTRY_INFO!J13>1,COUNTRY_INFO!J13<4), IF(S13/P13*100<>0, IF(X13/P13*100>100,100,X13/P13*100), "-"),0) -> 59.81867052 | Z13: =COUNTRY_INFO!O13 -> 29990.1 | AC13: =MAX(SUM(T1_R1!L13:'T1_R1'!N13),SUM(T1_R2!L13:'T1_R2'!N13)) -> 84239 | AD13: =IF(COUNTRY_INFO!K13=1,IF(COUNTRY_INFO!F13*0.33>MAX(T1_R1!M13,T1_R2!M13),MAX(T1_R1!M13,T1_R2!M13),COUNTRY_INFO!F13*0.33),IF(COUNTRY_INFO!K13=2,IF(COUNTRY_INFO!F13*0.5>MAX(T1_R1!M13,T1_R2!M13),MAX(T1_R1!M13,T1_R2!M13),COUNTRY_INFO!F13*0.5),IF(COUNTRY_INFO!K13=3,IF(COUNTRY_INFO!F13>MAX(T1_R1!M13,T1_R2!M13),MAX(T1_R1!M13,T1_R2!M13),COUNTRY_INFO!F13),0))) -> 17852.5 | AE13: =IF(AND(COUNTRY_INFO!K13>0,COUNTRY_INFO!K13<4),IF(Z13>0,IF(COUNTRY_INFO!K13=1, AD13/(COUNTRY_INFO!F13*0.33)*100, IF(COUNTRY_INFO!K13=2, AD13/(COUNTRY_INFO!F13*0.5)*100, IF(COUNTRY_INFO!K13=3, AD13/COUNTRY_INFO!F13*100))),"-"),0) -> 100 | AF13: =IF(COUNTRY_INFO!K13=2,IF(COUNTRY_INFO!G13*0.2>MAX(T1_R1!N13,T1_R2!N13),MAX(T1_R1!N13,T1_R2!N13),COUNTRY_INFO!G13*0.2),IF(COUNTRY_INFO!K13=3,IF(COUNTRY_INFO!G13>MAX(T1_R1!N13,T1_R2!N13),MAX(T1_R1!N13,T1_R2!N13),COUNTRY_INFO!G13),0)) -> 12137.6 | AG13: =IF(AND(COUNTRY_INFO!K13>0,COUNTRY_INFO!K13<4),IF(Z13>0,IF(COUNTRY_INFO!K13=1, 0, IF(COUNTRY_INFO!K13=2, AF13/(COUNTRY_INFO!G13*0.2)*100, IF(COUNTRY_INFO!K13=3, AF13/COUNTRY_INFO!G13*100))),"-"),0) -> 100 | AH13: 29990.1 | AI13: =IF(AND(COUNTRY_INFO!K13>0,COUNTRY_INFO!K13<4), IF(AC13/Z13*100<>0, IF(AH13/Z13*100>100,100,AH13/Z13*100), "-"),0) -> 100 | AK13: =IF(AND(D13<>0, D13<>"Unknown",D13<>"Stopped",D13<>"Not required"),D13/COUNTRY_INFO!D13, 0) -> 1 | AL13: =IF(AND(J13<>0,J13<>"Unknown",J13<>"Stopped",J13<>"Not required"),J13/COUNTRY_INFO!D13, 0) -> 0 | AM13: =IF(AND(P13<>0,P13<>"Unknown",P13<>"Not required"),P13/(COUNTRY_INFO!E13+COUNTRY_INFO!F13), 0) -> 1 | AN13: =IF(AND(Z13<>0,Z13<>"Unknown",Z13<>"Not required"),IF(COUNTRY_INFO!K13=1,1,IF(COUNTRY_INFO!K13=2,0.5*COUNTRY_INFO!F13/(0.5*COUNTRY_INFO!F13+0.2*COUNTRY_INFO!G13),IF(COUNTRY_INFO!K13=3,COUNTRY_INFO!F13/(COUNTRY_INFO!F13+COUNTRY_INFO!G13)))),0) -> 0.5952797757 | AO13: =IF(AND(Z13<>0,Z13<>"Unknown",Z13<>"Not required"),IF(COUNTRY_INFO!K13=1,0,IF(COUNTRY_INFO!K13=2,0.2*COUNTRY_INFO!G13/(0.5*COUNTRY_INFO!F13+0.2*COUNTRY_INFO!G13),IF(COUNTRY_INFO!K13=3,COUNTRY_INFO!G13/(COUNTRY_INFO!F13+COUNTRY_INFO!G13)))),0) -> 0.4047202243 | AP13: =MAX(COUNTRY_INFO!D13*AK13*PROFILE!$G$7,COUNTRY_INFO!D13*AL13*PROFILE!$G$7) -> 0 | AQ13: =MAX(COUNTRY_INFO!D13*AK13*PROFILE!$G$8,COUNTRY_INFO!D13*AL13*PROFILE!$G$8,COUNTRY_INFO!D13*AM13*PROFILE!$G$8) -> 14149.47966 | AR13: =MAX(COUNTRY_INFO!D13*AK13*PROFILE!$G$9,COUNTRY_INFO!D13*AL13*PROFILE!$G$9,COUNTRY_INFO!D13*AM13*PROFILE!$G$9,IF(AND(DISTRICT!Z13<>"Unknown",Z13<>"Not required"),COUNTRY_INFO!O13*DISTRICT!AN13,0)) -> 35705.28616 | AS13: =MAX(COUNTRY_INFO!D13*AK13*PROFILE!$G$10,COUNTRY_INFO!D13*AL13*PROFILE!$G$10,IF(AND(DISTRICT!Z13<>"Unknown",Z13<>"Not required"),COUNTRY_INFO!O13*DISTRICT!AO13,0)) -> 60687.70216 | AT13: 110542.468 | AU13: Y | AV13: =MAX('MDA2'!J13,T1_R1!L13,'T2'!J13,T3_R1!K13,T3_R2!K13) -> 0 | AW13: =MAX('MDA1'!K13,'MDA2'!K13,'MDA3'!I13,'MDA3'!L13,T1_R1!M13,'T2'!K13,T3_R1!L13,T3_R2!L13) -> 29822 | AX13: =MAX('MDA1'!L13,'MDA2'!L13,'MDA3'!J13,'MDA3'!M13,T1_R1!N13,'T2'!L13,T3_R1!M13,T3_R2!M13) -> 57587 | AY13: 87409 | AZ13: =MAX('MDA2'!J13,T13) -> 0 | BA13: =MAX('MDA1'!K13,'MDA2'!K13,'MDA3'!I13,'MDA3'!L13,V13,AD13) -> 29822 | BB13: =MAX('MDA1'!L13,'MDA2'!L13,'MDA3'!J13,'MDA3'!M13,AF13) -> 57587 | BC13: 87409 | BD13: 79.07277773
A14: =IF(COUNTRY_INFO!A14=0," ",COUNTRY_INFO!A14) -> Zanzibar | B14: =IF(COUNTRY_INFO!B14=0," ",COUNTRY_INFO!B14) -> Kaskazini Unguja | C14: =IF(COUNTRY_INFO!C14=0," ",COUNTRY_INFO!C14) -> Kaskazini B | D14: =COUNTRY_INFO!L14 -> 109599.3333 | G14: =MAX('MDA1'!M14,'MDA2'!M14) -> 90071 | H14: =IF(AND(COUNTRY_INFO!H14>0,COUNTRY_INFO!H14<4),IF(D14>MAX('MDA1'!M14,'MDA2'!M14),MAX('MDA1'!M14,'MDA2'!M14),D14),0) -> 90071 | I14: =IF(AND(COUNTRY_INFO!H14>0,COUNTRY_INFO!H14<4), IF(G14/D14*100<>0, IF(G14/D14*100>100,100,G14/D14*100), "-"),0) -> 82.18206923 | J14: =COUNTRY_INFO!M14 -> Not required | M14: =MAX('MDA1'!M14,MAX('MDA3'!I14,'MDA3'!L14)+MAX('MDA3'!J14,'MDA3'!M14)) -> 90071 | N14: =IF(AND(COUNTRY_INFO!I14>0,COUNTRY_INFO!I14<4),IF(J14>MAX('MDA1'!M14,MAX('MDA3'!I14,'MDA3'!L14)+MAX('MDA3'!J14,'MDA3'!M14)),MAX('MDA1'!M14,MAX('MDA3'!I14,'MDA3'!L14)+MAX('MDA3'!J14,'MDA3'!M14)),J14),0) -> 0 | O14: =IF(AND(COUNTRY_INFO!I14>0,COUNTRY_INFO!I14<4), IF(M14/J14*100<>0, IF(M14/J14*100>100,100,M14/J14*100), "-"),0) -> 0 | P14: =COUNTRY_INFO!N14 -> 49430 | S14: =SUM(MAX('MDA2'!J14, T1_R1!L14, MAX(T3_R1!K14, T3_R2!K14)), MAX('MDA1'!K14, 'MDA2'!K14, T1_R1!M14, MAX(T3_R1!L14, T3_R2!L14)), MAX('MDA1'!L14, 'MDA2'!L14, T1_R1!N14, MAX(T3_R1!M14, T3_R2!M14))) -> 90071 | T14: =IF(AND(COUNTRY_INFO!J14>1,COUNTRY_INFO!J14<4),IF(COUNTRY_INFO!E14>MAX('MDA2'!J14,T1_R1!L14,MAX(T3_R1!K14,T3_R2!K14)),MAX('MDA2'!J14,T1_R1!L14,MAX(T3_R1!K14,T3_R2!K14)),COUNTRY_INFO!E14),0) -> 0 | U14: =IF(AND(COUNTRY_INFO!J14>1,COUNTRY_INFO!J14<4), IF(T14/COUNTRY_INFO!E14*100<>0, IF(T14/COUNTRY_INFO!E14*100>100,100,T14/COUNTRY_INFO!E14*100), "-"),0) -> - | V14: =IF(AND(COUNTRY_INFO!J14>1,COUNTRY_INFO!J14<4),IF(COUNTRY_INFO!F14>MAX('MDA1'!K14,'MDA2'!K14,T1_R1!M14,MAX(T3_R1!L14,T3_R2!L14)),MAX('MDA1'!K14,'MDA2'!K14,T1_R1!M14,MAX(T3_R1!L14,T3_R2!L14)),COUNTRY_INFO!F14),0) -> 33665 | W14: =IF(AND(COUNTRY_INFO!J14>1,COUNTRY_INFO!J14<4), IF(V14/COUNTRY_INFO!F14*100<>0, IF(V14/COUNTRY_INFO!F14*100>100,100,V14/COUNTRY_INFO!F14*100), "-"),0) -> 95.09618372 | X14: 33665 | Y14: =IF(AND(COUNTRY_INFO!J14>1,COUNTRY_INFO!J14<4), IF(S14/P14*100<>0, IF(X14/P14*100>100,100,X14/P14*100), "-"),0) -> 68.10641311 | Z14: =COUNTRY_INFO!O14 -> 11682.33 | AC14: =MAX(SUM(T1_R1!L14:'T1_R1'!N14),SUM(T1_R2!L14:'T1_R2'!N14)) -> 60558 | AD14: =IF(COUNTRY_INFO!K14=1,IF(COUNTRY_INFO!F14*0.33>MAX(T1_R1!M14,T1_R2!M14),MAX(T1_R1!M14,T1_R2!M14),COUNTRY_INFO!F14*0.33),IF(COUNTRY_INFO!K14=2,IF(COUNTRY_INFO!F14*0.5>MAX(T1_R1!M14,T1_R2!M14),MAX(T1_R1!M14,T1_R2!M14),COUNTRY_INFO!F14*0.5),IF(COUNTRY_INFO!K14=3,IF(COUNTRY_INFO!F14>MAX(T1_R1!M14,T1_R2!M14),MAX(T1_R1!M14,T1_R2!M14),COUNTRY_INFO!F14),0))) -> 11682.33 | AE14: =IF(AND(COUNTRY_INFO!K14>0,COUNTRY_INFO!K14<4),IF(Z14>0,IF(COUNTRY_INFO!K14=1, AD14/(COUNTRY_INFO!F14*0.33)*100, IF(COUNTRY_INFO!K14=2, AD14/(COUNTRY_INFO!F14*0.5)*100, IF(COUNTRY_INFO!K14=3, AD14/COUNTRY_INFO!F14*100))),"-"),0) -> 100 | AF14: =IF(COUNTRY_INFO!K14=2,IF(COUNTRY_INFO!G14*0.2>MAX(T1_R1!N14,T1_R2!N14),MAX(T1_R1!N14,T1_R2!N14),COUNTRY_INFO!G14*0.2),IF(COUNTRY_INFO!K14=3,IF(COUNTRY_INFO!G14>MAX(T1_R1!N14,T1_R2!N14),MAX(T1_R1!N14,T1_R2!N14),COUNTRY_INFO!G14),0)) -> 0 | AG14: =IF(AND(COUNTRY_INFO!K14>0,COUNTRY_INFO!K14<4),IF(Z14>0,IF(COUNTRY_INFO!K14=1, 0, IF(COUNTRY_INFO!K14=2, AF14/(COUNTRY_INFO!G14*0.2)*100, IF(COUNTRY_INFO!K14=3, AF14/COUNTRY_INFO!G14*100))),"-"),0) -> 0 | AH14: 11682.33 | AI14: =IF(AND(COUNTRY_INFO!K14>0,COUNTRY_INFO!K14<4), IF(AC14/Z14*100<>0, IF(AH14/Z14*100>100,100,AH14/Z14*100), "-"),0) -> 100 | AK14: =IF(AND(D14<>0, D14<>"Unknown",D14<>"Stopped",D14<>"Not required"),D14/COUNTRY_INFO!D14, 0) -> 1 | AL14: =IF(AND(J14<>0,J14<>"Unknown",J14<>"Stopped",J14<>"Not required"),J14/COUNTRY_INFO!D14, 0) -> 0 | AM14: =IF(AND(P14<>0,P14<>"Unknown",P14<>"Not required"),P14/(COUNTRY_INFO!E14+COUNTRY_INFO!F14), 0) -> 1 | AN14: =IF(AND(Z14<>0,Z14<>"Unknown",Z14<>"Not required"),IF(COUNTRY_INFO!K14=1,1,IF(COUNTRY_INFO!K14=2,0.5*COUNTRY_INFO!F14/(0.5*COUNTRY_INFO!F14+0.2*COUNTRY_INFO!G14),IF(COUNTRY_INFO!K14=3,COUNTRY_INFO!F14/(COUNTRY_INFO!F14+COUNTRY_INFO!G14)))),0) -> 1 | AO14: =IF(AND(Z14<>0,Z14<>"Unknown",Z14<>"Not required"),IF(COUNTRY_INFO!K14=1,0,IF(COUNTRY_INFO!K14=2,0.2*COUNTRY_INFO!G14/(0.5*COUNTRY_INFO!F14+0.2*COUNTRY_INFO!G14),IF(COUNTRY_INFO!K14=3,COUNTRY_INFO!G14/(COUNTRY_INFO!F14+COUNTRY_INFO!G14)))),0) -> 0 | AP14: =MAX(COUNTRY_INFO!D14*AK14*PROFILE!$G$7,COUNTRY_INFO!D14*AL14*PROFILE!$G$7) -> 0 | AQ14: =MAX(COUNTRY_INFO!D14*AK14*PROFILE!$G$8,COUNTRY_INFO!D14*AL14*PROFILE!$G$8,COUNTRY_INFO!D14*AM14*PROFILE!$G$8) -> 14028.77514 | AR14: =MAX(COUNTRY_INFO!D14*AK14*PROFILE!$G$9,COUNTRY_INFO!D14*AL14*PROFILE!$G$9,COUNTRY_INFO!D14*AM14*PROFILE!$G$9,IF(AND(DISTRICT!Z14<>"Unknown",Z14<>"Not required"),COUNTRY_INFO!O14*DISTRICT!AN14,0)) -> 35400.6962 | AS14: =MAX(COUNTRY_INFO!D14*AK14*PROFILE!$G$10,COUNTRY_INFO!D14*AL14*PROFILE!$G$10,IF(AND(DISTRICT!Z14<>"Unknown",Z14<>"Not required"),COUNTRY_INFO!O14*DISTRICT!AO14,0)) -> 60169.99549 | AT14: 109599.4668 | AU14: Y | AV14: =MAX('MDA2'!J14,T1_R1!L14,'T2'!J14,T3_R1!K14,T3_R2!K14) -> 0 | AW14: =MAX('MDA1'!K14,'MDA2'!K14,'MDA3'!I14,'MDA3'!L14,T1_R1!M14,'T2'!K14,T3_R1!L14,T3_R2!L14) -> 33665 | AX14: =MAX('MDA1'!L14,'MDA2'!L14,'MDA3'!J14,'MDA3'!M14,T1_R1!N14,'T2'!L14,T3_R1!M14,T3_R2!M14) -> 56406 | AY14: 90071 | AZ14: =MAX('MDA2'!J14,T14) -> 0 | BA14: =MAX('MDA1'!K14,'MDA2'!K14,'MDA3'!I14,'MDA3'!L14,V14,AD14) -> 33665 | BB14: =MAX('MDA1'!L14,'MDA2'!L14,'MDA3'!J14,'MDA3'!M14,AF14) -> 56406 | BC14: 90071 | BD14: 82.18196914
A15: =IF(COUNTRY_INFO!A15=0," ",COUNTRY_INFO!A15) -> Zanzibar | B15: =IF(COUNTRY_INFO!B15=0," ",COUNTRY_INFO!B15) -> Kusini Unguja | C15: =IF(COUNTRY_INFO!C15=0," ",COUNTRY_INFO!C15) -> Kati | D15: =COUNTRY_INFO!L15 -> 75060.8 | G15: =MAX('MDA1'!M15,'MDA2'!M15) -> 65757 | H15: =IF(AND(COUNTRY_INFO!H15>0,COUNTRY_INFO!H15<4),IF(D15>MAX('MDA1'!M15,'MDA2'!M15),MAX('MDA1'!M15,'MDA2'!M15),D15),0) -> 65757 | I15: =IF(AND(COUNTRY_INFO!H15>0,COUNTRY_INFO!H15<4), IF(G15/D15*100<>0, IF(G15/D15*100>100,100,G15/D15*100), "-"),0) -> 87.60498156 | J15: =COUNTRY_INFO!M15 -> Not required | M15: =MAX('MDA1'!M15,MAX('MDA3'!I15,'MDA3'!L15)+MAX('MDA3'!J15,'MDA3'!M15)) -> 65757 | N15: =IF(AND(COUNTRY_INFO!I15>0,COUNTRY_INFO!I15<4),IF(J15>MAX('MDA1'!M15,MAX('MDA3'!I15,'MDA3'!L15)+MAX('MDA3'!J15,'MDA3'!M15)),MAX('MDA1'!M15,MAX('MDA3'!I15,'MDA3'!L15)+MAX('MDA3'!J15,'MDA3'!M15)),J15),0) -> 0 | O15: =IF(AND(COUNTRY_INFO!I15>0,COUNTRY_INFO!I15<4), IF(M15/J15*100<>0, IF(M15/J15*100>100,100,M15/J15*100), "-"),0) -> 0 | P15: =COUNTRY_INFO!N15 -> 33853 | S15: =SUM(MAX('MDA2'!J15, T1_R1!L15, MAX(T3_R1!K15, T3_R2!K15)), MAX('MDA1'!K15, 'MDA2'!K15, T1_R1!M15, MAX(T3_R1!L15, T3_R2!L15)), MAX('MDA1'!L15, 'MDA2'!L15, T1_R1!N15, MAX(T3_R1!M15, T3_R2!M15))) -> 65757 | T15: =IF(AND(COUNTRY_INFO!J15>1,COUNTRY_INFO!J15<4),IF(COUNTRY_INFO!E15>MAX('MDA2'!J15,T1_R1!L15,MAX(T3_R1!K15,T3_R2!K15)),MAX('MDA2'!J15,T1_R1!L15,MAX(T3_R1!K15,T3_R2!K15)),COUNTRY_INFO!E15),0) -> 0 | U15: =IF(AND(COUNTRY_INFO!J15>1,COUNTRY_INFO!J15<4), IF(T15/COUNTRY_INFO!E15*100<>0, IF(T15/COUNTRY_INFO!E15*100>100,100,T15/COUNTRY_INFO!E15*100), "-"),0) -> - | V15: =IF(AND(COUNTRY_INFO!J15>1,COUNTRY_INFO!J15<4),IF(COUNTRY_INFO!F15>MAX('MDA1'!K15,'MDA2'!K15,T1_R1!M15,MAX(T3_R1!L15,T3_R2!L15)),MAX('MDA1'!K15,'MDA2'!K15,T1_R1!M15,MAX(T3_R1!L15,T3_R2!L15)),COUNTRY_INFO!F15),0) -> 24245 | W15: =IF(AND(COUNTRY_INFO!J15>1,COUNTRY_INFO!J15<4), IF(V15/COUNTRY_INFO!F15*100<>0, IF(V15/COUNTRY_INFO!F15*100>100,100,V15/COUNTRY_INFO!F15*100), "-"),0) -> 100 | X15: 24245 | Y15: =IF(AND(COUNTRY_INFO!J15>1,COUNTRY_INFO!J15<4), IF(S15/P15*100<>0, IF(X15/P15*100>100,100,X15/P15*100), "-"),0) -> 71.61846808 | Z15: =COUNTRY_INFO!O15 -> 8000.85 | AC15: =MAX(SUM(T1_R1!L15:'T1_R1'!N15),SUM(T1_R2!L15:'T1_R2'!N15)) -> 72945 | AD15: =IF(COUNTRY_INFO!K15=1,IF(COUNTRY_INFO!F15*0.33>MAX(T1_R1!M15,T1_R2!M15),MAX(T1_R1!M15,T1_R2!M15),COUNTRY_INFO!F15*0.33),IF(COUNTRY_INFO!K15=2,IF(COUNTRY_INFO!F15*0.5>MAX(T1_R1!M15,T1_R2!M15),MAX(T1_R1!M15,T1_R2!M15),COUNTRY_INFO!F15*0.5),IF(COUNTRY_INFO!K15=3,IF(COUNTRY_INFO!F15>MAX(T1_R1!M15,T1_R2!M15),MAX(T1_R1!M15,T1_R2!M15),COUNTRY_INFO!F15),0))) -> 8000.85 | AE15: =IF(AND(COUNTRY_INFO!K15>0,COUNTRY_INFO!K15<4),IF(Z15>0,IF(COUNTRY_INFO!K15=1, AD15/(COUNTRY_INFO!F15*0.33)*100, IF(COUNTRY_INFO!K15=2, AD15/(COUNTRY_INFO!F15*0.5)*100, IF(COUNTRY_INFO!K15=3, AD15/COUNTRY_INFO!F15*100))),"-"),0) -> 100 | AF15: =IF(COUNTRY_INFO!K15=2,IF(COUNTRY_INFO!G15*0.2>MAX(T1_R1!N15,T1_R2!N15),MAX(T1_R1!N15,T1_R2!N15),COUNTRY_INFO!G15*0.2),IF(COUNTRY_INFO!K15=3,IF(COUNTRY_INFO!G15>MAX(T1_R1!N15,T1_R2!N15),MAX(T1_R1!N15,T1_R2!N15),COUNTRY_INFO!G15),0)) -> 0 | AG15: =IF(AND(COUNTRY_INFO!K15>0,COUNTRY_INFO!K15<4),IF(Z15>0,IF(COUNTRY_INFO!K15=1, 0, IF(COUNTRY_INFO!K15=2, AF15/(COUNTRY_INFO!G15*0.2)*100, IF(COUNTRY_INFO!K15=3, AF15/COUNTRY_INFO!G15*100))),"-"),0) -> 0 | AH15: 8000.85 | AI15: =IF(AND(COUNTRY_INFO!K15>0,COUNTRY_INFO!K15<4), IF(AC15/Z15*100<>0, IF(AH15/Z15*100>100,100,AH15/Z15*100), "-"),0) -> 100 | AK15: =IF(AND(D15<>0, D15<>"Unknown",D15<>"Stopped",D15<>"Not required"),D15/COUNTRY_INFO!D15, 0) -> 1 | AL15: =IF(AND(J15<>0,J15<>"Unknown",J15<>"Stopped",J15<>"Not required"),J15/COUNTRY_INFO!D15, 0) -> 0 | AM15: =IF(AND(P15<>0,P15<>"Unknown",P15<>"Not required"),P15/(COUNTRY_INFO!E15+COUNTRY_INFO!F15), 0) -> 1 | AN15: =IF(AND(Z15<>0,Z15<>"Unknown",Z15<>"Not required"),IF(COUNTRY_INFO!K15=1,1,IF(COUNTRY_INFO!K15=2,0.5*COUNTRY_INFO!F15/(0.5*COUNTRY_INFO!F15+0.2*COUNTRY_INFO!G15),IF(COUNTRY_INFO!K15=3,COUNTRY_INFO!F15/(COUNTRY_INFO!F15+COUNTRY_INFO!G15)))),0) -> 1 | AO15: =IF(AND(Z15<>0,Z15<>"Unknown",Z15<>"Not required"),IF(COUNTRY_INFO!K15=1,0,IF(COUNTRY_INFO!K15=2,0.2*COUNTRY_INFO!G15/(0.5*COUNTRY_INFO!F15+0.2*COUNTRY_INFO!G15),IF(COUNTRY_INFO!K15=3,COUNTRY_INFO!G15/(COUNTRY_INFO!F15+COUNTRY_INFO!G15)))),0) -> 0 | AP15: =MAX(COUNTRY_INFO!D15*AK15*PROFILE!$G$7,COUNTRY_INFO!D15*AL15*PROFILE!$G$7) -> 0 | AQ15: =MAX(COUNTRY_INFO!D15*AK15*PROFILE!$G$8,COUNTRY_INFO!D15*AL15*PROFILE!$G$8,COUNTRY_INFO!D15*AM15*PROFILE!$G$8) -> 9607.823814 | AR15: =MAX(COUNTRY_INFO!D15*AK15*PROFILE!$G$9,COUNTRY_INFO!D15*AL15*PROFILE!$G$9,COUNTRY_INFO!D15*AM15*PROFILE!$G$9,IF(AND(DISTRICT!Z15<>"Unknown",Z15<>"Not required"),COUNTRY_INFO!O15*DISTRICT!AN15,0)) -> 24244.71478 | AS15: =MAX(COUNTRY_INFO!D15*AK15*PROFILE!$G$10,COUNTRY_INFO!D15*AL15*PROFILE!$G$10,IF(AND(DISTRICT!Z15<>"Unknown",Z15<>"Not required"),COUNTRY_INFO!O15*DISTRICT!AO15,0)) -> 41208.35282 | AT15: 75060.89142 | AU15: Y | AV15: =MAX('MDA2'!J15,T1_R1!L15,'T2'!J15,T3_R1!K15,T3_R2!K15) -> 0 | AW15: =MAX('MDA1'!K15,'MDA2'!K15,'MDA3'!I15,'MDA3'!L15,T1_R1!M15,'T2'!K15,T3_R1!L15,T3_R2!L15) -> 29357 | AX15: =MAX('MDA1'!L15,'MDA2'!L15,'MDA3'!J15,'MDA3'!M15,T1_R1!N15,'T2'!L15,T3_R1!M15,T3_R2!M15) -> 36400 | AY15: 65757 | AZ15: =MAX('MDA2'!J15,T15) -> 0 | BA15: =MAX('MDA1'!K15,'MDA2'!K15,'MDA3'!I15,'MDA3'!L15,V15,AD15) -> 29357 | BB15: =MAX('MDA1'!L15,'MDA2'!L15,'MDA3'!J15,'MDA3'!M15,AF15) -> 36400 | BC15: 65757 | BD15: 87.60487486
A16: =IF(COUNTRY_INFO!A16=0," ",COUNTRY_INFO!A16) -> Zanzibar | B16: =IF(COUNTRY_INFO!B16=0," ",COUNTRY_INFO!B16) -> Kusini Unguja | C16: =IF(COUNTRY_INFO!C16=0," ",COUNTRY_INFO!C16) -> Kusini | D16: =COUNTRY_INFO!L16 -> 38126.66667 | G16: =MAX('MDA1'!M16,'MDA2'!M16) -> 31319 | H16: =IF(AND(COUNTRY_INFO!H16>0,COUNTRY_INFO!H16<4),IF(D16>MAX('MDA1'!M16,'MDA2'!M16),MAX('MDA1'!M16,'MDA2'!M16),D16),0) -> 31319 | I16: =IF(AND(COUNTRY_INFO!H16>0,COUNTRY_INFO!H16<4), IF(G16/D16*100<>0, IF(G16/D16*100>100,100,G16/D16*100), "-"),0) -> 82.1446057 | J16: =COUNTRY_INFO!M16 -> Not required | M16: =MAX('MDA1'!M16,MAX('MDA3'!I16,'MDA3'!L16)+MAX('MDA3'!J16,'MDA3'!M16)) -> 31319 | N16: =IF(AND(COUNTRY_INFO!I16>0,COUNTRY_INFO!I16<4),IF(J16>MAX('MDA1'!M16,MAX('MDA3'!I16,'MDA3'!L16)+MAX('MDA3'!J16,'MDA3'!M16)),MAX('MDA1'!M16,MAX('MDA3'!I16,'MDA3'!L16)+MAX('MDA3'!J16,'MDA3'!M16)),J16),0) -> 0 | O16: =IF(AND(COUNTRY_INFO!I16>0,COUNTRY_INFO!I16<4), IF(M16/J16*100<>0, IF(M16/J16*100>100,100,M16/J16*100), "-"),0) -> 0 | P16: =COUNTRY_INFO!N16 -> 17195 | S16: =SUM(MAX('MDA2'!J16, T1_R1!L16, MAX(T3_R1!K16, T3_R2!K16)), MAX('MDA1'!K16, 'MDA2'!K16, T1_R1!M16, MAX(T3_R1!L16, T3_R2!L16)), MAX('MDA1'!L16, 'MDA2'!L16, T1_R1!N16, MAX(T3_R1!M16, T3_R2!M16))) -> 34013 | T16: =IF(AND(COUNTRY_INFO!J16>1,COUNTRY_INFO!J16<4),IF(COUNTRY_INFO!E16>MAX('MDA2'!J16,T1_R1!L16,MAX(T3_R1!K16,T3_R2!K16)),MAX('MDA2'!J16,T1_R1!L16,MAX(T3_R1!K16,T3_R2!K16)),COUNTRY_INFO!E16),0) -> 0 | U16: =IF(AND(COUNTRY_INFO!J16>1,COUNTRY_INFO!J16<4), IF(T16/COUNTRY_INFO!E16*100<>0, IF(T16/COUNTRY_INFO!E16*100>100,100,T16/COUNTRY_INFO!E16*100), "-"),0) -> - | V16: =IF(AND(COUNTRY_INFO!J16>1,COUNTRY_INFO!J16<4),IF(COUNTRY_INFO!F16>MAX('MDA1'!K16,'MDA2'!K16,T1_R1!M16,MAX(T3_R1!L16,T3_R2!L16)),MAX('MDA1'!K16,'MDA2'!K16,T1_R1!M16,MAX(T3_R1!L16,T3_R2!L16)),COUNTRY_INFO!F16),0) -> 11230 | W16: =IF(AND(COUNTRY_INFO!J16>1,COUNTRY_INFO!J16<4), IF(V16/COUNTRY_INFO!F16*100<>0, IF(V16/COUNTRY_INFO!F16*100>100,100,V16/COUNTRY_INFO!F16*100), "-"),0) -> 91.18960617 | X16: 11230 | Y16: =IF(AND(COUNTRY_INFO!J16>1,COUNTRY_INFO!J16<4), IF(S16/P16*100<>0, IF(X16/P16*100>100,100,X16/P16*100), "-"),0) -> 65.30968305 | Z16: =COUNTRY_INFO!O16 -> 0 | AC16: =MAX(SUM(T1_R1!L16:'T1_R1'!N16),SUM(T1_R2!L16:'T1_R2'!N16)) -> 0 | AD16: =IF(COUNTRY_INFO!K16=1,IF(COUNTRY_INFO!F16*0.33>MAX(T1_R1!M16,T1_R2!M16),MAX(T1_R1!M16,T1_R2!M16),COUNTRY_INFO!F16*0.33),IF(COUNTRY_INFO!K16=2,IF(COUNTRY_INFO!F16*0.5>MAX(T1_R1!M16,T1_R2!M16),MAX(T1_R1!M16,T1_R2!M16),COUNTRY_INFO!F16*0.5),IF(COUNTRY_INFO!K16=3,IF(COUNTRY_INFO!F16>MAX(T1_R1!M16,T1_R2!M16),MAX(T1_R1!M16,T1_R2!M16),COUNTRY_INFO!F16),0))) -> 0 | AE16: =IF(AND(COUNTRY_INFO!K16>0,COUNTRY_INFO!K16<4),IF(Z16>0,IF(COUNTRY_INFO!K16=1, AD16/(COUNTRY_INFO!F16*0.33)*100, IF(COUNTRY_INFO!K16=2, AD16/(COUNTRY_INFO!F16*0.5)*100, IF(COUNTRY_INFO!K16=3, AD16/COUNTRY_INFO!F16*100))),"-"),0) -> 0 | AF16: =IF(COUNTRY_INFO!K16=2,IF(COUNTRY_INFO!G16*0.2>MAX(T1_R1!N16,T1_R2!N16),MAX(T1_R1!N16,T1_R2!N16),COUNTRY_INFO!G16*0.2),IF(COUNTRY_INFO!K16=3,IF(COUNTRY_INFO!G16>MAX(T1_R1!N16,T1_R2!N16),MAX(T1_R1!N16,T1_R2!N16),COUNTRY_INFO!G16),0)) -> 0 | AG16: =IF(AND(COUNTRY_INFO!K16>0,COUNTRY_INFO!K16<4),IF(Z16>0,IF(COUNTRY_INFO!K16=1, 0, IF(COUNTRY_INFO!K16=2, AF16/(COUNTRY_INFO!G16*0.2)*100, IF(COUNTRY_INFO!K16=3, AF16/COUNTRY_INFO!G16*100))),"-"),0) -> 0 | AH16: 0 | AI16: =IF(AND(COUNTRY_INFO!K16>0,COUNTRY_INFO!K16<4), IF(AC16/Z16*100<>0, IF(AH16/Z16*100>100,100,AH16/Z16*100), "-"),0) -> 0 | AK16: =IF(AND(D16<>0, D16<>"Unknown",D16<>"Stopped",D16<>"Not required"),D16/COUNTRY_INFO!D16, 0) -> 1 | AL16: =IF(AND(J16<>0,J16<>"Unknown",J16<>"Stopped",J16<>"Not required"),J16/COUNTRY_INFO!D16, 0) -> 0 | AM16: =IF(AND(P16<>0,P16<>"Unknown",P16<>"Not required"),P16/(COUNTRY_INFO!E16+COUNTRY_INFO!F16), 0) -> 1 | AN16: =IF(AND(Z16<>0,Z16<>"Unknown",Z16<>"Not required"),IF(COUNTRY_INFO!K16=1,1,IF(COUNTRY_INFO!K16=2,0.5*COUNTRY_INFO!F16/(0.5*COUNTRY_INFO!F16+0.2*COUNTRY_INFO!G16),IF(COUNTRY_INFO!K16=3,COUNTRY_INFO!F16/(COUNTRY_INFO!F16+COUNTRY_INFO!G16)))),0) -> 0 | AO16: =IF(AND(Z16<>0,Z16<>"Unknown",Z16<>"Not required"),IF(COUNTRY_INFO!K16=1,0,IF(COUNTRY_INFO!K16=2,0.2*COUNTRY_INFO!G16/(0.5*COUNTRY_INFO!F16+0.2*COUNTRY_INFO!G16),IF(COUNTRY_INFO!K16=3,COUNTRY_INFO!G16/(COUNTRY_INFO!F16+COUNTRY_INFO!G16)))),0) -> 0 | AP16: =MAX(COUNTRY_INFO!D16*AK16*PROFILE!$G$7,COUNTRY_INFO!D16*AL16*PROFILE!$G$7) -> 0 | AQ16: =MAX(COUNTRY_INFO!D16*AK16*PROFILE!$G$8,COUNTRY_INFO!D16*AL16*PROFILE!$G$8,COUNTRY_INFO!D16*AM16*PROFILE!$G$8) -> 4880.234369 | AR16: =MAX(COUNTRY_INFO!D16*AK16*PROFILE!$G$9,COUNTRY_INFO!D16*AL16*PROFILE!$G$9,COUNTRY_INFO!D16*AM16*PROFILE!$G$9,IF(AND(DISTRICT!Z16<>"Unknown",Z16<>"Not required"),COUNTRY_INFO!O16*DISTRICT!AN16,0)) -> 12314.95213 | AS16: =MAX(COUNTRY_INFO!D16*AK16*PROFILE!$G$10,COUNTRY_INFO!D16*AL16*PROFILE!$G$10,IF(AND(DISTRICT!Z16<>"Unknown",Z16<>"Not required"),COUNTRY_INFO!O16*DISTRICT!AO16,0)) -> 20931.5266 | AT16: 38126.7131 | AU16: Y | AV16: =MAX('MDA2'!J16,T1_R1!L16,'T2'!J16,T3_R1!K16,T3_R2!K16) -> 0 | AW16: =MAX('MDA1'!K16,'MDA2'!K16,'MDA3'!I16,'MDA3'!L16,T1_R1!M16,'T2'!K16,T3_R1!L16,T3_R2!L16) -> 11230 | AX16: =MAX('MDA1'!L16,'MDA2'!L16,'MDA3'!J16,'MDA3'!M16,T1_R1!N16,'T2'!L16,T3_R1!M16,T3_R2!M16) -> 22783 | AY16: 34013 | AZ16: =MAX('MDA2'!J16,T16) -> 0 | BA16: =MAX('MDA1'!K16,'MDA2'!K16,'MDA3'!I16,'MDA3'!L16,V16,AD16) -> 11230 | BB16: =MAX('MDA1'!L16,'MDA2'!L16,'MDA3'!J16,'MDA3'!M16,AF16) -> 20089 | BC16: 31319 | BD16: 82.14450565
A17: =IF(COUNTRY_INFO!A17=0," ",COUNTRY_INFO!A17) -> Zanzibar | B17: =IF(COUNTRY_INFO!B17=0," ",COUNTRY_INFO!B17) -> Mjini Magharibi | C17: =IF(COUNTRY_INFO!C17=0," ",COUNTRY_INFO!C17) -> Mjini | D17: =COUNTRY_INFO!L17 -> 172688.6667 | G17: =MAX('MDA1'!M17,'MDA2'!M17) -> 136503 | H17: =IF(AND(COUNTRY_INFO!H17>0,COUNTRY_INFO!H17<4),IF(D17>MAX('MDA1'!M17,'MDA2'!M17),MAX('MDA1'!M17,'MDA2'!M17),D17),0) -> 136503 | I17: =IF(AND(COUNTRY_INFO!H17>0,COUNTRY_INFO!H17<4), IF(G17/D17*100<>0, IF(G17/D17*100>100,100,G17/D17*100), "-"),0) -> 79.04572004 | J17: =COUNTRY_INFO!M17 -> Not required | M17: =MAX('MDA1'!M17,MAX('MDA3'!I17,'MDA3'!L17)+MAX('MDA3'!J17,'MDA3'!M17)) -> 136503 | N17: =IF(AND(COUNTRY_INFO!I17>0,COUNTRY_INFO!I17<4),IF(J17>MAX('MDA1'!M17,MAX('MDA3'!I17,'MDA3'!L17)+MAX('MDA3'!J17,'MDA3'!M17)),MAX('MDA1'!M17,MAX('MDA3'!I17,'MDA3'!L17)+MAX('MDA3'!J17,'MDA3'!M17)),J17),0) -> 0 | O17: =IF(AND(COUNTRY_INFO!I17>0,COUNTRY_INFO!I17<4), IF(M17/J17*100<>0, IF(M17/J17*100>100,100,M17/J17*100), "-"),0) -> 0 | P17: =COUNTRY_INFO!N17 -> 77882 | S17: =SUM(MAX('MDA2'!J17, T1_R1!L17, MAX(T3_R1!K17, T3_R2!K17)), MAX('MDA1'!K17, 'MDA2'!K17, T1_R1!M17, MAX(T3_R1!L17, T3_R2!L17)), MAX('MDA1'!L17, 'MDA2'!L17, T1_R1!N17, MAX(T3_R1!M17, T3_R2!M17))) -> 136503 | T17: =IF(AND(COUNTRY_INFO!J17>1,COUNTRY_INFO!J17<4),IF(COUNTRY_INFO!E17>MAX('MDA2'!J17,T1_R1!L17,MAX(T3_R1!K17,T3_R2!K17)),MAX('MDA2'!J17,T1_R1!L17,MAX(T3_R1!K17,T3_R2!K17)),COUNTRY_INFO!E17),0) -> 0 | U17: =IF(AND(COUNTRY_INFO!J17>1,COUNTRY_INFO!J17<4), IF(T17/COUNTRY_INFO!E17*100<>0, IF(T17/COUNTRY_INFO!E17*100>100,100,T17/COUNTRY_INFO!E17*100), "-"),0) -> - | V17: =IF(AND(COUNTRY_INFO!J17>1,COUNTRY_INFO!J17<4),IF(COUNTRY_INFO!F17>MAX('MDA1'!K17,'MDA2'!K17,T1_R1!M17,MAX(T3_R1!L17,T3_R2!L17)),MAX('MDA1'!K17,'MDA2'!K17,T1_R1!M17,MAX(T3_R1!L17,T3_R2!L17)),COUNTRY_INFO!F17),0) -> 42172 | W17: =IF(AND(COUNTRY_INFO!J17>1,COUNTRY_INFO!J17<4), IF(V17/COUNTRY_INFO!F17*100<>0, IF(V17/COUNTRY_INFO!F17*100>100,100,V17/COUNTRY_INFO!F17*100), "-"),0) -> 75.60687009 | X17: 42172 | Y17: =IF(AND(COUNTRY_INFO!J17>1,COUNTRY_INFO!J17<4), IF(S17/P17*100<>0, IF(X17/P17*100>100,100,X17/P17*100), "-"),0) -> 54.14858375 | Z17: =COUNTRY_INFO!O17 -> 18406.74 | AC17: =MAX(SUM(T1_R1!L17:'T1_R1'!N17),SUM(T1_R2!L17:'T1_R2'!N17)) -> 169210 | AD17: =IF(COUNTRY_INFO!K17=1,IF(COUNTRY_INFO!F17*0.33>MAX(T1_R1!M17,T1_R2!M17),MAX(T1_R1!M17,T1_R2!M17),COUNTRY_INFO!F17*0.33),IF(COUNTRY_INFO!K17=2,IF(COUNTRY_INFO!F17*0.5>MAX(T1_R1!M17,T1_R2!M17),MAX(T1_R1!M17,T1_R2!M17),COUNTRY_INFO!F17*0.5),IF(COUNTRY_INFO!K17=3,IF(COUNTRY_INFO!F17>MAX(T1_R1!M17,T1_R2!M17),MAX(T1_R1!M17,T1_R2!M17),COUNTRY_INFO!F17),0))) -> 18406.74 | AE17: =IF(AND(COUNTRY_INFO!K17>0,COUNTRY_INFO!K17<4),IF(Z17>0,IF(COUNTRY_INFO!K17=1, AD17/(COUNTRY_INFO!F17*0.33)*100, IF(COUNTRY_INFO!K17=2, AD17/(COUNTRY_INFO!F17*0.5)*100, IF(COUNTRY_INFO!K17=3, AD17/COUNTRY_INFO!F17*100))),"-"),0) -> 100 | AF17: =IF(COUNTRY_INFO!K17=2,IF(COUNTRY_INFO!G17*0.2>MAX(T1_R1!N17,T1_R2!N17),MAX(T1_R1!N17,T1_R2!N17),COUNTRY_INFO!G17*0.2),IF(COUNTRY_INFO!K17=3,IF(COUNTRY_INFO!G17>MAX(T1_R1!N17,T1_R2!N17),MAX(T1_R1!N17,T1_R2!N17),COUNTRY_INFO!G17),0)) -> 0 | AG17: =IF(AND(COUNTRY_INFO!K17>0,COUNTRY_INFO!K17<4),IF(Z17>0,IF(COUNTRY_INFO!K17=1, 0, IF(COUNTRY_INFO!K17=2, AF17/(COUNTRY_INFO!G17*0.2)*100, IF(COUNTRY_INFO!K17=3, AF17/COUNTRY_INFO!G17*100))),"-"),0) -> 0 | AH17: 18406.74 | AI17: =IF(AND(COUNTRY_INFO!K17>0,COUNTRY_INFO!K17<4), IF(AC17/Z17*100<>0, IF(AH17/Z17*100>100,100,AH17/Z17*100), "-"),0) -> 100 | AK17: =IF(AND(D17<>0, D17<>"Unknown",D17<>"Stopped",D17<>"Not required"),D17/COUNTRY_INFO!D17, 0) -> 1 | AL17: =IF(AND(J17<>0,J17<>"Unknown",J17<>"Stopped",J17<>"Not required"),J17/COUNTRY_INFO!D17, 0) -> 0 | AM17: =IF(AND(P17<>0,P17<>"Unknown",P17<>"Not required"),P17/(COUNTRY_INFO!E17+COUNTRY_INFO!F17), 0) -> 1 | AN17: =IF(AND(Z17<>0,Z17<>"Unknown",Z17<>"Not required"),IF(COUNTRY_INFO!K17=1,1,IF(COUNTRY_INFO!K17=2,0.5*COUNTRY_INFO!F17/(0.5*COUNTRY_INFO!F17+0.2*COUNTRY_INFO!G17),IF(COUNTRY_INFO!K17=3,COUNTRY_INFO!F17/(COUNTRY_INFO!F17+COUNTRY_INFO!G17)))),0) -> 1 | AO17: =IF(AND(Z17<>0,Z17<>"Unknown",Z17<>"Not required"),IF(COUNTRY_INFO!K17=1,0,IF(COUNTRY_INFO!K17=2,0.2*COUNTRY_INFO!G17/(0.5*COUNTRY_INFO!F17+0.2*COUNTRY_INFO!G17),IF(COUNTRY_INFO!K17=3,COUNTRY_INFO!G17/(COUNTRY_INFO!F17+COUNTRY_INFO!G17)))),0) -> 0 | AP17: =MAX(COUNTRY_INFO!D17*AK17*PROFILE!$G$7,COUNTRY_INFO!D17*AL17*PROFILE!$G$7) -> 0 | AQ17: =MAX(COUNTRY_INFO!D17*AK17*PROFILE!$G$8,COUNTRY_INFO!D17*AL17*PROFILE!$G$8,COUNTRY_INFO!D17*AM17*PROFILE!$G$8) -> 22104.24461 | AR17: =MAX(COUNTRY_INFO!D17*AK17*PROFILE!$G$9,COUNTRY_INFO!D17*AL17*PROFILE!$G$9,COUNTRY_INFO!D17*AM17*PROFILE!$G$9,IF(AND(DISTRICT!Z17<>"Unknown",Z17<>"Not required"),COUNTRY_INFO!O17*DISTRICT!AN17,0)) -> 55778.61506 | AS17: =MAX(COUNTRY_INFO!D17*AK17*PROFILE!$G$10,COUNTRY_INFO!D17*AL17*PROFILE!$G$10,IF(AND(DISTRICT!Z17<>"Unknown",Z17<>"Not required"),COUNTRY_INFO!O17*DISTRICT!AO17,0)) -> 94806.01732 | AT17: 172688.877 | AU17: Y | AV17: =MAX('MDA2'!J17,T1_R1!L17,'T2'!J17,T3_R1!K17,T3_R2!K17) -> 0 | AW17: =MAX('MDA1'!K17,'MDA2'!K17,'MDA3'!I17,'MDA3'!L17,T1_R1!M17,'T2'!K17,T3_R1!L17,T3_R2!L17) -> 42172 | AX17: =MAX('MDA1'!L17,'MDA2'!L17,'MDA3'!J17,'MDA3'!M17,T1_R1!N17,'T2'!L17,T3_R1!M17,T3_R2!M17) -> 94331 | AY17: 136503 | AZ17: =MAX('MDA2'!J17,T17) -> 0 | BA17: =MAX('MDA1'!K17,'MDA2'!K17,'MDA3'!I17,'MDA3'!L17,V17,AD17) -> 42172 | BB17: =MAX('MDA1'!L17,'MDA2'!L17,'MDA3'!J17,'MDA3'!M17,AF17) -> 94331 | BC17: 136503 | BD17: 79.04562377
A18: =IF(COUNTRY_INFO!A18=0," ",COUNTRY_INFO!A18) -> Zanzibar | B18: =IF(COUNTRY_INFO!B18=0," ",COUNTRY_INFO!B18) -> Mjini Magharibi | C18: =IF(COUNTRY_INFO!C18=0," ",COUNTRY_INFO!C18) -> Magharibi A | D18: =COUNTRY_INFO!L18 -> 369408.3333 | G18: =MAX('MDA1'!M18,'MDA2'!M18) -> 233415 | H18: =IF(AND(COUNTRY_INFO!H18>0,COUNTRY_INFO!H18<4),IF(D18>MAX('MDA1'!M18,'MDA2'!M18),MAX('MDA1'!M18,'MDA2'!M18),D18),0) -> 233415 | I18: =IF(AND(COUNTRY_INFO!H18>0,COUNTRY_INFO!H18<4), IF(G18/D18*100<>0, IF(G18/D18*100>100,100,G18/D18*100), "-"),0) -> 63.18617609 | J18: =COUNTRY_INFO!M18 -> Not required | M18: =MAX('MDA1'!M18,MAX('MDA3'!I18,'MDA3'!L18)+MAX('MDA3'!J18,'MDA3'!M18)) -> 233415 | N18: =IF(AND(COUNTRY_INFO!I18>0,COUNTRY_INFO!I18<4),IF(J18>MAX('MDA1'!M18,MAX('MDA3'!I18,'MDA3'!L18)+MAX('MDA3'!J18,'MDA3'!M18)),MAX('MDA1'!M18,MAX('MDA3'!I18,'MDA3'!L18)+MAX('MDA3'!J18,'MDA3'!M18)),J18),0) -> 0 | O18: =IF(AND(COUNTRY_INFO!I18>0,COUNTRY_INFO!I18<4), IF(M18/J18*100<>0, IF(M18/J18*100>100,100,M18/J18*100), "-"),0) -> 0 | P18: =COUNTRY_INFO!N18 -> 166603 | S18: =SUM(MAX('MDA2'!J18, T1_R1!L18, MAX(T3_R1!K18, T3_R2!K18)), MAX('MDA1'!K18, 'MDA2'!K18, T1_R1!M18, MAX(T3_R1!L18, T3_R2!L18)), MAX('MDA1'!L18, 'MDA2'!L18, T1_R1!N18, MAX(T3_R1!M18, T3_R2!M18))) -> 233415 | T18: =IF(AND(COUNTRY_INFO!J18>1,COUNTRY_INFO!J18<4),IF(COUNTRY_INFO!E18>MAX('MDA2'!J18,T1_R1!L18,MAX(T3_R1!K18,T3_R2!K18)),MAX('MDA2'!J18,T1_R1!L18,MAX(T3_R1!K18,T3_R2!K18)),COUNTRY_INFO!E18),0) -> 0 | U18: =IF(AND(COUNTRY_INFO!J18>1,COUNTRY_INFO!J18<4), IF(T18/COUNTRY_INFO!E18*100<>0, IF(T18/COUNTRY_INFO!E18*100>100,100,T18/COUNTRY_INFO!E18*100), "-"),0) -> - | V18: =IF(AND(COUNTRY_INFO!J18>1,COUNTRY_INFO!J18<4),IF(COUNTRY_INFO!F18>MAX('MDA1'!K18,'MDA2'!K18,T1_R1!M18,MAX(T3_R1!L18,T3_R2!L18)),MAX('MDA1'!K18,'MDA2'!K18,T1_R1!M18,MAX(T3_R1!L18,T3_R2!L18)),COUNTRY_INFO!F18),0) -> 80289 | W18: =IF(AND(COUNTRY_INFO!J18>1,COUNTRY_INFO!J18<4), IF(V18/COUNTRY_INFO!F18*100<>0, IF(V18/COUNTRY_INFO!F18*100>100,100,V18/COUNTRY_INFO!F18*100), "-"),0) -> 67.28936716 | X18: 80289 | Y18: =IF(AND(COUNTRY_INFO!J18>1,COUNTRY_INFO!J18<4), IF(S18/P18*100<>0, IF(X18/P18*100>100,100,X18/P18*100), "-"),0) -> 48.19180927 | Z18: =COUNTRY_INFO!O18 -> 39375.27 | AC18: =MAX(SUM(T1_R1!L18:'T1_R1'!N18),SUM(T1_R2!L18:'T1_R2'!N18)) -> 203415 | AD18: =IF(COUNTRY_INFO!K18=1,IF(COUNTRY_INFO!F18*0.33>MAX(T1_R1!M18,T1_R2!M18),MAX(T1_R1!M18,T1_R2!M18),COUNTRY_INFO!F18*0.33),IF(COUNTRY_INFO!K18=2,IF(COUNTRY_INFO!F18*0.5>MAX(T1_R1!M18,T1_R2!M18),MAX(T1_R1!M18,T1_R2!M18),COUNTRY_INFO!F18*0.5),IF(COUNTRY_INFO!K18=3,IF(COUNTRY_INFO!F18>MAX(T1_R1!M18,T1_R2!M18),MAX(T1_R1!M18,T1_R2!M18),COUNTRY_INFO!F18),0))) -> 39375.27 | AE18: =IF(AND(COUNTRY_INFO!K18>0,COUNTRY_INFO!K18<4),IF(Z18>0,IF(COUNTRY_INFO!K18=1, AD18/(COUNTRY_INFO!F18*0.33)*100, IF(COUNTRY_INFO!K18=2, AD18/(COUNTRY_INFO!F18*0.5)*100, IF(COUNTRY_INFO!K18=3, AD18/COUNTRY_INFO!F18*100))),"-"),0) -> 100 | AF18: =IF(COUNTRY_INFO!K18=2,IF(COUNTRY_INFO!G18*0.2>MAX(T1_R1!N18,T1_R2!N18),MAX(T1_R1!N18,T1_R2!N18),COUNTRY_INFO!G18*0.2),IF(COUNTRY_INFO!K18=3,IF(COUNTRY_INFO!G18>MAX(T1_R1!N18,T1_R2!N18),MAX(T1_R1!N18,T1_R2!N18),COUNTRY_INFO!G18),0)) -> 0 | AG18: =IF(AND(COUNTRY_INFO!K18>0,COUNTRY_INFO!K18<4),IF(Z18>0,IF(COUNTRY_INFO!K18=1, 0, IF(COUNTRY_INFO!K18=2, AF18/(COUNTRY_INFO!G18*0.2)*100, IF(COUNTRY_INFO!K18=3, AF18/COUNTRY_INFO!G18*100))),"-"),0) -> 0 | AH18: 39375.27 | AI18: =IF(AND(COUNTRY_INFO!K18>0,COUNTRY_INFO!K18<4), IF(AC18/Z18*100<>0, IF(AH18/Z18*100>100,100,AH18/Z18*100), "-"),0) -> 100 | AK18: =IF(AND(D18<>0, D18<>"Unknown",D18<>"Stopped",D18<>"Not required"),D18/COUNTRY_INFO!D18, 0) -> 1 | AL18: =IF(AND(J18<>0,J18<>"Unknown",J18<>"Stopped",J18<>"Not required"),J18/COUNTRY_INFO!D18, 0) -> 0 | AM18: =IF(AND(P18<>0,P18<>"Unknown",P18<>"Not required"),P18/(COUNTRY_INFO!E18+COUNTRY_INFO!F18), 0) -> 1 | AN18: =IF(AND(Z18<>0,Z18<>"Unknown",Z18<>"Not required"),IF(COUNTRY_INFO!K18=1,1,IF(COUNTRY_INFO!K18=2,0.5*COUNTRY_INFO!F18/(0.5*COUNTRY_INFO!F18+0.2*COUNTRY_INFO!G18),IF(COUNTRY_INFO!K18=3,COUNTRY_INFO!F18/(COUNTRY_INFO!F18+COUNTRY_INFO!G18)))),0) -> 1 | AO18: =IF(AND(Z18<>0,Z18<>"Unknown",Z18<>"Not required"),IF(COUNTRY_INFO!K18=1,0,IF(COUNTRY_INFO!K18=2,0.2*COUNTRY_INFO!G18/(0.5*COUNTRY_INFO!F18+0.2*COUNTRY_INFO!G18),IF(COUNTRY_INFO!K18=3,COUNTRY_INFO!G18/(COUNTRY_INFO!F18+COUNTRY_INFO!G18)))),0) -> 0 | AP18: =MAX(COUNTRY_INFO!D18*AK18*PROFILE!$G$7,COUNTRY_INFO!D18*AL18*PROFILE!$G$7) -> 0 | AQ18: =MAX(COUNTRY_INFO!D18*AK18*PROFILE!$G$8,COUNTRY_INFO!D18*AL18*PROFILE!$G$8,COUNTRY_INFO!D18*AM18*PROFILE!$G$8) -> 47284.47048 | AR18: =MAX(COUNTRY_INFO!D18*AK18*PROFILE!$G$9,COUNTRY_INFO!D18*AL18*PROFILE!$G$9,COUNTRY_INFO!D18*AM18*PROFILE!$G$9,IF(AND(DISTRICT!Z18<>"Unknown",Z18<>"Not required"),COUNTRY_INFO!O18*DISTRICT!AN18,0)) -> 119319.2676 | AS18: =MAX(COUNTRY_INFO!D18*AK18*PROFILE!$G$10,COUNTRY_INFO!D18*AL18*PROFILE!$G$10,IF(AND(DISTRICT!Z18<>"Unknown",Z18<>"Not required"),COUNTRY_INFO!O18*DISTRICT!AO18,0)) -> 202805.0452 | AT18: 369408.7833 | AU18: Y | AV18: =MAX('MDA2'!J18,T1_R1!L18,'T2'!J18,T3_R1!K18,T3_R2!K18) -> 0 | AW18: =MAX('MDA1'!K18,'MDA2'!K18,'MDA3'!I18,'MDA3'!L18,T1_R1!M18,'T2'!K18,T3_R1!L18,T3_R2!L18) -> 80289 | AX18: =MAX('MDA1'!L18,'MDA2'!L18,'MDA3'!J18,'MDA3'!M18,T1_R1!N18,'T2'!L18,T3_R1!M18,T3_R2!M18) -> 153126 | AY18: 233415 | AZ18: =MAX('MDA2'!J18,T18) -> 0 | BA18: =MAX('MDA1'!K18,'MDA2'!K18,'MDA3'!I18,'MDA3'!L18,V18,AD18) -> 80289 | BB18: =MAX('MDA1'!L18,'MDA2'!L18,'MDA3'!J18,'MDA3'!M18,AF18) -> 153126 | BC18: 233415 | BD18: 63.18609913

Sheet SUMMARY
B2: PC Joint Reporting Form v.3
B4: Country | D4: =IF(INTRO!$E$34<>0,INTRO!$E$34," ") -> Zanzibar | G4: Year | H4: =IF(INTRO!$E$36<>0,INTRO!$E$36," ") -> 2017
B6: National authorities are requested to complete the Joint Reporting Form (JRF) for submission to the World Health Organization any time before 15 August of the current year for reporting data on PC interventions implemented during the previous year.
B14: Number of people received treatment (at least once) for the diseases
E16: PreSAC | F16: SAC | G16: Adults | H16: Total
B17: Lymphatic filariasis | E17: Not eligible | F17: 321850 | G17: 606158 | H17: =SUM(E17:G17) -> 928008
B18: Onchocerciasis | E18: Not eligible | F18: 321850 | G18: 606158 | H18: =SUM(E18:G18) -> 928008
B19: Soil-transmitted helminthiases | E19: 0 | F19: 347963 | G19: 672479 | H19: =SUM(E19:G19) -> 1020442
B20: Schistosomiasis | E20: Not eligible | F20: 281108 | G20: 571738 | H20: =SUM(E20:G20) -> 852846
B22: Coverage of PC interventions for the diseases (%)
G24: Geographical | H24: National
B25: Lymphatic filariasis | G25: 100 | H25: 70.64302257
B26: Onchocerciasis | G26: 0 | H26: 0
B27: Soil-transmitted helminthiases | G27: 100 | H27: 55.59023195
B28: Schistosomiasis | G28: 100 | H28: 91.80497286
B30: Number of people treated and programme coverage (%) by PC interventions
D32: PreSAC | E32: SAC | F32: Adults | G32: Total | H32: Coverage (%)
B33: MDA 1 (IVM+ALB) | D33: Not eligible | E33: ='MDA1'!$K$4 -> 321850 | F33: ='MDA1'!$L$4 -> 606158 | G33: ='MDA1'!$M$4 -> 928008 | H33: ='MDA1'!$Q$4 -> 79.61264663
B34: MDA 2 (DEC+ALB) | D34: ='MDA2'!$J$4 -> 0 | E34: ='MDA2'!$K$4 -> 0 | F34: ='MDA2'!$L$4 -> 0 | G34: ='MDA2'!$M$4 -> 0 | H34: ='MDA2'!$Q$4 -> 
B35: MDA 3 (IVM) | D35: Not eligible | E35: ='MDA3'!$O$4 -> 0 | F35: ='MDA3'!$P$4 -> 0 | G35: ='MDA3'!$Q$4 -> 0 | H35: ='MDA3'!$T$4 -> 
B36: T 1 (PZQ+ALB/MBD) - round 1 | D36: =IF(T1_R1!$L$4<>0,T1_R1!$L$4,"Not targeted") -> Not targeted | E36: =T1_R1!$M$4 -> 256620 | F36: =IF(T1_R1!$N$4<>0,T1_R1!$N$4,"Not targeted") -> 508069 | G36: =T1_R1!$O$4 -> 764689 | H36: =T1_R1!$S$4 -> 68.7506743
B37: T 1 (PZQ+ALB/MBD) - round 2 | D37: =IF('T2'!$J$4<>0,'T2'!$J$4,"Not targeted") -> Not targeted | E37: =T1_R2!$M$4 -> 243761 | F37: =IF(T1_R2!$N$4<>0,T1_R2!$N$4,"Not targeted") -> 526953 | G37: =T1_R2!$O$4 -> 770714 | H37: =T1_R2!$S$4 -> 69.29236224
B38: T 3 (ALB/MBD) - round 1 | D38: =T3_R1!$K$4 -> 0 | E38: =T3_R1!$L$4 -> 9306 | F38: =IF(T3_R1!$M$4<>0,T3_R1!$M$4,"Not targeted") -> 19208 | G38: =T3_R1!$N$4 -> 28514 | H38: =T3_R1!$R$4 -> 85.76412909
B39: T 3 (ALB/MBD) - round 2 | D39: =T3_R2!$K$4 -> 0 | E39: =T3_R2!$L$4 -> 9325 | F39: =IF(T3_R2!$M$4<>0,T3_R2!$M$4,"Not targeted") -> 22783 | G39: =T3_R2!$N$4 -> 32108 | H39: =T3_R2!$R$4 -> 96.57412699
B41: Inventory of PC medicines in the country
C43: IVM | D43: DEC | E43: ALB (LF) | F43: ALB (STH) | G43: MBD | H43: PZQ
B44: Available
B45: Distributed
B46: Wasted
B47: Received
B48: Remaining | C48: 0 | D48: 0 | E48: 0 | F48: 0 | G48: 0 | H48: 0
B50: Please indicate the medicine has been used to treat PreSAC for STH and delivery channels
B51: PC medicine | D51: Delivery channels | G51: Source
B53: Additional information
B63: Name and signature of NTD coordinator or Ministry of Health representative:
B65: Date:
B67: Please send the national report (signed and in electronic format) to the concerned WR with copy to:
B69: WHO headquarters | D69: PC_JointForms@who.int
B70: WHO Regional Office | D70: Regional Advisor for NTD

Sheet PROFILE (hidden)
B2: PC Joint Reporting Form v.3 - Country Profile
B4: Country | D4: =IF(INTRO!$E$34<>0,INTRO!$E$34," ") -> Zanzibar | G4: Year | H4: =IF(INTRO!$E$36<>0,INTRO!$E$36," ") -> 2017
B5: !!! WARNING !!! Before analysing data in the country profile please be ensure that your report in the SUMMARY tab is updated
B6: Total population | G6: 1 | H6: =COUNTRY_INFO!D4 -> 1313658.4
B7: Population — other age groups | G7: =IF($H$6<>0,H7/$H$6,0) -> -1.217972649e-06 | H7: =H6-SUM(H8:H10) -> -1.600000001
B8: Population — Pre-SAC | D8: =INTRO!B48 -> 1-4 years age | G8: =IF($H$6<>0,H8/$H$6,0) -> 0.1280005517 | H8: =COUNTRY_INFO!E4 -> 168149
B9: Population — SAC | D9: =INTRO!B49 -> 5-14 years age | G9: =IF($H$6<>0,H9/$H$6,0) -> 0.3230010176 | H9: =COUNTRY_INFO!F4 -> 424313
B10: Population — Adults | D10: =INTRO!B50 -> 15 years + | G10: 0.5489996486 | H10: =COUNTRY_INFO!G4 -> 721198
B12: Total number of people requiring PC for at least one disease (LF, ONCHO, STH, SCH) | H12: =DISTRICT!AT6 -> 1313660
B13: Proportion of number of people requiring PC for at least one disease out of total population | H13: =IF(H6<>0,H12/H6,0) -> 1.000001218
B14: Number of IUs requiring PC for at least one disease (LF, ONCHO, STH, SCH) | H14: =COUNTIF(DISTRICT!AT9:AT1000,">0") -> 10
B15: Number of IUs received PC for at least one disease (LF, ONCHO, STH, SCH) | H15: =COUNTIF(DISTRICT!AY9:AY1000,">0") -> 10
B16: Proportion of IUs requiring PC for at least one disease and received it | H16: =IF(H14<>0,H15/H14,0) -> 1
B17: Total number of people received PC for at least one disease (LF, ONCHO, STH, SCH) | H17: =DISTRICT!AY6 -> 974702
B18: Total number of people in need who received PC for at least one disease (LF, ONCHO, STH, SCH) | H18: =DISTRICT!BC6 -> 940621
B19: Coverage of PC for at least one disease (LF, ONCHO, STH, SCH) | H19: =DISTRICT!BD6 -> 0.7160307842
B20: Number of IUs received treatment for all diseases requiring PC in those IUs | H20: =DISTRICT!AU6 -> 10
B21: Population requring PC in IUs which received treatment for all diseases in need of PC | H21: =SUMIF(DISTRICT!AU9:AU1000,"Y",DISTRICT!AT9:AT1000) -> 1313660
B22: Population received PC in IUs which were treated for all diseases in need of PC | H22: =SUMIF(DISTRICT!AU9:AU1000,"Y",DISTRICT!AY9:AY1000) -> 974702
E24: LF | F24: ONCHO | G24: STH | H24: SCH
B26: Diseases requiring PC in the country | E26: =IF(INTRO!E38="Endemic","Yes","No") -> Yes | F26: =IF(INTRO!E40="Endemic","Yes","No") -> No | G26: =IF(INTRO!E42="Endemic","Yes","No") -> Yes | H26: =IF(INTRO!E44="Endemic","Yes","No") -> Yes
B27: Number of implementation units (IUs) in the country | E27: =IF(E26="Yes",INTRO!$E$46,"-") -> 10 | F27: =IF(F26="Yes",INTRO!$E$46,"-") -> - | G27: =IF(G26="Yes",INTRO!$E$46,"-") -> 10 | H27: =IF(H26="Yes",INTRO!$E$46,"-") -> 10
B28: Number of IUs with endemicity status known | E28: =IF(E26="Yes",E27-E29,"-") -> 10 | F28: =IF(F26="Yes",F27-F29,"-") -> - | G28: =IF(G26="Yes",G27-G29,"-") -> 10 | H28: =IF(H26="Yes",H27-H29,"-") -> 10
B29: Number of IUs with endemicity status unknown | E29: =IF(E26="Yes",E27-(992-COUNTIF(COUNTRY_INFO!H$9:H$1000,""))+COUNTIF(COUNTRY_INFO!H$9:H$1000,"=4"),"-") -> 0 | F29: =IF(F26="Yes",F27-(992-COUNTIF(COUNTRY_INFO!I$9:I$1000,""))+COUNTIF(COUNTRY_INFO!I$9:I$1000,"=4"),"-") -> - | G29: =IF(G26="Yes",G27-(992-COUNTIF(COUNTRY_INFO!J$9:J$1000,""))+COUNTIF(COUNTRY_INFO!J$9:J$1000,"=4")+COUNTIF(COUNTRY_INFO!J$9:J$1000,"=5"),"-") -> 0 | H29: =IF(H26="Yes",H27-(992-COUNTIF(COUNTRY_INFO!K$9:K$1000,""))+COUNTIF(COUNTRY_INFO!K$9:K$1000,"=4")+COUNTIF(COUNTRY_INFO!K$9:K$1000,"=5"),"-") -> 0
B30: Number of non-endemic IUs | E30: =IF(E26="Yes",COUNTIF(COUNTRY_INFO!H$9:H$1000,"=0"),"-") -> 0 | F30: =IF(F26="Yes",COUNTIF(COUNTRY_INFO!I$9:I$1000,"=0"),"-") -> - | G30: =IF(G26="Yes",COUNTIF(COUNTRY_INFO!J$9:J$1000,"=0"),"-") -> 0 | H30: =IF(H26="Yes",COUNTIF(COUNTRY_INFO!K$9:K$1000,"=0"),"-") -> 1
B31: Number of IUs requiring PC (total) | E31: =COUNTIF(COUNTRY_INFO!H$9:H$1000,"=1") -> 10 | F31: =COUNTIF(COUNTRY_INFO!I$9:I$1000,"=1") -> 0 | G31: =SUM(G33:G34) -> 10 | H31: =SUM(H32:H34) -> 9
D32: low prevalence | G32: =COUNTIF(COUNTRY_INFO!J$9:J$1000,"=1") -> 0 | H32: =COUNTIF(COUNTRY_INFO!K$9:K$1000,"=1") -> 5
D33: moderate prevalence | G33: =COUNTIF(COUNTRY_INFO!J$9:J$1000,"=2") -> 3 | H33: =COUNTIF(COUNTRY_INFO!K$9:K$1000,"=2") -> 4
D34: high prevalence | G34: =COUNTIF(COUNTRY_INFO!J$9:J$1000,"=3") -> 7 | H34: =COUNTIF(COUNTRY_INFO!K$9:K$1000,"=3") -> 0
B35: Population requiring PC in the country (total) | E35: =COUNTRY_INFO!L4 -> 1313658.4 | F35: =COUNTRY_INFO!M4 -> 0 | G35: =COUNTRY_INFO!N4 -> 592462 | H35: =COUNTRY_INFO!O4 -> 208864.47
C36: Pre-SAC | D36: moderate prevalence | G36: =SUMIF(COUNTRY_INFO!J$9:J$1000,"=2",COUNTRY_INFO!E$9:E$1000) -> 74268
D37: high prevalence | G37: =SUMIF(COUNTRY_INFO!J$9:J$1000,"=3",COUNTRY_INFO!E$9:E$1000) -> 93881
C38: SAC | D38: low prevalence | H38: =SUMIF(COUNTRY_INFO!K$9:K$1000,"=1",COUNTRY_INFO!F$9:F$1000)*0.33 -> 88779.57
D39: moderate prevalence | G39: =SUMIF(COUNTRY_INFO!J$9:J$1000,"=2",COUNTRY_INFO!F$9:F$1000) -> 187412 | H39: =SUMIF(COUNTRY_INFO!K$9:K$1000,"=2",COUNTRY_INFO!F$9:F$1000)*0.5 -> 71484.5
D40: high prevalence | G40: =SUMIF(COUNTRY_INFO!J$9:J$1000,"=3",COUNTRY_INFO!F$9:F$1000) -> 236901 | H40: =SUMIF(COUNTRY_INFO!K$9:K$1000,"=3",COUNTRY_INFO!F$9:F$1000) -> 0
C41: Adults | D41: moderate prevalence | H41: =SUMIF(COUNTRY_INFO!K$9:K$1000,"=2",COUNTRY_INFO!G$9:G$1000)*0.2 -> 48600.4
D42: high prevalence | H42: =SUMIF(COUNTRY_INFO!K$9:K$1000,"=3",COUNTRY_INFO!G$9:G$1000) -> 0
B43: Number of IUs where PC was implemented (total) | E43: =COUNTIF(DISTRICT!G$9:G$1000,">0") -> 10 | F43: =COUNTIF(DISTRICT!M$9:M$1000,">0") -> 10 | G43: =COUNTIF(DISTRICT!S$9:S$1000,">0") -> 10 | H43: =COUNTIF(DISTRICT!AC$9:AC$1000,">0") -> 9
B44: Number of IUs in need where PC was implemented (total) | E44: =COUNTIF(DISTRICT!H$9:H$1000,">0") -> 10 | F44: =COUNTIF(DISTRICT!N$9:N$1000,">0") -> 0 | G44: =COUNTIF(DISTRICT!X$9:X$1000,">0") -> 10 | H44: =COUNTIF(DISTRICT!AH$9:AH$1000,">0") -> 9
C45: Pre-SAC | G45: =COUNTIF(DISTRICT!T$9:T$1000,">0") -> 0
C46: SAC | G46: =COUNTIF(DISTRICT!V$9:V$1000,">0") -> 10 | H46: =COUNTIF(DISTRICT!AD$9:AD$1000,">0") -> 9
C47: Adults | H47: =COUNTIF(DISTRICT!AF$9:AF$1000,">0") -> 4
B48: Number of individuals treated (total) | E48: =DISTRICT!G4 -> 928008 | F48: =DISTRICT!M4 -> 928008 | G48: =DISTRICT!S4 -> 974702 | H48: =DISTRICT!AC4 -> 844760
C49: Pre-SAC | E49: =SUMMARY!$E17 -> Not eligible | F49: =SUMMARY!$E18 -> Not eligible | G49: =SUMMARY!$E19 -> 0 | H49: =SUMMARY!$E20 -> Not eligible
C50: SAC | E50: =SUMMARY!$F17 -> 321850 | F50: =SUMMARY!$F18 -> 321850 | G50: =SUMMARY!$F19 -> 347963 | H50: =SUMMARY!$F20 -> 281108
C51: Adults | E51: =SUMMARY!$G17 -> 606158 | F51: =SUMMARY!$G18 -> 606158 | G51: =SUMMARY!$G19 -> 672479 | H51: =SUMMARY!$G20 -> 571738
B52: Number of individuals in need treated (total) | E52: =DISTRICT!H4 -> 928008 | F52: =DISTRICT!N4 -> 0 | G52: =DISTRICT!X4 -> 329351 | H52: =DISTRICT!AH4 -> 191747.97
C53: Pre-SAC | G53: =DISTRICT!T4 -> 0
C54: SAC | G54: =DISTRICT!V4 -> 329351 | H54: =DISTRICT!AD4 -> 143147.57
C55: Adults | H55: =DISTRICT!AF4 -> 48600.4
B56: Geographical coverage (all ages) | E56: =IF(E31<>0,E44/E31,0) -> 1 | F56: =IF(F31<>0,F44/F31,0) -> 0 | G56: =IF(G31<>0,G44/G31,0) -> 1 | H56: =IF(H31<>0,H44/H31,0) -> 1
C57: Pre-SAC | G57: =IF(G31<>0,G45/G31,0) -> 0
C58: SAC | G58: =IF(G31<>0,G46/G31,0) -> 1 | H58: =IF(H31<>0,H46/H31,0) -> 1
C59: Adults | H59: =IF(SUM(H33:H34)<>0,H47/SUM(H33:H34),0) -> 1
B60: National coverage (total) | E60: =IF(E35<>0,E52/E35,0) -> 0.7064302257 | F60: =IF(F35<>0,F52/F35,0) -> 0 | G60: =IF(G35<>0,G52/G35,0) -> 0.5559023195 | H60: =IF(H35<>0,H52/H35,0) -> 0.9180497286
C61: Pre-SAC | G61: =IF(SUM(G36:G37)<>0,G53/SUM(G36:G37),0) -> 0
C62: SAC | G62: =IF(SUM(G39:G40)<>0,G54/SUM(G39:G40),0) -> 0.776198231 | H62: =IF(SUM(H38:H40)<>0,H54/SUM(H38:H40),0) -> 0.8931981448
C63: Adults | H63: =IF(SUM(H41:H42)<>0,H55/SUM(H41:H42),0) -> 1
E64: LF | F64: ONCHO | G64: STH | H64: SCH
B66: Number of IUs achieved effective coverage (all ages) | E66: =COUNTIF(DISTRICT!I$9:I$1000,">=65") -> 7 | F66: =COUNTIF(DISTRICT!O$9:O$1000,">=65") -> 0 | G66: =COUNTIF(DISTRICT!Y$9:Y$1000,">=75") -> 0 | H66: =COUNTIF(DISTRICT!AI$9:AI$1000,">=75") -> 8
C67: Pre-SAC | G67: =COUNTIF(DISTRICT!U$9:U$1000,">=75") -> 0
C68: SAC | G68: =COUNTIF(DISTRICT!W$9:W$1000,">=75") -> 7 | H68: =COUNTIF(DISTRICT!AE$9:AE$1000,">=75") -> 8
C69: Adults | H69: =COUNTIF(DISTRICT!AG$9:AG$1000,">=75") -> 4
B70: Number of individuals in need treated in IUs achieved effective coverage (total) | E70: =SUMIF(DISTRICT!I9:I1000,">=65",DISTRICT!H9:H1000) -> 562224 | F70: =SUMIF(DISTRICT!O9:O1000,">=65",DISTRICT!N9:N1000) -> 0 | G70: =SUMIF(DISTRICT!Y9:Y1000,">=75",DISTRICT!X9:X1000) -> 0 | H70: =SUMIF(DISTRICT!AI9:AI1000,">=75",DISTRICT!AH9:AH1000) -> 167360.57
C71: Pre-SAC | G71: =SUMIF(DISTRICT!U9:U1000,">=75",DISTRICT!T9:T1000) -> 0
C72: SAC | G72: =SUMIF(DISTRICT!W9:W1000,">=75",DISTRICT!V9:V1000) -> 192781 | H72: =SUMIF(DISTRICT!AE9:AE1000,">=75",DISTRICT!AD9:AD1000) -> 135557.57
C73: Adults | H73: =SUMIF(DISTRICT!AG9:AG1000,">=75",DISTRICT!AF9:AF1000) -> 48600.4
B74: Proportion of IUs requiring PC and achieved effective coverage (total) | E74: =IF(E44<>0,E66/E44,0) -> 0.7 | F74: =IF(F44<>0,F66/F44,0) -> 0 | G74: =IF(G44<>0,G66/G44,0) -> 0 | H74: =IF(H44<>0,H66/H44,0) -> 0.8888888889
C75: Pre-SAC | G75: =IF(G45<>0,G67/G45,0) -> 0
C76: SAC | G76: =IF(G46<>0,G68/G46,0) -> 0.7 | H76: =IF(H46<>0,H68/H46,0) -> 0.8888888889
C77: Adults | H77: =IF(H47<>0,H69/H47,0) -> 1
B78: Number of implementation units where PC was stopped (i.e. under surveillance) | E78: =COUNTIF(COUNTRY_INFO!H$9:H$1000,"=99") -> 0 | F78: =COUNTIF(COUNTRY_INFO!I$9:I$1000,"=99") -> 0
B79: Number of individuals in IUs no longer requiring PC (stopped) | E79: =SUMIF(COUNTRY_INFO!H$9:H$1000,"=99",COUNTRY_INFO!D$9:D$1000) -> 0 | F79: =SUMIF(COUNTRY_INFO!I$9:I$1000,"=99",COUNTRY_INFO!D$9:D$1000) -> 0
B80: Number of individuals requiring PC living in IUs targeted with PC | E80: =SUMIF(DISTRICT!H$9:H$1000,">0",DISTRICT!D$9:D$1000) -> 1313658.4 | F80: =SUMIF(DISTRICT!N$9:N$1000,">0",DISTRICT!J$9:J$1000) -> 0 | G80: =SUMIF(DISTRICT!X$9:X$1000,">0",DISTRICT!P$9:P$1000) -> 592462 | H80: =SUMIF(DISTRICT!AH$9:AH$1000,">0",DISTRICT!Z$9:Z$1000) -> 208864.47
B81: Number of individuals requiring PC living in IUs not targeted with PC | E81: =SUMIF(DISTRICT!H$9:H$1000,"=0",DISTRICT!D$9:D$1000) -> 0 | F81: =SUMIF(DISTRICT!N$9:N$1000,"=0",DISTRICT!J$9:J$1000) -> 0 | G81: =SUMIF(DISTRICT!X$9:X$1000,"=0",DISTRICT!P$9:P$1000) -> 0 | H81: =SUMIF(DISTRICT!AH$9:AH$1000,"=0",DISTRICT!Z$9:Z$1000) -> 0
E82: =E35-E52 -> 385650.4 | F82: =F35-F52 -> 0 | G82: 263111 | H82: 17116.5
B83: Number of IUs requiring and receiving PC | E83: =E31-E44 -> 0 | F83: =F31-F44 -> 0 | G83: 0 | H83: 0
E84: =E27-E31-E29 -> 0 | G84: 0 | H84: =H27-H31-H29 -> 1
G86: Requiring and receiving PC
G87: Requiring and not receiving PC
G88: Not requiring PC
G89: Status unknown
B124: Click here to access data Preventive Chemotherapy Data Portal
